Local authority department which incurred the expenditure,Service Division,Cost Centre,Summary of the Purpose of Expenditure,Expense Type,Expense Code,Detailed Expense Type,Date of Transaction,Transaction Number,Beneficiary,Merchant Category Number,Merchant Category,Gross Amount,VAT,Net Amount
Regeneration and Local Services,Economic Development and Housing,030708,VCD - Marketing & Information,Supplies and Services,384199,Miscellaneous Expenses,01-Jun-2018,000007430132509,HOO HOOTSUITE INC,5968,Other hired and contracted services,2.68,0.00,2.68
Children and Young Peoples Services,Head of Education and Skills,071801,Selby Cottage Childcare Centre,Supplies and Services,324117,Provisions E324,01-Jun-2018,000007436417031,TESCO STORES 2278,5411,Catering costs - provisions,14.20,0.00,14.20
Regeneration and Local Services,Direct Services,010301,C&G - North Grounds Maintenance,Supplies and Services,304221,Equipment and Materials,01-Jun-2018,000007436417035,JEWSON,5211,Direct materials,48.02,8.00,40.02
Regeneration and Local Services,Economic Development and Housing,030708,VCD - Marketing & Information,Supplies and Services,384199,Miscellaneous Expenses,01-Jun-2018,000007436417063,MAILCHIMP MONTHLY,5968,Other hired and contracted services,217.23,0.00,217.23
Adult and Health Services,Head of Adults,051630,OP/PD Occupational Therapy,Supplies and Services,308011,Furniture,01-Jun-2018,000007436417083,NORTH WALES PLASTICS,5251,Furniture repair and replacement,400.00,0.00,400.00
Regeneration and Local Services,Direct Services,021242,Catering - County Hall,Supplies and Services,324117,Provisions E324,01-Jun-2018,000007436417085,JR HOLLAND FOODSERVICE,5422,Catering costs - provisions,108.95,0.00,108.95
Regeneration and Local Services,Direct Services,021242,Catering - County Hall,Supplies and Services,324117,Provisions E324,01-Jun-2018,000007436417087,JR HOLLAND FOODSERVICE,5422,Catering costs - provisions,30.14,0.00,30.14
Regeneration and Local Services,Direct Services,021242,Catering - County Hall,Supplies and Services,324117,Provisions E324,01-Jun-2018,000007436417089,JR HOLLAND FOODSERVICE,5422,Catering costs - provisions,25.50,0.00,25.50
Children and Young Peoples Services,Head of Childrens Social Care,085352,Tow Law CU,Supplies and Services,348037,Subsistence E348,01-Jun-2018,000007436417137,FRANKIE & BENNYS 5500,5812,Subsistence,50.34,0.00,50.34
Children and Young Peoples Services,Head of Childrens Social Care,085352,Tow Law CU,Supplies and Services,304259,Equipment and Materials,01-Jun-2018,000007436417139,SPORTSDIRECT 246,5941,Equipment-purchase and rental,39.00,0.00,39.00
Regeneration and Local Services,Economic Development and Housing,030737,Durham Works Flexible Fund,Supplies and Services,348037,Subsistence E348,01-Jun-2018,000007436417163,ARRIVA NORTH EAST,4131,Subsistence,6.60,0.00,6.60
Children and Young Peoples Services,"Head of Early Help, Inclusion and Vulnerable Children",085957,Secure Management,Supplies and Services,312011,Newspapers books and periodicals E312,01-Jun-2018,000007436417167,AMAZON SVCS EU-UK AMAZ,5942,Books-school library,13.95,0.00,13.95
Children and Young Peoples Services,"Head of Early Help, Inclusion and Vulnerable Children",085957,Secure Management,Supplies and Services,328041,Clothing uniforms and laundry E328,01-Jun-2018,000007436417173,WWW.ARGOS.CO.UK,5310,Clothing uniforms and laundry,44.98,7.50,37.48
Children and Young Peoples Services,"Head of Early Help, Inclusion and Vulnerable Children",085957,Secure Management,Supplies and Services,304259,Equipment and Materials,01-Jun-2018,000007436417175,VAX LTD,5722,Equipment-purchase and rental,9.99,1.67,8.32
Children and Young Peoples Services,Childrens Services Operational Support,052986,CYPS - Locality and Operational Support,Supplies and Services,324117,Provisions E324,01-Jun-2018,000007436417179,BESTWAY WHOLESALE,5451,Catering costs - provisions,14.78,0.00,14.78
Regeneration and Local Services,Direct Services,010301,C&G - North Grounds Maintenance,Third Party Payments 4THIRD,430100,Rendered by Private Contractors,01-Jun-2018,000007436417181,JOHN WARREN (ANIMAL BY,7399,Payments to sub-contractors,54.00,0.00,54.00
Regeneration and Local Services,Culture & Sport,011060,Hardwick Park Catering,Supplies and Services,324117,Provisions E324,01-Jun-2018,000007436417183,JR HOLLAND FOODSERVICE,5422,Catering costs - provisions,11.27,0.00,11.27
Regeneration and Local Services,Culture & Sport,054815,Gala Theatre Stage School,Supplies and Services,304999,Equipment and Materials,01-Jun-2018,000007436417193,BOOTS/0561,5912,Misc equipment tools and materials,6.75,0.00,6.75
Regeneration and Local Services,Culture & Sport,054815,Gala Theatre Stage School,Supplies and Services,384999,Miscellaneous Expenses,01-Jun-2018,000007436417195,SALLY SALON SERVIC,7230,Other expenses,10.36,0.00,10.36
Regeneration and Local Services,Direct Services,010525,Catering - Green Lane,Supplies and Services,324117,Provisions E324,01-Jun-2018,000007436417207,JR HOLLAND FOODSERVICE,5422,Catering costs - provisions,36.16,0.00,36.16
Children and Young Peoples Services,Head of Childrens Social Care,085352,Tow Law CU,Supplies and Services,324117,Provisions E324,01-Jun-2018,000007436417209,TESCO STORES 2916,5411,Catering costs - provisions,8.60,0.00,8.60
Children and Young Peoples Services,Head of Childrens Social Care,085623,Families First Bishop Auckland,Transport,235073,Public Transport,01-Jun-2018,000007436417221,GO NORTH EAST - V/T,4131,Travel-clients/students/children,110.00,0.00,110.00
Children and Young Peoples Services,"Head of Early Help, Inclusion and Vulnerable Children",088104,BA/BC/Crook 0-19 Targeted Family Support,Supplies and Services,324117,Provisions E324,01-Jun-2018,000007436417223,ASDA GEORGE COM LEEDS,5411,Catering costs - provisions,93.00,0.00,93.00
Regeneration and Local Services,Direct Services,010367,C&G - South Grounds Maintenance,Supplies and Services,304259,Equipment and Materials,01-Jun-2018,000007436417249,B & Q 1120,5211,Equipment-purchase and rental,40.00,0.00,40.00
Regeneration and Local Services,Direct Services,020073,Bldg Serv - R&M Div 73 - Gas Servicing,Supplies and Services,312009,Newspapers books and periodicals E312,01-Jun-2018,000007436417257,WWW.CORGI-DIRECT.COM,5211,Newspapers books and periodicals,-69.98,0.00,-69.98
Children and Young Peoples Services,Head of Childrens Social Care,085342,9 Cedar Drive Aycliffe,Supplies and Services,384999,Miscellaneous Expenses,01-Jun-2018,000007436417267,WAYFAIR.CO.UK,5965,Other expenses,125.99,21.00,104.99
Regeneration and Local Services,Economic Development and Housing,030692,Durham Dales Centre - Management and Admin,Supplies and Services,324117,Provisions E324,01-Jun-2018,000007436417281,JR HOLLAND FOODSERVICE,5422,Catering costs - provisions,39.97,0.00,39.97
Adult and Health Services,Head of Adults,055643,Hawthorn House LD Respite Unit,Supplies and Services,324117,Provisions E324,01-Jun-2018,000007436417293,JR HOLLAND FOODSERVICE,5422,Catering costs - provisions,117.16,0.00,117.16
Adult and Health Services,Head of Adults,055643,Hawthorn House LD Respite Unit,Supplies and Services,324117,Provisions E324,01-Jun-2018,000007436417295,JR HOLLAND FOODSERVICE,5422,Catering costs - provisions,17.10,0.00,17.10
Children and Young Peoples Services,"Head of Early Help, Inclusion and Vulnerable Children",085956,Lumley,Supplies and Services,324117,Provisions E324,01-Jun-2018,000007436417331,TESCO STORES 6329,5411,Catering costs - provisions,85.29,0.00,85.29
Children and Young Peoples Services,"Head of Early Help, Inclusion and Vulnerable Children",085962,Aycliffe Secure - Durham,Supplies and Services,384999,Miscellaneous Expenses,01-Jun-2018,000007436417333,WWW.THERANGE.CO.UK,5712,Other expenses,58.92,0.00,58.92
Regeneration and Local Services,Culture & Sport,054235,Bishop Auckland Town Hall Cafe,Supplies and Services,324117,Provisions E324,01-Jun-2018,000007436417337,JR HOLLAND FOODSERVICE,5422,Catering costs - provisions,41.65,0.00,41.65
Regeneration and Local Services,Direct Services,021324,Catering - Meadowfield,Supplies and Services,324117,Provisions E324,01-Jun-2018,000007436417343,JR HOLLAND FOODSERVICE,5422,Catering costs - provisions,32.04,0.00,32.04
Regeneration and Local Services,Direct Services,021324,Catering - Meadowfield,Supplies and Services,324117,Provisions E324,01-Jun-2018,000007436417345,JR HOLLAND FOODSERVICE,5422,Catering costs - provisions,13.89,0.00,13.89
Regeneration and Local Services,Culture & Sport,054820,Gala Theatre - Overheads,Supplies and Services,324117,Provisions E324,01-Jun-2018,000007436417381,TESCO STORES 6029,5411,Catering costs - provisions,13.50,0.00,13.50
Adult and Health Services,Head of Adults,055309,Peterlee Pathways,Supplies and Services,324117,Provisions E324,01-Jun-2018,000007436417463,LIDL UK PETERLEE,5411,Catering costs - provisions,1.99,0.00,1.99
Regeneration and Local Services,Spatial Policy Planning Assets & Environment,031200,North Pennines Core,Supplies and Services,340001,Postages E340,01-Jun-2018,000007436417481,THE POST OFFICE,9402,Postages,4.50,0.00,4.50
Regeneration and Local Services,Culture & Sport,011060,Hardwick Park Catering,Supplies and Services,324117,Provisions E324,01-Jun-2018,000007444341851,BATLEYS PERTH,5300,Catering costs - provisions,184.44,30.74,153.70
Regeneration and Local Services,Culture & Sport,011060,Hardwick Park Catering,Supplies and Services,324117,Provisions E324,01-Jun-2018,000007444341851 - 1,BATLEYS PERTH,5300,Catering costs - provisions,138.74,,138.74
Regeneration and Local Services,Culture & Sport,011060,Hardwick Park Catering,Supplies and Services,324117,Provisions E324,01-Jun-2018,000007444341857,BATLEYS PERTH,5300,Catering costs - provisions,15.12,2.52,12.60
Regeneration and Local Services,Culture & Sport,011060,Hardwick Park Catering,Supplies and Services,324117,Provisions E324,01-Jun-2018,000007444341857 - 1,BATLEYS PERTH,5300,Catering costs - provisions,44.06,,44.06
Regeneration and Local Services,Direct Services,010525,Catering - Green Lane,Supplies and Services,324117,Provisions E324,01-Jun-2018,000007444341913,BATLEYS PERTH,5300,Catering costs - provisions,49.50,8.25,41.25
Regeneration and Local Services,Direct Services,010525,Catering - Green Lane,Supplies and Services,324117,Provisions E324,01-Jun-2018,000007444341913 - 1,BATLEYS PERTH,5300,Catering costs - provisions,51.92,,51.92
Children and Young Peoples Services,Head of Childrens Social Care,085342,9 Cedar Drive Aycliffe,Supplies and Services,324117,Provisions E324,02-Jun-2018,000007436417069,TESCO STORES 2916,5411,Catering costs - provisions,54.54,0.00,54.54
Regeneration and Local Services,Economic Development and Housing,030699,Business Growth and Innovation General,Supplies and Services,312011,Newspapers books and periodicals E312,02-Jun-2018,000007436417073,FASTHOSTS INTERNET,4816,Books-school library,59.99,10.00,49.99
Children and Young Peoples Services,"Head of Early Help, Inclusion and Vulnerable Children",085957,Secure Management,Supplies and Services,312011,Newspapers books and periodicals E312,02-Jun-2018,000007436417169,Amazon UK Marketplace,5942,Books-school library,3.99,0.00,3.99
Children and Young Peoples Services,"Head of Early Help, Inclusion and Vulnerable Children",085957,Secure Management,Supplies and Services,312011,Newspapers books and periodicals E312,02-Jun-2018,000007436417171,Amazon UK Marketplace,5942,Books-school library,8.99,0.00,8.99
Regeneration and Local Services,Culture & Sport,054813,Gala Theatre - Technical,Supplies and Services,304259,Equipment and Materials,02-Jun-2018,000007436417177,Amazon Digital Video,5735,Equipment-purchase and rental,3.49,0.00,3.49
Regeneration and Local Services,Culture & Sport,054815,Gala Theatre Stage School,Supplies and Services,328041,Clothing uniforms and laundry E328,02-Jun-2018,000007436417197,CLAIRE`S ACCESSORIES,5699,Clothing uniforms and laundry,25.25,0.00,25.25
Children and Young Peoples Services,"Head of Early Help, Inclusion and Vulnerable Children",085954,Walworth,Supplies and Services,324117,Provisions E324,02-Jun-2018,000007436417335,TESCO STORES 6329,5411,Catering costs - provisions,89.99,0.00,89.99
Children and Young Peoples Services,Head of Childrens Social Care,085333,Coxhoe Satelite Home,Supplies and Services,328041,Clothing uniforms and laundry E328,02-Jun-2018,000007436417347,B&M RETAIL,5310,Clothing uniforms and laundry,71.24,0.00,71.24
Children and Young Peoples Services,Head of Childrens Social Care,085333,Coxhoe Satelite Home,Supplies and Services,328041,Clothing uniforms and laundry E328,02-Jun-2018,000007436417349,B&M RETAIL,5310,Clothing uniforms and laundry,12.96,0.00,12.96
Children and Young Peoples Services,Head of Childrens Social Care,085333,Coxhoe Satelite Home,Supplies and Services,324117,Provisions E324,02-Jun-2018,000007436417351,ALDI 11 774,5411,Catering costs - provisions,12.11,0.00,12.11
Regeneration and Local Services,Economic Development and Housing,031576,B& B - Temp Accom,Supplies and Services,364320,Grants to Voluntary Organisations,02-Jun-2018,000007436417363,PREMIER INN,3811,Accommodation assistance,132.00,0.00,132.00
Regeneration and Local Services,Economic Development and Housing,031576,B& B - Temp Accom,Supplies and Services,364320,Grants to Voluntary Organisations,02-Jun-2018,000007436417365,PREMIER INN,3811,Accommodation assistance,131.50,21.92,109.58
Regeneration and Local Services,Culture & Sport,054820,Gala Theatre - Overheads,Supplies and Services,324117,Provisions E324,02-Jun-2018,000007436417383,PIPERS,5411,Catering costs - provisions,18.40,0.00,18.40
Regeneration and Local Services,Culture & Sport,054820,Gala Theatre - Overheads,Supplies and Services,324117,Provisions E324,02-Jun-2018,000007436417385,TESCO STORES 6029,5411,Catering costs - provisions,5.60,0.00,5.60
Regeneration and Local Services,Culture & Sport,054820,Gala Theatre - Overheads,Supplies and Services,324117,Provisions E324,02-Jun-2018,000007436417387,TESCO STORES 6029,5411,Catering costs - provisions,3.00,0.00,3.00
Regeneration and Local Services,Economic Development and Housing,030699,Business Growth and Innovation General,Supplies and Services,304403,Equipment and Materials,03-Jun-2018,000007436417071,ADOBE CREATIVE CLOUD,5734,Other consumables,49.94,8.32,41.62
Children and Young Peoples Services,Head of Childrens Social Care,085333,Coxhoe Satelite Home,Supplies and Services,312011,Newspapers books and periodicals E312,03-Jun-2018,000007436417117,"Amazon Svcs Europe,SAR",5942,Books-school library,29.97,0.00,29.97
Children and Young Peoples Services,Head of Childrens Social Care,085352,Tow Law CU,Supplies and Services,384237,Miscellaneous Expenses,03-Jun-2018,000007436417141,WWW.ESCAPEDURHAM.CO.UK,7999,Recreational exps outings parties,65.00,0.00,65.00
Children and Young Peoples Services,Head of Childrens Social Care,085352,Tow Law CU,Supplies and Services,384237,Miscellaneous Expenses,03-Jun-2018,000007436417143,WWW.ESCAPEDURHAM.CO.UK,7999,Recreational exps outings parties,65.00,0.00,65.00
Children and Young Peoples Services,Childrens Services Operational Support,052986,CYPS - Locality and Operational Support,Supplies and Services,332047,Printing Stationery and Gen Off Exps,03-Jun-2018,000007436417225,AMAZON SVCS EU-UK AMAZ,5942,Stationery,14.48,0.00,14.48
Children and Young Peoples Services,Head of Childrens Social Care,085333,Coxhoe Satelite Home,Supplies and Services,328041,Clothing uniforms and laundry E328,03-Jun-2018,000007436417353,MATALAN,5691,Clothing uniforms and laundry,56.55,0.00,56.55
Children and Young Peoples Services,Head of Childrens Social Care,085333,Coxhoe Satelite Home,Supplies and Services,328041,Clothing uniforms and laundry E328,03-Jun-2018,000007436417355,B & M RETAIL,5310,Clothing uniforms and laundry,10.21,0.00,10.21
Children and Young Peoples Services,Head of Childrens Social Care,085333,Coxhoe Satelite Home,Supplies and Services,328041,Clothing uniforms and laundry E328,03-Jun-2018,000007436417357,B & M RETAIL,5310,Clothing uniforms and laundry,10.79,0.00,10.79
Children and Young Peoples Services,Head of Childrens Social Care,085333,Coxhoe Satelite Home,Supplies and Services,328041,Clothing uniforms and laundry E328,03-Jun-2018,000007436417359,B & M RETAIL,5310,Clothing uniforms and laundry,7.99,0.00,7.99
Children and Young Peoples Services,Head of Childrens Social Care,085333,Coxhoe Satelite Home,Supplies and Services,304259,Equipment and Materials,03-Jun-2018,000007436417361,SPORTSDIRECT 264,5941,Equipment-purchase and rental,91.03,0.00,91.03
Regeneration and Local Services,Technical Services,010984,Training and Development,Supplies and Services,312011,Newspapers books and periodicals E312,03-Jun-2018,000007436417379,Amazon EU,5969,Books-school library,84.59,0.00,84.59
Resources,Digital and Customer Services,069010,Administration,Supplies and Services,332047,Printing Stationery and Gen Off Exps,03-Jun-2018,000007436417451,Amazon UK Marketplace,5942,Stationery,69.93,0.00,69.93
Children and Young Peoples Services,Head of Childrens Social Care,085331,New Lea Childrens Home,Supplies and Services,332047,Printing Stationery and Gen Off Exps,03-Jun-2018,000007444342137,ODEON/BOOKIT,7832,Stationery,18.00,0.00,18.00
Regeneration and Local Services,Economic Development and Housing,030708,VCD - Marketing & Information,Supplies and Services,384199,Miscellaneous Expenses,04-Jun-2018,000007436417065,MAILCHIMP MONTHLY,5968,Other hired and contracted services,5.97,0.00,5.97
Regeneration and Local Services,Economic Development and Housing,031500,Housing Solutions - Core Team,Supplies and Services,364320,Grants to Voluntary Organisations,04-Jun-2018,000007444341575,TOAST LETTINGS,7011,Accommodation assistance,227.50,37.92,189.58
Regeneration and Local Services,Economic Development and Housing,031500,Housing Solutions - Core Team,Supplies and Services,364320,Grants to Voluntary Organisations,04-Jun-2018,000007444341579,TOAST LETTINGS,7011,Accommodation assistance,227.50,37.92,189.58
Children and Young Peoples Services,Head of Childrens Social Care,085342,9 Cedar Drive Aycliffe,Supplies and Services,328041,Clothing uniforms and laundry E328,04-Jun-2018,000007444341605,THE RANGE,5311,Clothing uniforms and laundry,49.96,0.00,49.96
Children and Young Peoples Services,Head of Childrens Social Care,085342,9 Cedar Drive Aycliffe,Supplies and Services,324117,Provisions E324,04-Jun-2018,000007444341607,TESCO STORES 2916,5411,Catering costs - provisions,14.25,0.00,14.25
Children and Young Peoples Services,Head of Childrens Social Care,085342,9 Cedar Drive Aycliffe,Supplies and Services,328041,Clothing uniforms and laundry E328,04-Jun-2018,000007444341611,NEXT 0513 STOCKTON TEE,5651,Clothing uniforms and laundry,91.05,0.00,91.05
Children and Young Peoples Services,Head of Childrens Social Care,085342,9 Cedar Drive Aycliffe,Supplies and Services,304999,Equipment and Materials,04-Jun-2018,000007444341613,SUPERDRUG STORES PLC,5912,Misc equipment tools and materials,3.16,0.00,3.16
Children and Young Peoples Services,Head of Childrens Social Care,085342,9 Cedar Drive Aycliffe,Supplies and Services,304259,Equipment and Materials,04-Jun-2018,000007444341615,SPORTSDIRECT 246,5941,Equipment-purchase and rental,64.99,0.00,64.99
Children and Young Peoples Services,Head of Childrens Social Care,085332,Middlestone Moor CU,Supplies and Services,324117,Provisions E324,04-Jun-2018,000007444341619,MR B?S MEAT MARKET,5422,Catering costs - provisions,22.50,0.00,22.50
Children and Young Peoples Services,Head of Childrens Social Care,085332,Middlestone Moor CU,Supplies and Services,312011,Newspapers books and periodicals E312,04-Jun-2018,000007444341623,HOME BARGAINS SPENNYMO,5251,Books-school library,8.88,1.48,7.40
Children and Young Peoples Services,Head of Childrens Social Care,085332,Middlestone Moor CU,Supplies and Services,312011,Newspapers books and periodicals E312,04-Jun-2018,000007444341623 - 1,HOME BARGAINS SPENNYMO,5251,Books-school library,9.95,,9.95
Children and Young Peoples Services,Head of Childrens Social Care,085332,Middlestone Moor CU,Supplies and Services,324117,Provisions E324,04-Jun-2018,000007444341625,ICELAND,5411,Catering costs - provisions,16.88,0.00,16.88
Regeneration and Local Services,Economic Development and Housing,030699,Business Growth and Innovation General,Supplies and Services,312011,Newspapers books and periodicals E312,04-Jun-2018,000007444341627,FASTHOSTS INTERNET,4816,Books-school library,6.34,1.06,5.28
Regeneration and Local Services,Direct Services,021242,Catering - County Hall,Supplies and Services,324117,Provisions E324,04-Jun-2018,000007444341665,WWW.ADELIEFOODS.CO.UK,5499,Catering costs - provisions,205.51,0.00,205.51
Regeneration and Local Services,Direct Services,021242,Catering - County Hall,Supplies and Services,324117,Provisions E324,04-Jun-2018,000007444341667,WWW.ADELIEFOODS.CO.UK,5499,Catering costs - provisions,155.06,0.00,155.06
Regeneration and Local Services,Direct Services,021242,Catering - County Hall,Supplies and Services,324117,Provisions E324,04-Jun-2018,000007444341669,WWW.ADELIEFOODS.CO.UK,5499,Catering costs - provisions,149.59,0.00,149.59
Regeneration and Local Services,Direct Services,021242,Catering - County Hall,Supplies and Services,324117,Provisions E324,04-Jun-2018,000007444341673,WWW.ADELIEFOODS.CO.UK,5499,Catering costs - provisions,126.39,0.00,126.39
Regeneration and Local Services,Direct Services,021242,Catering - County Hall,Supplies and Services,324117,Provisions E324,04-Jun-2018,000007444341675,FREEMAN CATERING BUTCH,5422,Catering costs - provisions,209.53,0.00,209.53
Regeneration and Local Services,Direct Services,021242,Catering - County Hall,Supplies and Services,324117,Provisions E324,04-Jun-2018,000007444341679,JR HOLLAND FOODSERVICE,5422,Catering costs - provisions,72.29,0.00,72.29
Regeneration and Local Services,Direct Services,021242,Catering - County Hall,Supplies and Services,324117,Provisions E324,04-Jun-2018,000007444341683,JR HOLLAND FOODSERVICE,5422,Catering costs - provisions,13.20,0.00,13.20
Children and Young Peoples Services,Head of Childrens Social Care,085650,Pre Birth Team,Supplies and Services,312009,Newspapers books and periodicals E312,04-Jun-2018,000007444341685,Amazon EU,5969,Newspapers books and periodicals,70.95,0.00,70.95
Children and Young Peoples Services,Head of Childrens Social Care,085650,Pre Birth Team,Supplies and Services,312009,Newspapers books and periodicals E312,04-Jun-2018,000007444341687,NSPCC PUBLICATIONS,8398,Newspapers books and periodicals,76.50,12.75,63.75
Regeneration and Local Services,Culture & Sport,054812,Gala Theatre - Catering etc,Supplies and Services,324117,Provisions E324,04-Jun-2018,000007444341695,FREEMAN CATERING BUTCH,5422,Catering costs - provisions,78.39,0.00,78.39
Regeneration and Local Services,Culture & Sport,054812,Gala Theatre - Catering etc,Supplies and Services,324117,Provisions E324,04-Jun-2018,000007444341699,FREEMAN CATERING BUTCH,5422,Catering costs - provisions,22.20,0.00,22.20
Regeneration and Local Services,Culture & Sport,054812,Gala Theatre - Catering etc,Supplies and Services,324117,Provisions E324,04-Jun-2018,000007444341701,JR HOLLAND FOODSERVICE,5422,Catering costs - provisions,28.07,0.00,28.07
Regeneration and Local Services,Economic Development and Housing,030725,Community Economic Development,Employees,040149,Recruitment Instruction and Training,04-Jun-2018,000007444341725,NESTOR C R A,8220,Training-all costs,44.00,0.00,44.00
Children and Young Peoples Services,Head of Childrens Social Care,085362,LAC & Permanence Team 2,Supplies and Services,384999,Miscellaneous Expenses,04-Jun-2018,000007444341729,GRO HM PASSPORT OFFICE,9399,Other expenses,9.25,0.00,9.25
Children and Young Peoples Services,Head of Education and Skills,071732,Dean Bank Childcare,Supplies and Services,324117,Provisions E324,04-Jun-2018,000007444341775,ASDA GROCERIES ONLINE,5411,Catering costs - provisions,72.73,0.00,72.73
Children and Young Peoples Services,Head of Education and Skills,071732,Dean Bank Childcare,Supplies and Services,324117,Provisions E324,04-Jun-2018,000007444341779,ASDA GROCERIES ONLINE,5411,Catering costs - provisions,48.23,0.00,48.23
Children and Young Peoples Services,Head of Education and Skills,071732,Dean Bank Childcare,Supplies and Services,324117,Provisions E324,04-Jun-2018,000007444341781,ASDA GROCERIES ONLINE,5411,Catering costs - provisions,-1.10,0.00,-1.10
Children and Young Peoples Services,Head of Education and Skills,071903,EYDCP-Sustainability EDS,Supplies and Services,312011,Newspapers books and periodicals E312,04-Jun-2018,000007444341809,Amazon UK Marketplace,5942,Books-school library,11.92,0.00,11.92
Regeneration and Local Services,Culture & Sport,011204,Events,Supplies and Services,324117,Provisions E324,04-Jun-2018,000007444341827,HERON FOODS LTD,5499,Catering costs - provisions,5.77,0.00,5.77
Children and Young Peoples Services,"Head of Early Help, Inclusion and Vulnerable Children",085957,Secure Management,Supplies and Services,342033,Computers and Communications,04-Jun-2018,000007444341831,VERY,5964,Computer hardware,48.99,0.00,48.99
Regeneration and Local Services,Culture & Sport,011060,Hardwick Park Catering,Supplies and Services,324117,Provisions E324,04-Jun-2018,000007444341841,FREEMAN CATERING BUTCH,5422,Catering costs - provisions,55.49,0.00,55.49
Regeneration and Local Services,Culture & Sport,011060,Hardwick Park Catering,Supplies and Services,324117,Provisions E324,04-Jun-2018,000007444341843,FREEMAN CATERING BUTCH,5422,Catering costs - provisions,30.90,0.00,30.90
Regeneration and Local Services,Culture & Sport,011060,Hardwick Park Catering,Supplies and Services,324117,Provisions E324,04-Jun-2018,000007444341847,JR HOLLAND FOODSERVICE,5422,Catering costs - provisions,38.77,0.00,38.77
Regeneration and Local Services,Culture & Sport,054815,Gala Theatre Stage School,Supplies and Services,312011,Newspapers books and periodicals E312,04-Jun-2018,000007444341877,Amazon UK Marketplace,5942,Books-school library,51.99,0.00,51.99
Regeneration and Local Services,Direct Services,021234,Catering - Locomotion,Supplies and Services,324117,Provisions E324,04-Jun-2018,000007444341881,WWW.ADELIEFOODS.CO.UK,5499,Catering costs - provisions,123.24,0.00,123.24
Regeneration and Local Services,Direct Services,021234,Catering - Locomotion,Supplies and Services,324117,Provisions E324,04-Jun-2018,000007444341885,WWW.ADELIEFOODS.CO.UK,5499,Catering costs - provisions,112.82,0.00,112.82
Regeneration and Local Services,Direct Services,021234,Catering - Locomotion,Supplies and Services,324117,Provisions E324,04-Jun-2018,000007444341887,WWW.ADELIEFOODS.CO.UK,5499,Catering costs - provisions,112.82,0.00,112.82
Regeneration and Local Services,Direct Services,021234,Catering - Locomotion,Supplies and Services,324117,Provisions E324,04-Jun-2018,000007444341891,FREEMAN CATERING BUTCH,5422,Catering costs - provisions,62.92,0.00,62.92
Regeneration and Local Services,Direct Services,021234,Catering - Locomotion,Supplies and Services,324117,Provisions E324,04-Jun-2018,000007444341895,JR HOLLAND FOODSERVICE,5422,Catering costs - provisions,28.46,0.00,28.46
Regeneration and Local Services,Direct Services,021234,Catering - Locomotion,Supplies and Services,324117,Provisions E324,04-Jun-2018,000007444341897,JR HOLLAND FOODSERVICE,5422,Catering costs - provisions,10.71,0.00,10.71
Regeneration and Local Services,Direct Services,010525,Catering - Green Lane,Supplies and Services,324117,Provisions E324,04-Jun-2018,000007444341903,WWW.ADELIEFOODS.CO.UK,5499,Catering costs - provisions,46.48,0.00,46.48
Regeneration and Local Services,Direct Services,010525,Catering - Green Lane,Supplies and Services,324117,Provisions E324,04-Jun-2018,000007444341905,WWW.ADELIEFOODS.CO.UK,5499,Catering costs - provisions,42.75,0.00,42.75
Regeneration and Local Services,Direct Services,010525,Catering - Green Lane,Supplies and Services,324117,Provisions E324,04-Jun-2018,000007444341909,FREEMAN CATERING BUTCH,5422,Catering costs - provisions,46.64,0.00,46.64
Regeneration and Local Services,Direct Services,010525,Catering - Green Lane,Supplies and Services,324117,Provisions E324,04-Jun-2018,000007444341911,FREEMAN CATERING BUTCH,5422,Catering costs - provisions,14.40,0.00,14.40
Children and Young Peoples Services,Head of Childrens Social Care,085352,Tow Law CU,Transport,235057,Public Transport,04-Jun-2018,000007444341921,NORTHERN RAIL LTD-,4112,Staff travelling,25.40,0.00,25.40
Regeneration and Local Services,Direct Services,010367,C&G - South Grounds Maintenance,Supplies and Services,304221,Equipment and Materials,04-Jun-2018,000007444341989,PLUMB CENTER WJB,1711,Direct materials,20.00,3.33,16.67
Adult and Health Services,Head of Adults,055643,Hawthorn House LD Respite Unit,Supplies and Services,324117,Provisions E324,04-Jun-2018,000007444342027,FREEMAN CATERING BUTCH,5422,Catering costs - provisions,38.64,0.00,38.64
Children and Young Peoples Services,"Head of Early Help, Inclusion and Vulnerable Children",074000,TTF-Attachment and Results,Transfer Payments,525033,Other,04-Jun-2018,000007444342047,MAGUIRE TA LTD,5713,Grants to individuals,150.00,0.00,150.00
Children and Young Peoples Services,"Head of Early Help, Inclusion and Vulnerable Children",085965,Barnard,Supplies and Services,384999,Miscellaneous Expenses,04-Jun-2018,000007444342053,BARBER BLADES,7230,Other expenses,165.00,27.50,137.50
Children and Young Peoples Services,"Head of Early Help, Inclusion and Vulnerable Children",085957,Secure Management,Supplies and Services,304245,Equipment and Materials,04-Jun-2018,000007444342055,SCREWFIX DIRECT,5211,Materials,40.94,6.82,34.12
Children and Young Peoples Services,"Head of Early Help, Inclusion and Vulnerable Children",085952,Secure Education,Supplies and Services,324117,Provisions E324,04-Jun-2018,000007444342059,TESCO STORES 6329,5411,Catering costs - provisions,126.05,0.00,126.05
Children and Young Peoples Services,Head of Childrens Social Care,085100,Strategic Manager Families First Area South,Supplies and Services,384199,Miscellaneous Expenses,04-Jun-2018,000007444342075,DARLINGTON BC INTERNET,9399,Other hired and contracted services,12.00,0.00,12.00
Children and Young Peoples Services,Head of Childrens Social Care,085351,Framwellgate Moor CU,Supplies and Services,324117,Provisions E324,04-Jun-2018,000007444342079,TESCO DELIVERY SAVER1,5411,Catering costs - provisions,3.49,0.00,3.49
Regeneration and Local Services,Direct Services,021324,Catering - Meadowfield,Supplies and Services,324117,Provisions E324,04-Jun-2018,000007444342083,FREEMAN CATERING BUTCH,5422,Catering costs - provisions,69.77,0.00,69.77
Regeneration and Local Services,Direct Services,010301,C&G - North Grounds Maintenance,Third Party Payments 4THIRD,430100,Rendered by Private Contractors,04-Jun-2018,000007444342093,JOHN WARREN (ANIMAL BY,7399,Payments to sub-contractors,10.80,0.00,10.80
Regeneration and Local Services,Culture & Sport,010593,Shildon Leisure Centre - General,Employees,040149,Recruitment Instruction and Training,04-Jun-2018,000007444342117,WWW.FILMBANK.CO.UK,7829,Training-all costs,106.75,17.79,88.96
Adult and Health Services,Head of Adults,055306,Spennymoor Pathways,Supplies and Services,324117,Provisions E324,04-Jun-2018,000007444342151,ASDA SUPERSTORE 4987,5411,Catering costs - provisions,4.39,0.00,4.39
Regeneration and Local Services,Direct Services,021235,Catering - Wharton Park,Supplies and Services,324117,Provisions E324,04-Jun-2018,000007444342153,JR HOLLAND FOODSERVICE,5422,Catering costs - provisions,22.27,0.00,22.27
Regeneration and Local Services,Direct Services,021235,Catering - Wharton Park,Supplies and Services,324117,Provisions E324,04-Jun-2018,000007444342157,JR HOLLAND FOODSERVICE,5422,Catering costs - provisions,4.65,0.00,4.65
Regeneration and Local Services,Economic Development and Housing,030553,Europe Direct Scheme,Supplies and Services,384926,Miscellaneous Expenses,04-Jun-2018,000007444342195,GO METRO GARE DU MIDI,4789,International visits,1.84,0.00,1.84
Children and Young Peoples Services,Childrens Services Operational Support,052986,CYPS - Locality and Operational Support,Supplies and Services,328041,Clothing uniforms and laundry E328,04-Jun-2018,000007444342201,ARGOS RETAIL GROUP,5310,Clothing uniforms and laundry,41.98,0.00,41.98
Regeneration and Local Services,Economic Development and Housing,030699,Business Growth and Innovation General,Supplies and Services,304403,Equipment and Materials,04-Jun-2018,000007448190211,MEETEDGAR MONTHLY,5734,Other consumables,36.85,0.00,36.85
Regeneration and Local Services,Culture & Sport,054812,Gala Theatre - Catering etc,Supplies and Services,324117,Provisions E324,04-Jun-2018,000007453062327,BATLEYS PERTH,5300,Catering costs - provisions,143.76,23.96,119.80
Regeneration and Local Services,Culture & Sport,054812,Gala Theatre - Catering etc,Supplies and Services,324117,Provisions E324,04-Jun-2018,000007453062327 - 1,BATLEYS PERTH,5300,Catering costs - provisions,64.88,,64.88
Regeneration and Local Services,Direct Services,021235,Catering - Wharton Park,Supplies and Services,324117,Provisions E324,04-Jun-2018,000007453062667,BATLEYS PERTH,5300,Catering costs - provisions,272.88,45.48,227.40
Regeneration and Local Services,Direct Services,021235,Catering - Wharton Park,Supplies and Services,324117,Provisions E324,04-Jun-2018,000007453062667 - 1,BATLEYS PERTH,5300,Catering costs - provisions,22.45,,22.45
Regeneration and Local Services,Economic Development and Housing,030553,Europe Direct Scheme,Supplies and Services,384926,Miscellaneous Expenses,05-Jun-2018,000007444342197,GO METRO GARE DU MIDI,4789,International visits,0.05,0.00,0.05
Children and Young Peoples Services,Head of Education and Skills,071801,Selby Cottage Childcare Centre,Supplies and Services,324117,Provisions E324,05-Jun-2018,000007448190087,TESCO STORES 2278,5411,Catering costs - provisions,9.00,0.00,9.00
Resources,Digital and Customer Services,065487,ICT Telephony Recharges,Supplies and Services,344033,Telephones,05-Jun-2018,000007448190107,Amazon UK Marketplace,5942,Telephones general-all costs,107.50,0.00,107.50
Resources,Digital and Customer Services,065481,Technical Services,Supplies and Services,304335,Equipment and Materials,05-Jun-2018,000007448190111,PAYPAL SLIM DAPPER,7392,ICT supplies etc,42.55,0.00,42.55
Regeneration and Local Services,Economic Development and Housing,031500,Housing Solutions - Core Team,Supplies and Services,364320,Grants to Voluntary Organisations,05-Jun-2018,000007448190143,AMRP LEISURE LTD,5813,Accommodation assistance,103.50,0.00,103.50
Adult and Health Services,Head of Adults,055302,Durham Pathways,Supplies and Services,304259,Equipment and Materials,05-Jun-2018,000007448190183,WILKO DURHAM 426,5722,Equipment-purchase and rental,12.05,2.01,10.04
Children and Young Peoples Services,Head of Childrens Social Care,085332,Middlestone Moor CU,Supplies and Services,324117,Provisions E324,05-Jun-2018,000007448190205,SAINSBURYS 2199,5411,Catering costs - provisions,44.42,0.00,44.42
Regeneration and Local Services,Direct Services,021242,Catering - County Hall,Supplies and Services,324117,Provisions E324,05-Jun-2018,000007448190269,JR HOLLAND FOODSERVICE,5422,Catering costs - provisions,110.83,0.00,110.83
Regeneration and Local Services,Direct Services,021242,Catering - County Hall,Supplies and Services,324117,Provisions E324,05-Jun-2018,000007448190271,JR HOLLAND FOODSERVICE,5422,Catering costs - provisions,13.20,0.00,13.20
Regeneration and Local Services,Direct Services,021242,Catering - County Hall,Supplies and Services,324117,Provisions E324,05-Jun-2018,000007448190273,JR HOLLAND FOODSERVICE,5422,Catering costs - provisions,4.50,0.00,4.50
Regeneration and Local Services,Direct Services,021242,Catering - County Hall,Supplies and Services,324117,Provisions E324,05-Jun-2018,000007448190277,JR HOLLAND FOODSERVICE,5422,Catering costs - provisions,3.40,0.00,3.40
Children and Young Peoples Services,Head of Childrens Social Care,085650,Pre Birth Team,Supplies and Services,312009,Newspapers books and periodicals E312,05-Jun-2018,000007448190281,CAPT CHARITY,5734,Newspapers books and periodicals,37.25,0.00,37.25
Children and Young Peoples Services,Head of Childrens Social Care,085650,Pre Birth Team,Supplies and Services,312009,Newspapers books and periodicals E312,05-Jun-2018,000007448190285,THE FAMILY PLANNING AS,2741,Newspapers books and periodicals,13.98,0.00,13.98
Children and Young Peoples Services,Head of Childrens Social Care,085361,LAC & Permanence Team 1,Supplies and Services,384999,Miscellaneous Expenses,05-Jun-2018,000007448190319,GRO HM PASSPORT OFFICE,9399,Other expenses,9.25,0.00,9.25
Children and Young Peoples Services,Head of Childrens Social Care,085334,West Rainton Satelite Home,Supplies and Services,304259,Equipment and Materials,05-Jun-2018,000007448190345,B & Q 1343,5211,Equipment-purchase and rental,35.00,0.00,35.00
Children and Young Peoples Services,Head of Childrens Social Care,085334,West Rainton Satelite Home,Supplies and Services,312011,Newspapers books and periodicals E312,05-Jun-2018,000007448190347,HOME BARGAINS,5251,Books-school library,13.16,0.00,13.16
Children and Young Peoples Services,Head of Childrens Social Care,085334,West Rainton Satelite Home,Supplies and Services,328041,Clothing uniforms and laundry E328,05-Jun-2018,000007448190351,T K MAXX,5331,Clothing uniforms and laundry,36.98,0.00,36.98
Children and Young Peoples Services,Head of Childrens Social Care,085334,West Rainton Satelite Home,Supplies and Services,324117,Provisions E324,05-Jun-2018,000007448190353,TESCO STORES 2371,5411,Catering costs - provisions,34.98,0.00,34.98
Children and Young Peoples Services,Head of Childrens Social Care,085334,West Rainton Satelite Home,Supplies and Services,324117,Provisions E324,05-Jun-2018,000007448190355,TESCO STORES 2371,5411,Catering costs - provisions,10.00,0.00,10.00
Children and Young Peoples Services,Head of Childrens Social Care,085334,West Rainton Satelite Home,Supplies and Services,324117,Provisions E324,05-Jun-2018,000007448190359,ALDI 12 774,5411,Catering costs - provisions,115.53,0.00,115.53
Regeneration and Local Services,Direct Services,010900,Fleet - Meadowfield Fleet,Transport,215013,Running Costs of Vehicles,05-Jun-2018,000007448190365,DVLA VEHICLE TAX,9399,Vehicle Excise Duty (VED),122.50,0.00,122.50
Children and Young Peoples Services,"Head of Early Help, Inclusion and Vulnerable Children",071491,Childrens Resilience Service,Supplies and Services,324117,Provisions E324,05-Jun-2018,000007448190371,HOME BARGAINS SPENNYMO,5251,Catering costs - provisions,48.75,0.00,48.75
Children and Young Peoples Services,Head of Education and Skills,071732,Dean Bank Childcare,Supplies and Services,328041,Clothing uniforms and laundry E328,05-Jun-2018,000007448190389,B & M RETAIL,5310,Clothing uniforms and laundry,105.58,0.00,105.58
Children and Young Peoples Services,Head of Childrens Social Care,085341,High Etherley Satelite Home,Supplies and Services,324117,Provisions E324,05-Jun-2018,000007448190395,TESCO STORES 6329,5411,Catering costs - provisions,134.50,0.00,134.50
Resources,Legal & Democratic Services,069540,Charter Trust,Supplies and Services,384071,Miscellaneous Expenses,05-Jun-2018,000007448190449,RICHARDSON DESIGNS LTD,5941,Departmental hospitality,42.77,7.13,35.64
Children and Young Peoples Services,Head of Education and Skills,071903,EYDCP-Sustainability EDS,Supplies and Services,312011,Newspapers books and periodicals E312,05-Jun-2018,000007448190479,Amazon UK Marketplace,5942,Books-school library,14.08,0.00,14.08
Children and Young Peoples Services,Head of Education and Skills,071903,EYDCP-Sustainability EDS,Supplies and Services,312011,Newspapers books and periodicals E312,05-Jun-2018,000007448190481,Amazon EU,5969,Books-school library,19.98,3.33,16.65
Regeneration and Local Services,Economic Development and Housing,030737,Durham Works Flexible Fund,Supplies and Services,304221,Equipment and Materials,05-Jun-2018,000007448190497,MACHINE MART WEB,7394,Direct materials,-32.99,0.00,-32.99
Children and Young Peoples Services,"Head of Early Help, Inclusion and Vulnerable Children",085957,Secure Management,Supplies and Services,342033,Computers and Communications,05-Jun-2018,000007448190509,VERY,5964,Computer hardware,78.99,0.00,78.99
Children and Young Peoples Services,"Head of Early Help, Inclusion and Vulnerable Children",085957,Secure Management,Supplies and Services,304999,Equipment and Materials,05-Jun-2018,000007448190511,TESCO DELIVERY SAVER2,5968,Misc equipment tools and materials,6.99,0.00,6.99
Regeneration and Local Services,Spatial Policy Planning Assets & Environment,031222,North Pennines Allen Valleys Landscape Partnership,Supplies and Services,348037,Subsistence E348,05-Jun-2018,000007448190517,GRAPE AND BEAN,5813,Subsistence,3.95,0.00,3.95
Regeneration and Local Services,Culture & Sport,011060,Hardwick Park Catering,Supplies and Services,324117,Provisions E324,05-Jun-2018,000007448190523,JR HOLLAND FOODSERVICE,5422,Catering costs - provisions,10.10,0.00,10.10
Regeneration and Local Services,Spatial Policy Planning Assets & Environment,031200,North Pennines Core,Supplies and Services,348037,Subsistence E348,05-Jun-2018,000007448190539,CAFE VISITORS CENTRE,5813,Subsistence,24.00,0.00,24.00
Regeneration and Local Services,Economic Development and Housing,031581,Prevention Fund,Supplies and Services,384999,Miscellaneous Expenses,05-Jun-2018,000007448190557,WWW.VOUCHEREXPRESS.CO.,5947,Other expenses,70.00,0.00,70.00
Regeneration and Local Services,Direct Services,010525,Catering - Green Lane,Supplies and Services,324117,Provisions E324,05-Jun-2018,000007448190579,JR HOLLAND FOODSERVICE,5422,Catering costs - provisions,15.07,0.00,15.07
Regeneration and Local Services,Direct Services,010367,C&G - South Grounds Maintenance,Supplies and Services,304259,Equipment and Materials,05-Jun-2018,000007448190603,B & Q 1120,5211,Equipment-purchase and rental,40.00,0.00,40.00
Regeneration and Local Services,Direct Services,010367,C&G - South Grounds Maintenance,Supplies and Services,304259,Equipment and Materials,05-Jun-2018,000007448190605,B & Q 1120,5211,Equipment-purchase and rental,-40.00,0.00,-40.00
Children and Young Peoples Services,Head of Childrens Social Care,085334,West Rainton Satelite Home,Supplies and Services,312011,Newspapers books and periodicals E312,05-Jun-2018,000007448190631,Amazon UK Marketplace,5942,Books-school library,17.99,0.00,17.99
Children and Young Peoples Services,Head of Childrens Social Care,085333,Coxhoe Satelite Home,Supplies and Services,324117,Provisions E324,05-Jun-2018,000007448190663,TESCO STORES 2916,5411,Catering costs - provisions,32.39,0.00,32.39
Resources,Resources Management,069000,Resources Management,Supplies and Services,324117,Provisions E324,05-Jun-2018,000007448190667,CO-OP GROUP 010830,5411,Catering costs - provisions,4.94,0.00,4.94
Adult and Health Services,Head of Adults,055301,Stanley Pathways,Supplies and Services,308011,Furniture,05-Jun-2018,000007448190679,POUNDSTRETCHER 354,5714,Furniture repair and replacement,10.10,0.00,10.10
Regeneration and Local Services,Economic Development and Housing,030692,Durham Dales Centre - Management and Admin,Supplies and Services,324117,Provisions E324,05-Jun-2018,000007448190693,JR HOLLAND FOODSERVICE,5422,Catering costs - provisions,53.97,0.00,53.97
Regeneration and Local Services,Economic Development and Housing,030692,Durham Dales Centre - Management and Admin,Supplies and Services,324117,Provisions E324,05-Jun-2018,000007448190697,JR HOLLAND FOODSERVICE,5422,Catering costs - provisions,38.34,0.00,38.34
Regeneration and Local Services,Economic Development and Housing,030692,Durham Dales Centre - Management and Admin,Supplies and Services,324117,Provisions E324,05-Jun-2018,000007448190701,JR HOLLAND FOODSERVICE,5422,Catering costs - provisions,19.61,0.00,19.61
Adult and Health Services,Head of Adults,055643,Hawthorn House LD Respite Unit,Supplies and Services,324117,Provisions E324,05-Jun-2018,000007448190725,JR HOLLAND FOODSERVICE,5422,Catering costs - provisions,31.14,0.00,31.14
Adult and Health Services,Head of Adults,055643,Hawthorn House LD Respite Unit,Supplies and Services,324117,Provisions E324,05-Jun-2018,000007448190729,JR HOLLAND FOODSERVICE,5422,Catering costs - provisions,10.27,0.00,10.27
Regeneration and Local Services,Culture & Sport,054399,Local Delivery-Libraries,Supplies and Services,312009,Newspapers books and periodicals E312,05-Jun-2018,000007448190737,Amazon EU,5969,Newspapers books and periodicals,18.47,0.00,18.47
Regeneration and Local Services,Direct Services,010301,C&G - North Grounds Maintenance,Supplies and Services,324117,Provisions E324,05-Jun-2018,000007448190767,J VAN VLIET GATESHEAD,5399,Catering costs - provisions,227.52,0.00,227.52
Resources,Digital and Customer Services,065335,School Services - Implementations,Supplies and Services,304639,Equipment and Materials,05-Jun-2018,000007448190787,Amazon UK Marketplace,5942,Technicians-supplies,5.99,1.00,4.99
Children and Young Peoples Services,"Head of Early Help, Inclusion and Vulnerable Children",085962,Aycliffe Secure - Durham,Supplies and Services,324117,Provisions E324,05-Jun-2018,000007448190793,TESCO STORES 6329,5411,Catering costs - provisions,154.46,0.00,154.46
Children and Young Peoples Services,Head of Childrens Social Care,085351,Framwellgate Moor CU,Supplies and Services,324117,Provisions E324,05-Jun-2018,000007448190803,TESCO STORES 2371,5411,Catering costs - provisions,104.25,0.00,104.25
Regeneration and Local Services,Culture & Sport,054235,Bishop Auckland Town Hall Cafe,Supplies and Services,324117,Provisions E324,05-Jun-2018,000007448190811,JR HOLLAND FOODSERVICE,5422,Catering costs - provisions,15.50,0.00,15.50
Regeneration and Local Services,Culture & Sport,026591,Hardwick Park,Supplies and Services,384871,Miscellaneous Expenses,05-Jun-2018,000007448190815,WILKO.COM,5399,Training-other activities,18.00,3.00,15.00
Regeneration and Local Services,Culture & Sport,011060,Hardwick Park Catering,Supplies and Services,304083,Equipment and Materials,05-Jun-2018,000007448190819,WWW.NISBETS.COM,5964,Catering equipment,98.74,16.46,82.28
Regeneration and Local Services,Direct Services,021324,Catering - Meadowfield,Supplies and Services,324117,Provisions E324,05-Jun-2018,000007448190827,JR HOLLAND FOODSERVICE,5422,Catering costs - provisions,35.84,0.00,35.84
Regeneration and Local Services,Direct Services,021324,Catering - Meadowfield,Supplies and Services,324117,Provisions E324,05-Jun-2018,000007448190829,JR HOLLAND FOODSERVICE,5422,Catering costs - provisions,9.90,0.00,9.90
Regeneration and Local Services,Direct Services,010301,C&G - North Grounds Maintenance,Supplies and Services,328041,Clothing uniforms and laundry E328,05-Jun-2018,000007448190837,SAFETYSUPPL,5311,Clothing uniforms and laundry,76.98,12.83,64.15
Adult and Health Services,Head of Adults,055302,Durham Pathways,Supplies and Services,304403,Equipment and Materials,05-Jun-2018,000007448190905,ARGOS RETAIL GROUP,5310,Other consumables,10.99,0.00,10.99
Children and Young Peoples Services,Head of Childrens Social Care,085100,Strategic Manager Families First Area South,Supplies and Services,384199,Miscellaneous Expenses,05-Jun-2018,000007448190913,SUNDERLAND CC,9399,Other hired and contracted services,30.00,0.00,30.00
Regeneration and Local Services,Spatial Policy Planning Assets & Environment,031115,Business Energy Efficiency Project (BEEP),Supplies and Services,372009,Subscriptions E372,05-Jun-2018,000007448190917,WWW.PARAGON.NET.UK RT,5968,Subscriptions 372009,84.96,14.16,70.80
Regeneration and Local Services,Culture & Sport,011061,Structural Maintenance,Supplies and Services,384199,Miscellaneous Expenses,05-Jun-2018,000007448190919,LOVE2SHOP.CO.UK,8641,Other hired and contracted services,11.50,0.00,11.50
Resources,Legal & Democratic Services,067910,Democratic Representation,Supplies and Services,372009,Subscriptions E372,05-Jun-2018,000007448190921,WWW.ICO.GOV.UK,9399,Subscriptions 372009,40.00,0.00,40.00
Resources,Legal & Democratic Services,067910,Democratic Representation,Supplies and Services,372009,Subscriptions E372,05-Jun-2018,000007448190923,WWW.ICO.GOV.UK,9399,Subscriptions 372009,40.00,0.00,40.00
Children and Young Peoples Services,Head of Childrens Social Care,085363,LAC & Permanence Team 3,Supplies and Services,304259,Equipment and Materials,05-Jun-2018,000007448190973,HM PASSPORT OFFICE,9399,Equipment-purchase and rental,49.00,0.00,49.00
Regeneration and Local Services,Spatial Policy Planning Assets & Environment,031200,North Pennines Core,Supplies and Services,304403,Equipment and Materials,05-Jun-2018,000007448191039,TIMPSON LTD,7251,Other consumables,46.50,0.00,46.50
Regeneration and Local Services,Economic Development and Housing,030749,Employability - Youth Contract,Supplies and Services,384999,Miscellaneous Expenses,05-Jun-2018,000007448191043,AYCLIFFE FRAMERS AND E,5970,Other expenses,5.00,0.00,5.00
Children and Young Peoples Services,Childrens Services Operational Support,052986,CYPS - Locality and Operational Support,Supplies and Services,324117,Provisions E324,05-Jun-2018,000007448191055,THORNTONS LTD,5441,Catering costs - provisions,50.00,0.00,50.00
Regeneration and Local Services,Direct Services,021242,Catering - County Hall,Supplies and Services,324117,Provisions E324,05-Jun-2018,000007453062321,BATLEYS PERTH,5300,Catering costs - provisions,158.70,26.45,132.25
Regeneration and Local Services,Direct Services,021242,Catering - County Hall,Supplies and Services,324117,Provisions E324,05-Jun-2018,000007453062321 - 1,BATLEYS PERTH,5300,Catering costs - provisions,32.57,,32.57
Regeneration and Local Services,Direct Services,021242,Catering - County Hall,Supplies and Services,324117,Provisions E324,05-Jun-2018,000007453062323,BATLEYS PERTH,5300,Catering costs - provisions,102.48,17.08,85.40
Regeneration and Local Services,Direct Services,021242,Catering - County Hall,Supplies and Services,324117,Provisions E324,05-Jun-2018,000007453062323 - 1,BATLEYS PERTH,5300,Catering costs - provisions,0.04,,0.04
Children and Young Peoples Services,Head of Education and Skills,071732,Dean Bank Childcare,Supplies and Services,312011,Newspapers books and periodicals E312,05-Jun-2018,000007453062379,AMAZON SVCS EU-UK AMAZ,5942,Books-school library,37.98,0.00,37.98
Regeneration and Local Services,Culture & Sport,054813,Gala Theatre - Technical,Supplies and Services,340001,Postages E340,05-Jun-2018,000007453062409,THE POST OFFICE,9402,Postages,33.36,0.00,33.36
Regeneration and Local Services,Culture & Sport,011060,Hardwick Park Catering,Supplies and Services,324117,Provisions E324,05-Jun-2018,000007453062445,BATLEYS PERTH,5300,Catering costs - provisions,284.16,47.36,236.80
Regeneration and Local Services,Culture & Sport,011060,Hardwick Park Catering,Supplies and Services,324117,Provisions E324,05-Jun-2018,000007453062445 - 1,BATLEYS PERTH,5300,Catering costs - provisions,161.51,,161.51
Regeneration and Local Services,Direct Services,021234,Catering - Locomotion,Supplies and Services,324117,Provisions E324,05-Jun-2018,000007453062453,BATLEYS PERTH,5300,Catering costs - provisions,221.52,36.92,184.60
Regeneration and Local Services,Direct Services,021234,Catering - Locomotion,Supplies and Services,324117,Provisions E324,05-Jun-2018,000007453062453 - 1,BATLEYS PERTH,5300,Catering costs - provisions,60.31,,60.31
Regeneration and Local Services,Direct Services,010525,Catering - Green Lane,Supplies and Services,324117,Provisions E324,05-Jun-2018,000007453062471,BATLEYS PERTH,5300,Catering costs - provisions,63.66,10.61,53.05
Regeneration and Local Services,Direct Services,010525,Catering - Green Lane,Supplies and Services,324117,Provisions E324,05-Jun-2018,000007453062471 - 1,BATLEYS PERTH,5300,Catering costs - provisions,20.96,,20.96
Regeneration and Local Services,Economic Development and Housing,031576,B& B - Temp Accom,Supplies and Services,364320,Grants to Voluntary Organisations,05-Jun-2018,000007453062531,PREMIER INN,3811,Accommodation assistance,383.50,63.92,319.58
Children and Young Peoples Services,"Head of Early Help, Inclusion and Vulnerable Children",074000,TTF-Attachment and Results,Transfer Payments,525033,Other,05-Jun-2018,000007453062549,J DODDS CARPETS LTD,5713,Grants to individuals,105.00,17.50,87.50
Children and Young Peoples Services,"Head of Early Help, Inclusion and Vulnerable Children",074000,TTF-Attachment and Results,Transfer Payments,525033,Other,05-Jun-2018,000007453062549 - 1,J DODDS CARPETS LTD,5713,Grants to individuals,45.00,,45.00
Regeneration and Local Services,Culture & Sport,054235,Bishop Auckland Town Hall Cafe,Supplies and Services,324117,Provisions E324,05-Jun-2018,000007453062571,BATLEYS PERTH,5300,Catering costs - provisions,18.24,3.04,15.20
Regeneration and Local Services,Culture & Sport,054235,Bishop Auckland Town Hall Cafe,Supplies and Services,324117,Provisions E324,05-Jun-2018,000007453062571 - 1,BATLEYS PERTH,5300,Catering costs - provisions,62.26,,62.26
Regeneration and Local Services,Direct Services,021324,Catering - Meadowfield,Supplies and Services,324117,Provisions E324,05-Jun-2018,000007453062581,BATLEYS PERTH,5300,Catering costs - provisions,37.98,6.33,31.65
Regeneration and Local Services,Direct Services,021324,Catering - Meadowfield,Supplies and Services,324117,Provisions E324,05-Jun-2018,000007453062581 - 1,BATLEYS PERTH,5300,Catering costs - provisions,90.93,,90.93
Resources,Digital and Customer Services,065481,Technical Services,Supplies and Services,304335,Equipment and Materials,06-Jun-2018,000007448190115,PAYPAL SLIM DAPPER,7392,ICT supplies etc,1.17,0.00,1.17
Regeneration and Local Services,Economic Development and Housing,030699,Business Growth and Innovation General,Supplies and Services,304403,Equipment and Materials,06-Jun-2018,000007448190215,MEETEDGAR MONTHLY,5734,Other consumables,1.01,0.00,1.01
Regeneration and Local Services,Direct Services,021242,Catering - County Hall,Supplies and Services,324117,Provisions E324,06-Jun-2018,000007453062233,ICELAND,5411,Catering costs - provisions,23.10,0.00,23.10
Children and Young Peoples Services,Head of Education and Skills,071801,Selby Cottage Childcare Centre,Supplies and Services,324117,Provisions E324,06-Jun-2018,000007453062243,ASDA GROCERIES ONLINE,5411,Catering costs - provisions,71.64,0.00,71.64
Regeneration and Local Services,Direct Services,010383,C&G - South Street Cleansing,Supplies and Services,304259,Equipment and Materials,06-Jun-2018,000007453062257,S&A BUILDERS MERCHANTS,5211,Equipment-purchase and rental,43.73,7.29,36.44
Regeneration and Local Services,Direct Services,010383,C&G - South Street Cleansing,Supplies and Services,304259,Equipment and Materials,06-Jun-2018,000007453062259,S&A BUILDERS MERCHANTS,5211,Equipment-purchase and rental,11.08,1.85,9.23
Children and Young Peoples Services,Head of Childrens Social Care,085342,9 Cedar Drive Aycliffe,Supplies and Services,348037,Subsistence E348,06-Jun-2018,000007453062267,MANGOBEAN DARLINGTON,5812,Subsistence,5.90,0.00,5.90
Children and Young Peoples Services,Head of Childrens Social Care,085342,9 Cedar Drive Aycliffe,Supplies and Services,332047,Printing Stationery and Gen Off Exps,06-Jun-2018,000007453062269,VUE BSL SITE,7832,Stationery,5.09,0.00,5.09
Children and Young Peoples Services,Head of Childrens Social Care,085342,9 Cedar Drive Aycliffe,Supplies and Services,332047,Printing Stationery and Gen Off Exps,06-Jun-2018,000007453062271,VUE BSL SITE,7832,Stationery,4.99,0.00,4.99
Dedicated Schools Grant,DSG High Needs Block,079052,Part Sighted-Belmont Comp,Supplies and Services,372009,Subscriptions E372,06-Jun-2018,000007453062273,R-COMP,5734,Subscriptions 372009,183.00,0.00,183.00
Children and Young Peoples Services,Head of Childrens Social Care,085332,Middlestone Moor CU,Supplies and Services,324117,Provisions E324,06-Jun-2018,000007453062279,ASDA SUPERSTORE 4987,5411,Catering costs - provisions,32.62,0.00,32.62
Children and Young Peoples Services,Head of Childrens Social Care,085342,9 Cedar Drive Aycliffe,Supplies and Services,312011,Newspapers books and periodicals E312,06-Jun-2018,000007453062281,Amazon UK Marketplace,5942,Books-school library,17.98,0.00,17.98
Regeneration and Local Services,Direct Services,021242,Catering - County Hall,Supplies and Services,324117,Provisions E324,06-Jun-2018,000007453062295,JR HOLLAND FOODSERVICE,5422,Catering costs - provisions,143.94,0.00,143.94
Regeneration and Local Services,Direct Services,021242,Catering - County Hall,Supplies and Services,324117,Provisions E324,06-Jun-2018,000007453062297,JR HOLLAND FOODSERVICE,5422,Catering costs - provisions,129.13,0.00,129.13
Regeneration and Local Services,Direct Services,021242,Catering - County Hall,Supplies and Services,324117,Provisions E324,06-Jun-2018,000007453062299,JR HOLLAND FOODSERVICE,5422,Catering costs - provisions,60.57,0.00,60.57
Regeneration and Local Services,Direct Services,021242,Catering - County Hall,Supplies and Services,324117,Provisions E324,06-Jun-2018,000007453062301,JR HOLLAND FOODSERVICE,5422,Catering costs - provisions,60.53,0.00,60.53
Regeneration and Local Services,Direct Services,021242,Catering - County Hall,Supplies and Services,324117,Provisions E324,06-Jun-2018,000007453062303,JR HOLLAND FOODSERVICE,5422,Catering costs - provisions,47.50,0.00,47.50
Regeneration and Local Services,Direct Services,021242,Catering - County Hall,Supplies and Services,324117,Provisions E324,06-Jun-2018,000007453062305,JR HOLLAND FOODSERVICE,5422,Catering costs - provisions,30.14,0.00,30.14
Regeneration and Local Services,Direct Services,021242,Catering - County Hall,Supplies and Services,324117,Provisions E324,06-Jun-2018,000007453062307,JR HOLLAND FOODSERVICE,5422,Catering costs - provisions,25.50,0.00,25.50
Regeneration and Local Services,Direct Services,021242,Catering - County Hall,Supplies and Services,324117,Provisions E324,06-Jun-2018,000007453062309,JR HOLLAND FOODSERVICE,5422,Catering costs - provisions,24.24,0.00,24.24
Regeneration and Local Services,Direct Services,021242,Catering - County Hall,Supplies and Services,324117,Provisions E324,06-Jun-2018,000007453062311,JR HOLLAND FOODSERVICE,5422,Catering costs - provisions,13.54,0.00,13.54
Regeneration and Local Services,Direct Services,021242,Catering - County Hall,Supplies and Services,324117,Provisions E324,06-Jun-2018,000007453062313,JR HOLLAND FOODSERVICE,5422,Catering costs - provisions,13.20,0.00,13.20
Regeneration and Local Services,Direct Services,021242,Catering - County Hall,Supplies and Services,324117,Provisions E324,06-Jun-2018,000007453062315,JR HOLLAND FOODSERVICE,5422,Catering costs - provisions,13.20,0.00,13.20
Regeneration and Local Services,Direct Services,021242,Catering - County Hall,Supplies and Services,324117,Provisions E324,06-Jun-2018,000007453062317,JR HOLLAND FOODSERVICE,5422,Catering costs - provisions,6.94,0.00,6.94
Regeneration and Local Services,Direct Services,021242,Catering - County Hall,Supplies and Services,324117,Provisions E324,06-Jun-2018,000007453062319,JR HOLLAND FOODSERVICE,5422,Catering costs - provisions,1.76,0.00,1.76
Regeneration and Local Services,Culture & Sport,054812,Gala Theatre - Catering etc,Supplies and Services,324117,Provisions E324,06-Jun-2018,000007453062329,JR HOLLAND FOODSERVICE,5422,Catering costs - provisions,65.04,0.00,65.04
Regeneration and Local Services,Culture & Sport,054812,Gala Theatre - Catering etc,Supplies and Services,324117,Provisions E324,06-Jun-2018,000007453062331,JR HOLLAND FOODSERVICE,5422,Catering costs - provisions,36.18,0.00,36.18
Children and Young Peoples Services,Head of Childrens Social Care,085333,Coxhoe Satelite Home,Supplies and Services,304259,Equipment and Materials,06-Jun-2018,000007453062347,B & Q 1343,5211,Equipment-purchase and rental,47.02,0.00,47.02
Children and Young Peoples Services,Head of Childrens Social Care,085334,West Rainton Satelite Home,Supplies and Services,308011,Furniture,06-Jun-2018,000007453062359,TONYS TEXTILES ONLINE,5719,Furniture repair and replacement,17.92,0.00,17.92
Children and Young Peoples Services,Head of Childrens Social Care,085352,Tow Law CU,Supplies and Services,324117,Provisions E324,06-Jun-2018,000007453062361,TESCO STORES 2371,5411,Catering costs - provisions,256.89,0.00,256.89
Regeneration and Local Services,Direct Services,010900,Fleet - Meadowfield Fleet,Transport,215013,Running Costs of Vehicles,06-Jun-2018,000007453062363,DVLA VEHICLE TAX,9399,Vehicle Excise Duty (VED),167.50,0.00,167.50
Regeneration and Local Services,Direct Services,010561,Fleet - Morrison Busty Fleet,Transport,215013,Running Costs of Vehicles,06-Jun-2018,000007453062365,DVLA VEHICLE TAX,9399,Vehicle Excise Duty (VED),167.50,0.00,167.50
Regeneration and Local Services,Direct Services,010900,Fleet - Meadowfield Fleet,Transport,215013,Running Costs of Vehicles,06-Jun-2018,000007453062367,DVLA VEHICLE TAX,9399,Vehicle Excise Duty (VED),197.50,0.00,197.50
Regeneration and Local Services,Direct Services,010561,Fleet - Morrison Busty Fleet,Transport,215013,Running Costs of Vehicles,06-Jun-2018,000007453062369,DVLA VEHICLE TAX,9399,Vehicle Excise Duty (VED),202.50,0.00,202.50
Regeneration and Local Services,Direct Services,010561,Fleet - Morrison Busty Fleet,Transport,215013,Running Costs of Vehicles,06-Jun-2018,000007453062371,DVLA VEHICLE TAX,9399,Vehicle Excise Duty (VED),202.50,0.00,202.50
Children and Young Peoples Services,Head of Education and Skills,071732,Dean Bank Childcare,Supplies and Services,312011,Newspapers books and periodicals E312,06-Jun-2018,000007453062375,Amazon UK Marketplace,5942,Books-school library,3.99,0.00,3.99
Children and Young Peoples Services,Head of Education and Skills,071732,Dean Bank Childcare,Supplies and Services,312011,Newspapers books and periodicals E312,06-Jun-2018,000007453062377,Amazon UK Marketplace,5942,Books-school library,11.29,0.00,11.29
Children and Young Peoples Services,Head of Education and Skills,071732,Dean Bank Childcare,Supplies and Services,312011,Newspapers books and periodicals E312,06-Jun-2018,000007453062381,AMAZON SVCS EU-UK AMAZ,5942,Books-school library,16.75,0.00,16.75
Children and Young Peoples Services,Head of Childrens Social Care,085341,High Etherley Satelite Home,Supplies and Services,324117,Provisions E324,06-Jun-2018,000007453062383,TESCO STORES 6329,5411,Catering costs - provisions,-4.00,0.00,-4.00
Resources,Legal & Democratic Services,067910,Democratic Representation,Supplies and Services,384965,Miscellaneous Expenses,06-Jun-2018,000007453062391,BRAMWELLS ELVET LT,5944,Civic Functions,23.00,0.00,23.00
Children and Young Peoples Services,"Head of Early Help, Inclusion and Vulnerable Children",085957,Secure Management,Supplies and Services,304259,Equipment and Materials,06-Jun-2018,000007453062399,M and M Direct Ltd,5941,Equipment-purchase and rental,8.98,0.00,8.98
Children and Young Peoples Services,"Head of Early Help, Inclusion and Vulnerable Children",085957,Secure Management,Supplies and Services,304259,Equipment and Materials,06-Jun-2018,000007453062403,WWW.KINGWILLDREAM,5941,Equipment-purchase and rental,38.94,0.00,38.94
Children and Young Peoples Services,"Head of Early Help, Inclusion and Vulnerable Children",085957,Secure Management,Supplies and Services,324117,Provisions E324,06-Jun-2018,000007453062405,TESCO STORES 6329,5411,Catering costs - provisions,78.33,0.00,78.33
Regeneration and Local Services,Culture & Sport,054813,Gala Theatre - Technical,Supplies and Services,312011,Newspapers books and periodicals E312,06-Jun-2018,000007453062407,Amazon UK Marketplace,5942,Books-school library,19.99,0.00,19.99
Regeneration and Local Services,Culture & Sport,054813,Gala Theatre - Technical,Supplies and Services,312011,Newspapers books and periodicals E312,06-Jun-2018,000007453062411,Amazon UK Marketplace,5942,Books-school library,7.88,0.00,7.88
Regeneration and Local Services,Direct Services,010301,C&G - North Grounds Maintenance,Supplies and Services,304221,Equipment and Materials,06-Jun-2018,000007453062417,HEXHAM MACHINERY CENTR,5261,Direct materials,132.78,0.00,132.78
Regeneration and Local Services,Direct Services,010301,C&G - North Grounds Maintenance,Supplies and Services,304221,Equipment and Materials,06-Jun-2018,000007453062419,HEXHAM MACHINERY CENTR,5261,Direct materials,201.60,0.00,201.60
Regeneration and Local Services,Direct Services,010301,C&G - North Grounds Maintenance,Supplies and Services,304403,Equipment and Materials,06-Jun-2018,000007453062421,BESCOL,5231,Other consumables,203.71,0.00,203.71
Regeneration and Local Services,Culture & Sport,011060,Hardwick Park Catering,Supplies and Services,324117,Provisions E324,06-Jun-2018,000007453062427,JR HOLLAND FOODSERVICE,5422,Catering costs - provisions,131.40,0.00,131.40
Regeneration and Local Services,Culture & Sport,011060,Hardwick Park Catering,Supplies and Services,324117,Provisions E324,06-Jun-2018,000007453062429,JR HOLLAND FOODSERVICE,5422,Catering costs - provisions,53.59,0.00,53.59
Regeneration and Local Services,Culture & Sport,011060,Hardwick Park Catering,Supplies and Services,324117,Provisions E324,06-Jun-2018,000007453062431,JR HOLLAND FOODSERVICE,5422,Catering costs - provisions,52.04,0.00,52.04
Regeneration and Local Services,Culture & Sport,011060,Hardwick Park Catering,Supplies and Services,324117,Provisions E324,06-Jun-2018,000007453062433,JR HOLLAND FOODSERVICE,5422,Catering costs - provisions,25.08,0.00,25.08
Regeneration and Local Services,Culture & Sport,011060,Hardwick Park Catering,Supplies and Services,324117,Provisions E324,06-Jun-2018,000007453062435,JR HOLLAND FOODSERVICE,5422,Catering costs - provisions,21.88,0.00,21.88
Regeneration and Local Services,Culture & Sport,011060,Hardwick Park Catering,Supplies and Services,324117,Provisions E324,06-Jun-2018,000007453062437,JR HOLLAND FOODSERVICE,5422,Catering costs - provisions,21.62,0.00,21.62
Regeneration and Local Services,Culture & Sport,011060,Hardwick Park Catering,Supplies and Services,324117,Provisions E324,06-Jun-2018,000007453062439,JR HOLLAND FOODSERVICE,5422,Catering costs - provisions,19.30,0.00,19.30
Regeneration and Local Services,Culture & Sport,011060,Hardwick Park Catering,Supplies and Services,324117,Provisions E324,06-Jun-2018,000007453062441,JR HOLLAND FOODSERVICE,5422,Catering costs - provisions,17.54,0.00,17.54
Regeneration and Local Services,Culture & Sport,011060,Hardwick Park Catering,Supplies and Services,324117,Provisions E324,06-Jun-2018,000007453062443,JR HOLLAND FOODSERVICE,5422,Catering costs - provisions,10.54,0.00,10.54
Regeneration and Local Services,Culture & Sport,011204,Events,Supplies and Services,312011,Newspapers books and periodicals E312,06-Jun-2018,000007453062455,AMAZON SVCS EU-UK AMAZ,5942,Books-school library,46.53,0.00,46.53
Regeneration and Local Services,Culture & Sport,011204,Events,Supplies and Services,312011,Newspapers books and periodicals E312,06-Jun-2018,000007453062457,Amazon EU,5969,Books-school library,14.24,0.00,14.24
Regeneration and Local Services,Culture & Sport,011204,Events,Supplies and Services,312011,Newspapers books and periodicals E312,06-Jun-2018,000007453062459,Amazon EU,5969,Books-school library,11.22,0.00,11.22
Regeneration and Local Services,Direct Services,010525,Catering - Green Lane,Supplies and Services,324117,Provisions E324,06-Jun-2018,000007453062469,JR HOLLAND FOODSERVICE,5422,Catering costs - provisions,63.73,0.00,63.73
Children and Young Peoples Services,Head of Childrens Social Care,085623,Families First Bishop Auckland,Transport,235073,Public Transport,06-Jun-2018,000007453062479,GO NORTH EAST - V/T,4131,Travel-clients/students/children,-110.00,0.00,-110.00
Children and Young Peoples Services,Head of Childrens Social Care,085333,Coxhoe Satelite Home,Supplies and Services,324117,Provisions E324,06-Jun-2018,000007453062495,CO-OP GROUP 310016,5411,Catering costs - provisions,24.39,0.00,24.39
Children and Young Peoples Services,Head of Childrens Social Care,085333,Coxhoe Satelite Home,Supplies and Services,324117,Provisions E324,06-Jun-2018,000007453062497,CO-OP GROUP 310016,5411,Catering costs - provisions,8.54,0.00,8.54
Regeneration and Local Services,Economic Development and Housing,030692,Durham Dales Centre - Management and Admin,Supplies and Services,324117,Provisions E324,06-Jun-2018,000007453062515,JR HOLLAND FOODSERVICE,5422,Catering costs - provisions,157.26,0.00,157.26
Regeneration and Local Services,Economic Development and Housing,030692,Durham Dales Centre - Management and Admin,Supplies and Services,324117,Provisions E324,06-Jun-2018,000007453062517,JR HOLLAND FOODSERVICE,5422,Catering costs - provisions,63.93,0.00,63.93
Regeneration and Local Services,Economic Development and Housing,030692,Durham Dales Centre - Management and Admin,Supplies and Services,324117,Provisions E324,06-Jun-2018,000007453062519,JR HOLLAND FOODSERVICE,5422,Catering costs - provisions,19.74,0.00,19.74
Regeneration and Local Services,Economic Development and Housing,030692,Durham Dales Centre - Management and Admin,Supplies and Services,324117,Provisions E324,06-Jun-2018,000007453062521,JR HOLLAND FOODSERVICE,5422,Catering costs - provisions,9.64,0.00,9.64
Adult and Health Services,Head of Adults,055643,Hawthorn House LD Respite Unit,Supplies and Services,324117,Provisions E324,06-Jun-2018,000007453062533,JR HOLLAND FOODSERVICE,5422,Catering costs - provisions,45.22,0.00,45.22
Adult and Health Services,Head of Adults,055643,Hawthorn House LD Respite Unit,Supplies and Services,324117,Provisions E324,06-Jun-2018,000007453062535,JR HOLLAND FOODSERVICE,5422,Catering costs - provisions,36.21,0.00,36.21
Adult and Health Services,Head of Adults,055643,Hawthorn House LD Respite Unit,Supplies and Services,324117,Provisions E324,06-Jun-2018,000007453062537,JR HOLLAND FOODSERVICE,5422,Catering costs - provisions,21.60,0.00,21.60
Adult and Health Services,Head of Adults,055643,Hawthorn House LD Respite Unit,Supplies and Services,324117,Provisions E324,06-Jun-2018,000007453062539,JR HOLLAND FOODSERVICE,5422,Catering costs - provisions,10.27,0.00,10.27
Adult and Health Services,Head of Adults,055643,Hawthorn House LD Respite Unit,Supplies and Services,324117,Provisions E324,06-Jun-2018,000007453062541,JR HOLLAND FOODSERVICE,5422,Catering costs - provisions,2.38,0.00,2.38
Children and Young Peoples Services,Head of Education and Skills,078100,Curric and Professional Development,Supplies and Services,324117,Provisions E324,06-Jun-2018,000007453062545,SAINSBURYS SACAT 2199,5411,Catering costs - provisions,1.40,0.00,1.40
Children and Young Peoples Services,"Head of Early Help, Inclusion and Vulnerable Children",074000,TTF-Attachment and Results,Transfer Payments,525033,Other,06-Jun-2018,000007453062551,J DODDS CARPETS LTD,5713,Grants to individuals,125.04,20.84,104.20
Children and Young Peoples Services,"Head of Early Help, Inclusion and Vulnerable Children",074000,TTF-Attachment and Results,Transfer Payments,525033,Other,06-Jun-2018,000007453062551 - 1,J DODDS CARPETS LTD,5713,Grants to individuals,24.96,,24.96
Children and Young Peoples Services,"Head of Early Help, Inclusion and Vulnerable Children",085957,Secure Management,Supplies and Services,304245,Equipment and Materials,06-Jun-2018,000007453062555,SCREWFIX DIRECT,5211,Materials,44.96,7.49,37.47
Children and Young Peoples Services,"Head of Early Help, Inclusion and Vulnerable Children",079027,Behaviour Intervention Team,Supplies and Services,312011,Newspapers books and periodicals E312,06-Jun-2018,000007453062565,Amazon UK Marketplace,5942,Books-school library,25.89,0.00,25.89
Regeneration and Local Services,Culture & Sport,054235,Bishop Auckland Town Hall Cafe,Supplies and Services,324117,Provisions E324,06-Jun-2018,000007453062567,JR HOLLAND FOODSERVICE,5422,Catering costs - provisions,51.11,0.00,51.11
Regeneration and Local Services,Culture & Sport,054235,Bishop Auckland Town Hall Cafe,Supplies and Services,324117,Provisions E324,06-Jun-2018,000007453062569,JR HOLLAND FOODSERVICE,5422,Catering costs - provisions,8.10,0.00,8.10
Regeneration and Local Services,Culture & Sport,026591,Hardwick Park,Supplies and Services,304245,Equipment and Materials,06-Jun-2018,000007453062573,WILKO.COM,5399,Materials,12.00,2.00,10.00
Regeneration and Local Services,Culture & Sport,026591,Hardwick Park,Supplies and Services,304245,Equipment and Materials,06-Jun-2018,000007453062575,SCREWFIX DIRECT,5211,Materials,32.59,5.43,27.16
Regeneration and Local Services,Direct Services,021324,Catering - Meadowfield,Supplies and Services,324117,Provisions E324,06-Jun-2018,000007453062577,JR HOLLAND FOODSERVICE,5422,Catering costs - provisions,49.33,0.00,49.33
Regeneration and Local Services,Direct Services,021324,Catering - Meadowfield,Supplies and Services,324117,Provisions E324,06-Jun-2018,000007453062579,JR HOLLAND FOODSERVICE,5422,Catering costs - provisions,9.90,0.00,9.90
Children and Young Peoples Services,Head of Childrens Social Care,085333,Coxhoe Satelite Home,Supplies and Services,324117,Provisions E324,06-Jun-2018,000007453062583,ASDA STORES LTD,5411,Catering costs - provisions,13.00,0.00,13.00
Regeneration and Local Services,Direct Services,010301,C&G - North Grounds Maintenance,Supplies and Services,304221,Equipment and Materials,06-Jun-2018,000007453062631,HEXHAM MACHINERY CENTR,5261,Direct materials,272.88,45.48,227.40
Children and Young Peoples Services,Head of Childrens Social Care,085331,New Lea Childrens Home,Transport,235057,Public Transport,06-Jun-2018,000007453062635,TRAVEL REPUBLIC LTD,4722,Staff travelling,76.76,0.00,76.76
Resources,Digital and Customer Services,070110,School Services - Man Info System (MIS) Support Team,Supplies and Services,338064,Services,06-Jun-2018,000007453062641,DISCLOSURE SCOT,9399,Disclosure & Barring (DBS) Fees,25.00,0.00,25.00
Resources,Digital and Customer Services,011105,Customer Access Points,Supplies and Services,340001,Postages E340,06-Jun-2018,000007453062643,SIMPSON BROS,4214,Postages,194.99,32.50,162.49
Resources,Legal & Democratic Services,067910,Democratic Representation,Supplies and Services,372009,Subscriptions E372,06-Jun-2018,000007453062645,WWW.ICO.GOV.UK,9399,Subscriptions 372009,40.00,0.00,40.00
Resources,Legal & Democratic Services,069556,Electoral Registration,Supplies and Services,372009,Subscriptions E372,06-Jun-2018,000007453062647,WWW.ICO.GOV.UK,9399,Subscriptions 372009,40.00,0.00,40.00
Resources,Legal & Democratic Services,067910,Democratic Representation,Supplies and Services,372009,Subscriptions E372,06-Jun-2018,000007453062649,WWW.ICO.GOV.UK,9399,Subscriptions 372009,40.00,0.00,40.00
Resources,Legal & Democratic Services,067910,Democratic Representation,Supplies and Services,372009,Subscriptions E372,06-Jun-2018,000007453062651,WWW.ICO.GOV.UK,9399,Subscriptions 372009,40.00,0.00,40.00
Resources,Legal & Democratic Services,067910,Democratic Representation,Supplies and Services,372009,Subscriptions E372,06-Jun-2018,000007453062653,WWW.ICO.GOV.UK,9399,Subscriptions 372009,40.00,0.00,40.00
Resources,Legal & Democratic Services,067910,Democratic Representation,Supplies and Services,372009,Subscriptions E372,06-Jun-2018,000007453062655,WWW.ICO.GOV.UK,9399,Subscriptions 372009,40.00,0.00,40.00
Resources,Legal & Democratic Services,069556,Electoral Registration,Supplies and Services,372009,Subscriptions E372,06-Jun-2018,000007453062657,WWW.ICO.GOV.UK,9399,Subscriptions 372009,40.00,0.00,40.00
Resources,Legal & Democratic Services,067910,Democratic Representation,Supplies and Services,372009,Subscriptions E372,06-Jun-2018,000007453062659,WWW.ICO.GOV.UK,9399,Subscriptions 372009,40.00,0.00,40.00
Regeneration and Local Services,Direct Services,021235,Catering - Wharton Park,Supplies and Services,324117,Provisions E324,06-Jun-2018,000007453062669,JR HOLLAND FOODSERVICE,5422,Catering costs - provisions,25.86,0.00,25.86
Regeneration and Local Services,Economic Development and Housing,030553,Europe Direct Scheme,Supplies and Services,384926,Miscellaneous Expenses,06-Jun-2018,000007453062685,UPPER CRUST,5814,International visits,7.18,0.00,7.18
Children and Young Peoples Services,Head of Childrens Social Care,085371,Young People Services - South,Employees,040149,Recruitment Instruction and Training,06-Jun-2018,000007458710935,PREMIER INN,3811,Training-all costs,108.49,0.00,108.49
Children and Young Peoples Services,"Head of Early Help, Inclusion and Vulnerable Children",085957,Secure Management,Supplies and Services,304259,Equipment and Materials,06-Jun-2018,000007458711097,SPORTSDIRECT.COM,5941,Equipment-purchase and rental,56.99,9.50,47.49
Regeneration and Local Services,Culture & Sport,011204,Events,Supplies and Services,312011,Newspapers books and periodicals E312,06-Jun-2018,000007458711123,AMAZON SVCS EU-UK AMAZ,5942,Books-school library,27.71,0.00,27.71
Adult and Health Services,Head of Adults,055643,Hawthorn House LD Respite Unit,Supplies and Services,324117,Provisions E324,06-Jun-2018,000007464598789,JR HOLLAND FOODSERVICE,5422,Catering costs - provisions,20.50,0.00,20.50
Children and Young Peoples Services,"Head of Early Help, Inclusion and Vulnerable Children",085957,Secure Management,Supplies and Services,312011,Newspapers books and periodicals E312,07-Jun-2018,000007453062401,Amazon UK Marketplace,5942,Books-school library,16.99,0.00,16.99
Regeneration and Local Services,Culture & Sport,010920,Leisure Contracts,Supplies and Services,304335,Equipment and Materials,07-Jun-2018,000007458710867,WP-INSTANTSSL CERTIFIC,7399,ICT supplies etc,213.48,35.58,177.90
Resources,Digital and Customer Services,065482,Data Centres,Supplies and Services,342033,Computers and Communications,07-Jun-2018,000007458710869,Amazon UK Marketplace,5942,Computer hardware,17.96,2.99,14.97
Regeneration and Local Services,Direct Services,010383,C&G - South Street Cleansing,Supplies and Services,324117,Provisions E324,07-Jun-2018,000007458710889,J M RAINE,5399,Catering costs - provisions,36.54,6.09,30.45
Children and Young Peoples Services,Head of Childrens Social Care,085342,9 Cedar Drive Aycliffe,Supplies and Services,312011,Newspapers books and periodicals E312,07-Jun-2018,000007458710907,AMAZON SVCS EU-UK AMAZ,5942,Books-school library,11.00,0.00,11.00
Children and Young Peoples Services,Head of Childrens Social Care,085342,9 Cedar Drive Aycliffe,Employees,040149,Recruitment Instruction and Training,07-Jun-2018,000007458710909,PARENTPAY E-COM R,8220,Training-all costs,60.00,0.00,60.00
Regeneration and Local Services,Direct Services,021242,Catering - County Hall,Supplies and Services,324117,Provisions E324,07-Jun-2018,000007458710933,JR HOLLAND FOODSERVICE,5422,Catering costs - provisions,6.60,0.00,6.60
Regeneration and Local Services,Economic Development and Housing,030737,Durham Works Flexible Fund,Transport,235057,Public Transport,07-Jun-2018,000007458710937,ARRIVA NORTH EAST,4131,Staff travelling,47.10,0.00,47.10
Regeneration and Local Services,Culture & Sport,054812,Gala Theatre - Catering etc,Supplies and Services,324117,Provisions E324,07-Jun-2018,000007458710943,JR HOLLAND FOODSERVICE,5422,Catering costs - provisions,20.84,0.00,20.84
Regeneration and Local Services,Direct Services,010900,Fleet - Meadowfield Fleet,Transport,215013,Running Costs of Vehicles,07-Jun-2018,000007458711011,DVLA VEHICLE TAX,9399,Vehicle Excise Duty (VED),252.50,0.00,252.50
Regeneration and Local Services,Direct Services,010551,Fleet - Chilton Fleet,Transport,215013,Running Costs of Vehicles,07-Jun-2018,000007458711013,DVLA VEHICLE TAX,9399,Vehicle Excise Duty (VED),212.50,0.00,212.50
Regeneration and Local Services,Direct Services,010561,Fleet - Morrison Busty Fleet,Transport,215013,Running Costs of Vehicles,07-Jun-2018,000007458711015,DVLA VEHICLE TAX,9399,Vehicle Excise Duty (VED),252.50,0.00,252.50
Regeneration and Local Services,Direct Services,010561,Fleet - Morrison Busty Fleet,Transport,215013,Running Costs of Vehicles,07-Jun-2018,000007458711017,DVLA VEHICLE TAX,9399,Vehicle Excise Duty (VED),652.50,0.00,652.50
Regeneration and Local Services,Direct Services,010561,Fleet - Morrison Busty Fleet,Transport,215013,Running Costs of Vehicles,07-Jun-2018,000007458711019,DVLA VEHICLE TAX,9399,Vehicle Excise Duty (VED),252.50,0.00,252.50
Regeneration and Local Services,Direct Services,010551,Fleet - Chilton Fleet,Transport,215013,Running Costs of Vehicles,07-Jun-2018,000007458711021,DVLA VEHICLE TAX,9399,Vehicle Excise Duty (VED),652.50,0.00,652.50
Regeneration and Local Services,Direct Services,010900,Fleet - Meadowfield Fleet,Transport,215013,Running Costs of Vehicles,07-Jun-2018,000007458711023,DVLA VEHICLE TAX,9399,Vehicle Excise Duty (VED),252.50,0.00,252.50
Regeneration and Local Services,Direct Services,010900,Fleet - Meadowfield Fleet,Transport,215013,Running Costs of Vehicles,07-Jun-2018,000007458711025,DVLA VEHICLE TAX,9399,Vehicle Excise Duty (VED),252.50,0.00,252.50
Regeneration and Local Services,Direct Services,010900,Fleet - Meadowfield Fleet,Transport,215013,Running Costs of Vehicles,07-Jun-2018,000007458711027,DVLA VEHICLE TAX,9399,Vehicle Excise Duty (VED),252.50,0.00,252.50
Regeneration and Local Services,Direct Services,010900,Fleet - Meadowfield Fleet,Transport,215013,Running Costs of Vehicles,07-Jun-2018,000007458711029,DVLA VEHICLE TAX,9399,Vehicle Excise Duty (VED),212.50,0.00,212.50
Regeneration and Local Services,Direct Services,010561,Fleet - Morrison Busty Fleet,Transport,215013,Running Costs of Vehicles,07-Jun-2018,000007458711031,DVLA VEHICLE TAX,9399,Vehicle Excise Duty (VED),252.50,0.00,252.50
Regeneration and Local Services,Culture & Sport,010664,Freemans Quay Leisure Centre,Supplies and Services,324117,Provisions E324,07-Jun-2018,000007458711043,ASDA SUPERSTORE,5411,Catering costs - provisions,8.35,0.00,8.35
Regeneration and Local Services,Economic Development and Housing,030737,Durham Works Flexible Fund,Supplies and Services,348037,Subsistence E348,07-Jun-2018,000007458711085,ARRIVA NORTH EAST,4131,Subsistence,25.50,0.00,25.50
Children and Young Peoples Services,"Head of Early Help, Inclusion and Vulnerable Children",085957,Secure Management,Supplies and Services,312011,Newspapers books and periodicals E312,07-Jun-2018,000007458711093,Amazon UK Marketplace,5942,Books-school library,3.76,0.00,3.76
Children and Young Peoples Services,"Head of Early Help, Inclusion and Vulnerable Children",085957,Secure Management,Supplies and Services,312011,Newspapers books and periodicals E312,07-Jun-2018,000007458711095,AMAZON SVCS EU-UK AMAZ,5942,Books-school library,12.99,0.00,12.99
Children and Young Peoples Services,"Head of Early Help, Inclusion and Vulnerable Children",085957,Secure Management,Supplies and Services,324117,Provisions E324,07-Jun-2018,000007458711099,TESCO STORES 6329,5411,Catering costs - provisions,95.59,0.00,95.59
Regeneration and Local Services,Culture & Sport,054813,Gala Theatre - Technical,Supplies and Services,304259,Equipment and Materials,07-Jun-2018,000007458711101,Amazon Digital Video,5735,Equipment-purchase and rental,2.49,0.00,2.49
Regeneration and Local Services,Culture & Sport,054813,Gala Theatre - Technical,Supplies and Services,304259,Equipment and Materials,07-Jun-2018,000007458711103,CURRYS S/S,5722,Equipment-purchase and rental,34.97,5.83,29.14
Regeneration and Local Services,Culture & Sport,011060,Hardwick Park Catering,Supplies and Services,324117,Provisions E324,07-Jun-2018,000007458711111,JR HOLLAND FOODSERVICE,5422,Catering costs - provisions,34.28,0.00,34.28
Regeneration and Local Services,Direct Services,021234,Catering - Locomotion,Supplies and Services,324117,Provisions E324,07-Jun-2018,000007458711121,JR HOLLAND FOODSERVICE,5422,Catering costs - provisions,90.55,0.00,90.55
Regeneration and Local Services,Economic Development and Housing,030692,Durham Dales Centre - Management and Admin,Supplies and Services,324117,Provisions E324,07-Jun-2018,000007458711187,JR HOLLAND FOODSERVICE,5422,Catering costs - provisions,106.89,0.00,106.89
Regeneration and Local Services,Economic Development and Housing,030692,Durham Dales Centre - Management and Admin,Supplies and Services,324117,Provisions E324,07-Jun-2018,000007458711189,JR HOLLAND FOODSERVICE,5422,Catering costs - provisions,49.78,0.00,49.78
Regeneration and Local Services,Economic Development and Housing,030692,Durham Dales Centre - Management and Admin,Supplies and Services,324117,Provisions E324,07-Jun-2018,000007458711191,JR HOLLAND FOODSERVICE,5422,Catering costs - provisions,10.50,0.00,10.50
Regeneration and Local Services,Economic Development and Housing,030692,Durham Dales Centre - Management and Admin,Supplies and Services,324117,Provisions E324,07-Jun-2018,000007458711193,JR HOLLAND FOODSERVICE,5422,Catering costs - provisions,3.44,0.00,3.44
Adult and Health Services,Head of Adults,055643,Hawthorn House LD Respite Unit,Supplies and Services,324117,Provisions E324,07-Jun-2018,000007458711199,JR HOLLAND FOODSERVICE,5422,Catering costs - provisions,46.00,0.00,46.00
Adult and Health Services,Head of Adults,055643,Hawthorn House LD Respite Unit,Supplies and Services,324117,Provisions E324,07-Jun-2018,000007458711201,JR HOLLAND FOODSERVICE,5422,Catering costs - provisions,21.60,0.00,21.60
Resources,Digital and Customer Services,065335,School Services - Implementations,Supplies and Services,304639,Equipment and Materials,07-Jun-2018,000007458711217,AMAZON SVCS EU-UK AMAZ,5942,Technicians-supplies,10.45,1.74,8.71
Resources,Digital and Customer Services,065335,School Services - Implementations,Supplies and Services,304639,Equipment and Materials,07-Jun-2018,000007458711219,Amazon UK Marketplace,5942,Technicians-supplies,16.98,0.00,16.98
Regeneration and Local Services,Direct Services,010301,C&G - North Grounds Maintenance,Supplies and Services,304403,Equipment and Materials,07-Jun-2018,000007458711245,FRED WILLIAMSON,5231,Other consumables,117.07,19.51,97.56
Children and Young Peoples Services,Head of Childrens Social Care,085331,New Lea Childrens Home,Supplies and Services,312011,Newspapers books and periodicals E312,07-Jun-2018,000007458711293,Amazon UK Marketplace,5942,Books-school library,7.39,0.00,7.39
Resources,Digital and Customer Services,069010,Administration,Supplies and Services,332047,Printing Stationery and Gen Off Exps,07-Jun-2018,000007458711303,Amazon UK Marketplace,5942,Stationery,19.98,0.00,19.98
Resources,Legal & Democratic Services,067910,Democratic Representation,Supplies and Services,372009,Subscriptions E372,07-Jun-2018,000007458711305,WWW.ICO.GOV.UK,9399,Subscriptions 372009,40.00,0.00,40.00
Resources,Legal & Democratic Services,067910,Democratic Representation,Supplies and Services,372009,Subscriptions E372,07-Jun-2018,000007458711307,WWW.ICO.GOV.UK,9399,Subscriptions 372009,40.00,0.00,40.00
Resources,Legal & Democratic Services,067910,Democratic Representation,Supplies and Services,372009,Subscriptions E372,07-Jun-2018,000007458711309,WWW.ICO.GOV.UK,9399,Subscriptions 372009,40.00,0.00,40.00
Resources,Legal & Democratic Services,067910,Democratic Representation,Supplies and Services,372009,Subscriptions E372,07-Jun-2018,000007458711311,WWW.ICO.GOV.UK,9399,Subscriptions 372009,40.00,0.00,40.00
Resources,Legal & Democratic Services,067910,Democratic Representation,Supplies and Services,372009,Subscriptions E372,07-Jun-2018,000007458711313,WWW.ICO.GOV.UK,9399,Subscriptions 372009,40.00,0.00,40.00
Resources,Legal & Democratic Services,067910,Democratic Representation,Supplies and Services,372009,Subscriptions E372,07-Jun-2018,000007458711315,WWW.ICO.GOV.UK,9399,Subscriptions 372009,40.00,0.00,40.00
Resources,Legal & Democratic Services,067910,Democratic Representation,Supplies and Services,372009,Subscriptions E372,07-Jun-2018,000007458711317,WWW.ICO.GOV.UK,9399,Subscriptions 372009,40.00,0.00,40.00
Resources,Legal & Democratic Services,067910,Democratic Representation,Supplies and Services,372009,Subscriptions E372,07-Jun-2018,000007458711319,WWW.ICO.GOV.UK,9399,Subscriptions 372009,40.00,0.00,40.00
Resources,Legal & Democratic Services,067910,Democratic Representation,Supplies and Services,372009,Subscriptions E372,07-Jun-2018,000007458711321,WWW.ICO.GOV.UK,9399,Subscriptions 372009,40.00,0.00,40.00
Resources,Legal & Democratic Services,067910,Democratic Representation,Supplies and Services,372009,Subscriptions E372,07-Jun-2018,000007458711323,WWW.ICO.GOV.UK,9399,Subscriptions 372009,40.00,0.00,40.00
Resources,Legal & Democratic Services,067910,Democratic Representation,Supplies and Services,372009,Subscriptions E372,07-Jun-2018,000007458711325,WWW.ICO.GOV.UK,9399,Subscriptions 372009,40.00,0.00,40.00
Resources,Legal & Democratic Services,067910,Democratic Representation,Supplies and Services,372009,Subscriptions E372,07-Jun-2018,000007458711327,WWW.ICO.GOV.UK,9399,Subscriptions 372009,40.00,0.00,40.00
Resources,Legal & Democratic Services,067910,Democratic Representation,Supplies and Services,372009,Subscriptions E372,07-Jun-2018,000007458711329,WWW.ICO.GOV.UK,9399,Subscriptions 372009,40.00,0.00,40.00
Resources,Legal & Democratic Services,067910,Democratic Representation,Supplies and Services,372009,Subscriptions E372,07-Jun-2018,000007458711333,WWW.ICO.GOV.UK,9399,Subscriptions 372009,40.00,0.00,40.00
Resources,Legal & Democratic Services,067910,Democratic Representation,Supplies and Services,372009,Subscriptions E372,07-Jun-2018,000007458711335,WWW.ICO.GOV.UK,9399,Subscriptions 372009,40.00,0.00,40.00
Resources,Finance & Transactional Services,065175,Administration,Supplies and Services,338048,Services,07-Jun-2018,000007458711369,HMCOURTS-SERVICE.G,9222,Court costs 338048,226.00,0.00,226.00
Regeneration and Local Services,Spatial Policy Planning Assets & Environment,031200,North Pennines Core,Supplies and Services,372009,Subscriptions E372,07-Jun-2018,000007458711375,BIG ART AND BANNERS,2741,Subscriptions 372009,86.34,0.00,86.34
Children and Young Peoples Services,"Head of Early Help, Inclusion and Vulnerable Children",085801,CDYOS - Support,Supplies and Services,324117,Provisions E324,07-Jun-2018,000007458711377,MARKS&SPENCER PLC,5411,Catering costs - provisions,49.50,0.00,49.50
Transformation and Partnerships,Partnerships & Community Engagement Div.,060472,Syrian Vulnerable Persons Scheme,Supplies and Services,384999,Miscellaneous Expenses,07-Jun-2018,000007464597919,PREMIER INN,3811,Other expenses,66.00,11.00,55.00
Children and Young Peoples Services,Head of Childrens Social Care,085333,Coxhoe Satelite Home,Supplies and Services,312011,Newspapers books and periodicals E312,07-Jun-2018,000007464598261,PAYPAL WHSMITHHIGH,5942,Books-school library,2.49,0.00,2.49
Children and Young Peoples Services,Head of Education and Skills,071732,Dean Bank Childcare,Supplies and Services,312011,Newspapers books and periodicals E312,07-Jun-2018,000007464598365,AMAZON SVCS EU-UK AMAZ,5942,Books-school library,29.88,4.98,24.90
Children and Young Peoples Services,Head of Education and Skills,071732,Dean Bank Childcare,Supplies and Services,312011,Newspapers books and periodicals E312,07-Jun-2018,000007464598365 - 1,AMAZON SVCS EU-UK AMAZ,5942,Books-school library,16.01,,16.01
Children and Young Peoples Services,Head of Education and Skills,071732,Dean Bank Childcare,Supplies and Services,312011,Newspapers books and periodicals E312,07-Jun-2018,000007464598367,AMAZON SVCS EU-UK AMAZ,5942,Books-school library,11.97,0.00,11.97
Regeneration and Local Services,Culture & Sport,026591,Hardwick Park,Supplies and Services,332047,Printing Stationery and Gen Off Exps,07-Jun-2018,000007464598891,AMAZON SVCS EU-UK AMAZ,5942,Stationery,23.69,0.00,23.69
Regeneration and Local Services,Culture & Sport,011060,Hardwick Park Catering,Supplies and Services,324117,Provisions E324,07-Jun-2018,000007475510781,BATLEYS PERTH,5300,Catering costs - provisions,175.98,29.33,146.65
Regeneration and Local Services,Culture & Sport,011060,Hardwick Park Catering,Supplies and Services,324117,Provisions E324,07-Jun-2018,000007475510781 - 1,BATLEYS PERTH,5300,Catering costs - provisions,129.36,,129.36
Regeneration and Local Services,Direct Services,021234,Catering - Locomotion,Supplies and Services,324117,Provisions E324,07-Jun-2018,000007475510841,BATLEYS PERTH,5300,Catering costs - provisions,91.44,15.24,76.20
Regeneration and Local Services,Direct Services,021234,Catering - Locomotion,Supplies and Services,324117,Provisions E324,07-Jun-2018,000007475510841 - 1,BATLEYS PERTH,5300,Catering costs - provisions,86.58,,86.58
Children and Young Peoples Services,Head of Education and Skills,071801,Selby Cottage Childcare Centre,Supplies and Services,324117,Provisions E324,08-Jun-2018,000007464597869,TESCO STORES 2278,5411,Catering costs - provisions,5.60,0.00,5.60
Children and Young Peoples Services,Head of Education and Skills,071801,Selby Cottage Childcare Centre,Supplies and Services,304999,Equipment and Materials,08-Jun-2018,000007464597875,Amazon Prime,5968,Misc equipment tools and materials,7.99,0.00,7.99
Children and Young Peoples Services,Head of Education and Skills,071801,Selby Cottage Childcare Centre,Supplies and Services,324117,Provisions E324,08-Jun-2018,000007464597879,TESCO STORES 2278,5411,Catering costs - provisions,30.70,0.00,30.70
Regeneration and Local Services,Economic Development and Housing,031576,B& B - Temp Accom,Employees,040149,Recruitment Instruction and Training,08-Jun-2018,000007464597885,PREMIER INN,3811,Training-all costs,181.50,0.00,181.50
Regeneration and Local Services,Direct Services,010909,C&G - Technical & Service Development Team,Supplies and Services,344033,Telephones,08-Jun-2018,000007464597893,Amazon UK Marketplace,5942,Telephones general-all costs,41.70,6.95,34.75
Regeneration and Local Services,Economic Development and Housing,030705,Visit County Durham,Employees,040001,Recruitment Instruction and Training,08-Jun-2018,000007464597937,TRINITY MIRROR PUBLISH,7311,Advertising for staff,780.00,130.00,650.00
Regeneration and Local Services,Economic Development and Housing,030705,Visit County Durham,Employees,040001,Recruitment Instruction and Training,08-Jun-2018,000007464597941,NEWSQUEST MEDIA,2741,Advertising for staff,855.60,142.60,713.00
Regeneration and Local Services,Economic Development and Housing,030705,Visit County Durham,Supplies and Services,384199,Miscellaneous Expenses,08-Jun-2018,000007464597943,NEWSQUEST MEDIA,2741,Other hired and contracted services,-4.03,0.00,-4.03
Dedicated Schools Grant,DSG High Needs Block,079052,Part Sighted-Belmont Comp,Supplies and Services,312011,Newspapers books and periodicals E312,08-Jun-2018,000007464597947,Amazon UK Marketplace,5942,Books-school library,8.64,0.00,8.64
Dedicated Schools Grant,DSG High Needs Block,079052,Part Sighted-Belmont Comp,Supplies and Services,312011,Newspapers books and periodicals E312,08-Jun-2018,000007464597951,Amazon EU,5969,Books-school library,36.38,0.00,36.38
Children and Young Peoples Services,Head of Childrens Social Care,085332,Middlestone Moor CU,Supplies and Services,304245,Equipment and Materials,08-Jun-2018,000007464597955,ARGOS LTD,5310,Materials,40.98,0.00,40.98
Children and Young Peoples Services,Head of Childrens Social Care,085332,Middlestone Moor CU,Supplies and Services,324117,Provisions E324,08-Jun-2018,000007464597957,TESCO STORES 2371,5411,Catering costs - provisions,85.73,0.00,85.73
Children and Young Peoples Services,Head of Childrens Social Care,085332,Middlestone Moor CU,Supplies and Services,324117,Provisions E324,08-Jun-2018,000007464597961,TESCO STORES 2916,5411,Catering costs - provisions,19.91,0.00,19.91
Children and Young Peoples Services,Head of Childrens Social Care,085332,Middlestone Moor CU,Supplies and Services,308013,Furniture,08-Jun-2018,000007464597963,ARGOS RETAIL GROUP,5310,Curtains and carpets,9.99,0.00,9.99
Children and Young Peoples Services,Head of Childrens Social Care,085342,9 Cedar Drive Aycliffe,Supplies and Services,304403,Equipment and Materials,08-Jun-2018,000007464597967,BARGAIN BUYS RETAIL LT,5065,Other consumables,129.99,0.00,129.99
Regeneration and Local Services,Direct Services,021242,Catering - County Hall,Supplies and Services,324117,Provisions E324,08-Jun-2018,000007464598029,HOPWELLS LTD,5811,Catering costs - provisions,195.10,0.00,195.10
Regeneration and Local Services,Direct Services,021242,Catering - County Hall,Supplies and Services,324117,Provisions E324,08-Jun-2018,000007464598035,HOPWELLS LTD,5811,Catering costs - provisions,189.43,0.00,189.43
Regeneration and Local Services,Direct Services,021242,Catering - County Hall,Supplies and Services,324117,Provisions E324,08-Jun-2018,000007464598039,HOPWELLS LTD,5811,Catering costs - provisions,154.27,0.00,154.27
Regeneration and Local Services,Direct Services,021242,Catering - County Hall,Supplies and Services,324117,Provisions E324,08-Jun-2018,000007464598045,HOPWELLS LTD,5811,Catering costs - provisions,58.20,0.00,58.20
Regeneration and Local Services,Direct Services,021242,Catering - County Hall,Supplies and Services,324117,Provisions E324,08-Jun-2018,000007464598047,JR HOLLAND FOODSERVICE,5422,Catering costs - provisions,85.55,0.00,85.55
Regeneration and Local Services,Direct Services,021242,Catering - County Hall,Supplies and Services,324117,Provisions E324,08-Jun-2018,000007464598051,JR HOLLAND FOODSERVICE,5422,Catering costs - provisions,35.00,0.00,35.00
Regeneration and Local Services,Direct Services,021242,Catering - County Hall,Supplies and Services,324117,Provisions E324,08-Jun-2018,000007464598055,JR HOLLAND FOODSERVICE,5422,Catering costs - provisions,30.14,0.00,30.14
Regeneration and Local Services,Direct Services,021242,Catering - County Hall,Supplies and Services,324117,Provisions E324,08-Jun-2018,000007464598059,JR HOLLAND FOODSERVICE,5422,Catering costs - provisions,14.55,0.00,14.55
Regeneration and Local Services,Economic Development and Housing,030737,Durham Works Flexible Fund,Supplies and Services,328041,Clothing uniforms and laundry E328,08-Jun-2018,000007464598071,SUMUP T JUNCTION,5999,Clothing uniforms and laundry,30.00,0.00,30.00
Regeneration and Local Services,Economic Development and Housing,030737,Durham Works Flexible Fund,Supplies and Services,328041,Clothing uniforms and laundry E328,08-Jun-2018,000007464598075,MATALAN.CO.UK,5691,Clothing uniforms and laundry,31.95,0.00,31.95
Regeneration and Local Services,Culture & Sport,054812,Gala Theatre - Catering etc,Supplies and Services,324117,Provisions E324,08-Jun-2018,000007464598079,HOPWELLS LTD,5811,Catering costs - provisions,47.54,0.00,47.54
Regeneration and Local Services,Culture & Sport,054812,Gala Theatre - Catering etc,Supplies and Services,324117,Provisions E324,08-Jun-2018,000007464598083,HOPWELLS LTD,5811,Catering costs - provisions,24.93,0.00,24.93
Regeneration and Local Services,Culture & Sport,054812,Gala Theatre - Catering etc,Supplies and Services,324117,Provisions E324,08-Jun-2018,000007464598085,HOPWELLS LTD,5811,Catering costs - provisions,5.00,0.00,5.00
Regeneration and Local Services,Culture & Sport,054812,Gala Theatre - Catering etc,Supplies and Services,324117,Provisions E324,08-Jun-2018,000007464598089,HOPWELLS LTD,5811,Catering costs - provisions,-11.45,0.00,-11.45
Regeneration and Local Services,Culture & Sport,054812,Gala Theatre - Catering etc,Supplies and Services,324117,Provisions E324,08-Jun-2018,000007464598093,HOPWELLS LTD,5811,Catering costs - provisions,-11.45,0.00,-11.45
Regeneration and Local Services,Culture & Sport,054812,Gala Theatre - Catering etc,Supplies and Services,324117,Provisions E324,08-Jun-2018,000007464598095,HOPWELLS LTD,5811,Catering costs - provisions,-19.66,0.00,-19.66
Regeneration and Local Services,Economic Development and Housing,030725,Community Economic Development,Supplies and Services,324117,Provisions E324,08-Jun-2018,000007464598245,ASDA STORES,5411,Catering costs - provisions,23.05,0.00,23.05
Children and Young Peoples Services,Head of Childrens Social Care,085362,LAC & Permanence Team 2,Supplies and Services,384999,Miscellaneous Expenses,08-Jun-2018,000007464598249,HM PASSPORT OFFICE,9399,Other expenses,49.00,0.00,49.00
Children and Young Peoples Services,Head of Childrens Social Care,085362,LAC & Permanence Team 2,Supplies and Services,384999,Miscellaneous Expenses,08-Jun-2018,000007464598251,GRO HM PASSPORT OFFICE,9399,Other expenses,18.50,0.00,18.50
Children and Young Peoples Services,Head of Childrens Social Care,085334,West Rainton Satelite Home,Supplies and Services,328041,Clothing uniforms and laundry E328,08-Jun-2018,000007464598307,ARGOS LTD,5310,Clothing uniforms and laundry,30.00,0.00,30.00
Children and Young Peoples Services,Head of Childrens Social Care,085334,West Rainton Satelite Home,Supplies and Services,324117,Provisions E324,08-Jun-2018,000007464598311,TESCO STORES 2371,5411,Catering costs - provisions,6.00,0.00,6.00
Children and Young Peoples Services,Head of Childrens Social Care,085334,West Rainton Satelite Home,Supplies and Services,324117,Provisions E324,08-Jun-2018,000007464598313,ALDI 12 774,5411,Catering costs - provisions,13.98,0.00,13.98
Regeneration and Local Services,Direct Services,010551,Fleet - Chilton Fleet,Transport,215013,Running Costs of Vehicles,08-Jun-2018,000007464598321,DVLA VEHICLE TAX,9399,Vehicle Excise Duty (VED),652.50,0.00,652.50
Regeneration and Local Services,Direct Services,010551,Fleet - Chilton Fleet,Transport,215013,Running Costs of Vehicles,08-Jun-2018,000007464598325,DVLA VEHICLE TAX,9399,Vehicle Excise Duty (VED),652.50,0.00,652.50
Regeneration and Local Services,Direct Services,010551,Fleet - Chilton Fleet,Transport,215013,Running Costs of Vehicles,08-Jun-2018,000007464598327,DVLA VEHICLE TAX,9399,Vehicle Excise Duty (VED),652.50,0.00,652.50
Regeneration and Local Services,Direct Services,010551,Fleet - Chilton Fleet,Transport,215013,Running Costs of Vehicles,08-Jun-2018,000007464598331,DVLA VEHICLE TAX,9399,Vehicle Excise Duty (VED),652.50,0.00,652.50
Regeneration and Local Services,Direct Services,010551,Fleet - Chilton Fleet,Transport,215013,Running Costs of Vehicles,08-Jun-2018,000007464598333,DVLA VEHICLE TAX,9399,Vehicle Excise Duty (VED),652.50,0.00,652.50
Regeneration and Local Services,Direct Services,010864,Fleet - Hackworth Road Fleet,Transport,215013,Running Costs of Vehicles,08-Jun-2018,000007464598337,DVLA VEHICLE TAX,9399,Vehicle Excise Duty (VED),652.50,0.00,652.50
Regeneration and Local Services,Direct Services,010561,Fleet - Morrison Busty Fleet,Transport,215013,Running Costs of Vehicles,08-Jun-2018,000007464598339,DVLA VEHICLE TAX,9399,Vehicle Excise Duty (VED),652.50,0.00,652.50
Regeneration and Local Services,Direct Services,010551,Fleet - Chilton Fleet,Transport,215013,Running Costs of Vehicles,08-Jun-2018,000007464598343,DVLA VEHICLE TAX,9399,Vehicle Excise Duty (VED),652.50,0.00,652.50
Regeneration and Local Services,Direct Services,010551,Fleet - Chilton Fleet,Transport,215013,Running Costs of Vehicles,08-Jun-2018,000007464598345,DVLA VEHICLE TAX,9399,Vehicle Excise Duty (VED),652.50,0.00,652.50
Regeneration and Local Services,Economic Development and Housing,030770,Durham Advance,Transport,235057,Public Transport,08-Jun-2018,000007464598349,ARRIVA NORTH EAST,4131,Staff travelling,50.00,0.00,50.00
Regeneration and Local Services,Economic Development and Housing,030770,Durham Advance,Transport,235057,Public Transport,08-Jun-2018,000007464598353,GO NORTH EAST LIMITED,4131,Staff travelling,23.00,0.00,23.00
Regeneration and Local Services,Economic Development and Housing,030770,Durham Advance,Transport,235057,Public Transport,08-Jun-2018,000007464598355,GO NORTH EAST LIMITED,4131,Staff travelling,23.00,0.00,23.00
Children and Young Peoples Services,Head of Education and Skills,071732,Dean Bank Childcare,Supplies and Services,312011,Newspapers books and periodicals E312,08-Jun-2018,000007464598371,AMAZON SVCS EU-UK AMAZ,5942,Books-school library,11.79,0.00,11.79
Children and Young Peoples Services,Head of Education and Skills,071732,Dean Bank Childcare,Supplies and Services,312011,Newspapers books and periodicals E312,08-Jun-2018,000007464598373,AMAZON SVCS EU-UK AMAZ,5942,Books-school library,1.80,0.00,1.80
Children and Young Peoples Services,Head of Education and Skills,071732,Dean Bank Childcare,Supplies and Services,312011,Newspapers books and periodicals E312,08-Jun-2018,000007464598377,AMAZON SVCS EU-UK AMAZ,5942,Books-school library,9.94,0.00,9.94
Children and Young Peoples Services,Head of Education and Skills,071732,Dean Bank Childcare,Supplies and Services,312011,Newspapers books and periodicals E312,08-Jun-2018,000007464598379,AMAZON SVCS EU-UK AMAZ,5942,Books-school library,43.00,0.00,43.00
Children and Young Peoples Services,Head of Education and Skills,071732,Dean Bank Childcare,Supplies and Services,324117,Provisions E324,08-Jun-2018,000007464598383,JR HOLLAND FOODSERVICE,5422,Catering costs - provisions,50.09,0.00,50.09
Children and Young Peoples Services,Head of Education and Skills,071732,Dean Bank Childcare,Supplies and Services,324117,Provisions E324,08-Jun-2018,000007464598385,JR HOLLAND FOODSERVICE,5422,Catering costs - provisions,4.52,0.00,4.52
Children and Young Peoples Services,Head of Education and Skills,071732,Dean Bank Childcare,Supplies and Services,324117,Provisions E324,08-Jun-2018,000007464598389,ASDA SUPERSTORE 4987,5411,Catering costs - provisions,21.22,0.00,21.22
Regeneration and Local Services,Economic Development and Housing,030737,Durham Works Flexible Fund,Supplies and Services,348037,Subsistence E348,08-Jun-2018,000007464598441,GO NORTH EAST LIMITED,4131,Subsistence,20.80,0.00,20.80
Children and Young Peoples Services,"Head of Early Help, Inclusion and Vulnerable Children",085957,Secure Management,Supplies and Services,308011,Furniture,08-Jun-2018,000007464598453,SHOP.SILENTNIGHT,5712,Furniture repair and replacement,702.00,0.00,702.00
Children and Young Peoples Services,"Head of Early Help, Inclusion and Vulnerable Children",085957,Secure Management,Supplies and Services,324117,Provisions E324,08-Jun-2018,000007464598457,TESCO STORES 6329,5411,Catering costs - provisions,74.99,0.00,74.99
Regeneration and Local Services,Culture & Sport,054813,Gala Theatre - Technical,Supplies and Services,324117,Provisions E324,08-Jun-2018,000007464598463,TESCO STORES 2971,5411,Catering costs - provisions,43.26,0.00,43.26
Regeneration and Local Services,Direct Services,010301,C&G - North Grounds Maintenance,Supplies and Services,304221,Equipment and Materials,08-Jun-2018,000007464598507,WWW.JTDOVE.CO.UK,5211,Direct materials,166.80,0.00,166.80
Regeneration and Local Services,Direct Services,010301,C&G - North Grounds Maintenance,Supplies and Services,304221,Equipment and Materials,08-Jun-2018,000007464598511,WWW.JTDOVE.CO.UK,5211,Direct materials,172.30,0.00,172.30
Regeneration and Local Services,Culture & Sport,011060,Hardwick Park Catering,Supplies and Services,324117,Provisions E324,08-Jun-2018,000007464598515,HOPWELLS LTD,5811,Catering costs - provisions,"1,260.12",210.02,1050.10
Regeneration and Local Services,Culture & Sport,011060,Hardwick Park Catering,Supplies and Services,324117,Provisions E324,08-Jun-2018,000007464598515 - 1,HOPWELLS LTD,5811,Catering costs - provisions,183.45,,183.45
Regeneration and Local Services,Culture & Sport,011060,Hardwick Park Catering,Supplies and Services,324117,Provisions E324,08-Jun-2018,000007464598519,HOPWELLS LTD,5811,Catering costs - provisions,389.52,64.92,324.60
Regeneration and Local Services,Culture & Sport,011060,Hardwick Park Catering,Supplies and Services,324117,Provisions E324,08-Jun-2018,000007464598519 - 1,HOPWELLS LTD,5811,Catering costs - provisions,96.71,,96.71
Regeneration and Local Services,Culture & Sport,011060,Hardwick Park Catering,Supplies and Services,324117,Provisions E324,08-Jun-2018,000007464598525,JR HOLLAND FOODSERVICE,5422,Catering costs - provisions,95.11,0.00,95.11
Regeneration and Local Services,Culture & Sport,011060,Hardwick Park Catering,Supplies and Services,324117,Provisions E324,08-Jun-2018,000007464598529,JR HOLLAND FOODSERVICE,5422,Catering costs - provisions,27.91,0.00,27.91
Regeneration and Local Services,Culture & Sport,011060,Hardwick Park Catering,Supplies and Services,324117,Provisions E324,08-Jun-2018,000007464598533,JR HOLLAND FOODSERVICE,5422,Catering costs - provisions,3.76,0.00,3.76
Regeneration and Local Services,Culture & Sport,011060,Hardwick Park Catering,Supplies and Services,324117,Provisions E324,08-Jun-2018,000007464598535,HOPWELLS LTD,5811,Catering costs - provisions,-29.90,0.00,-29.90
Regeneration and Local Services,Spatial Policy Planning Assets & Environment,031200,North Pennines Core,Supplies and Services,352001,Conference Expenses,08-Jun-2018,000007464598543,YE OLDE FIGHTING COCKS,7011,Conferencesseminars fees etc,-6.00,0.00,-6.00
Regeneration and Local Services,Direct Services,021234,Catering - Locomotion,Supplies and Services,324117,Provisions E324,08-Jun-2018,000007464598565,HOPWELLS LTD,5811,Catering costs - provisions,131.16,21.86,109.30
Regeneration and Local Services,Direct Services,021234,Catering - Locomotion,Supplies and Services,324117,Provisions E324,08-Jun-2018,000007464598565 - 1,HOPWELLS LTD,5811,Catering costs - provisions,101.32,,101.32
Regeneration and Local Services,Direct Services,021234,Catering - Locomotion,Supplies and Services,324117,Provisions E324,08-Jun-2018,000007464598569,HOPWELLS LTD,5811,Catering costs - provisions,57.42,9.57,47.85
Regeneration and Local Services,Direct Services,021234,Catering - Locomotion,Supplies and Services,324117,Provisions E324,08-Jun-2018,000007464598569 - 1,HOPWELLS LTD,5811,Catering costs - provisions,162.63,,162.63
Regeneration and Local Services,Direct Services,021234,Catering - Locomotion,Supplies and Services,324117,Provisions E324,08-Jun-2018,000007464598573,HOPWELLS LTD,5811,Catering costs - provisions,168.19,0.00,168.19
Regeneration and Local Services,Direct Services,021234,Catering - Locomotion,Supplies and Services,324117,Provisions E324,08-Jun-2018,000007464598577,HOPWELLS LTD,5811,Catering costs - provisions,39.65,0.00,39.65
Regeneration and Local Services,Direct Services,021234,Catering - Locomotion,Supplies and Services,324117,Provisions E324,08-Jun-2018,000007464598579,HOPWELLS LTD,5811,Catering costs - provisions,-19.10,0.00,-19.10
Regeneration and Local Services,Culture & Sport,011204,Events,Supplies and Services,332047,Printing Stationery and Gen Off Exps,08-Jun-2018,000007464598583,CHALK BOARDS R US,5943,Stationery,378.90,0.00,378.90
Regeneration and Local Services,Direct Services,010525,Catering - Green Lane,Supplies and Services,324117,Provisions E324,08-Jun-2018,000007464598619,HOPWELLS LTD,5811,Catering costs - provisions,69.50,0.00,69.50
Regeneration and Local Services,Direct Services,010525,Catering - Green Lane,Supplies and Services,324117,Provisions E324,08-Jun-2018,000007464598623,JR HOLLAND FOODSERVICE,5422,Catering costs - provisions,63.68,0.00,63.68
Transformation and Partnerships,Comms & Information Management,060131,County Records,Supplies and Services,304403,Equipment and Materials,08-Jun-2018,000007464598629,SP THEREBUTNOTTHERE,5734,Other consumables,750.00,125.00,625.00
Transformation and Partnerships,Comms & Information Management,060131,County Records,Supplies and Services,304403,Equipment and Materials,08-Jun-2018,000007464598629 - 1,SP THEREBUTNOTTHERE,5734,Other consumables,26.30,,26.30
Children and Young Peoples Services,"Head of Early Help, Inclusion and Vulnerable Children",071441,Bishop Auckland One Point Hub,Premises,115125,Repairs to Grounds,08-Jun-2018,000007464598673,HALFORDS 0526,5940,General maintenance,3.89,0.00,3.89
Regeneration and Local Services,Direct Services,020051,Bldg Serv - CONS - Building General,Supplies and Services,304221,Equipment and Materials,08-Jun-2018,000007464598719,WWW.UKSMOBILITY.CO.UK,5999,Direct materials,500.34,83.39,416.95
Children and Young Peoples Services,Head of Childrens Social Care,085333,Coxhoe Satelite Home,Supplies and Services,324117,Provisions E324,08-Jun-2018,000007464598727,TESCO STORES 2371,5411,Catering costs - provisions,196.81,0.00,196.81
Regeneration and Local Services,Economic Development and Housing,030692,Durham Dales Centre - Management and Admin,Supplies and Services,324117,Provisions E324,08-Jun-2018,000007464598767,JR HOLLAND FOODSERVICE,5422,Catering costs - provisions,43.76,0.00,43.76
Adult and Health Services,Head of Adults,055643,Hawthorn House LD Respite Unit,Supplies and Services,324117,Provisions E324,08-Jun-2018,000007464598791,HOPWELLS LTD,5811,Catering costs - provisions,33.42,5.57,27.85
Adult and Health Services,Head of Adults,055643,Hawthorn House LD Respite Unit,Supplies and Services,324117,Provisions E324,08-Jun-2018,000007464598791 - 1,HOPWELLS LTD,5811,Catering costs - provisions,68.97,,68.97
Adult and Health Services,Head of Adults,055643,Hawthorn House LD Respite Unit,Supplies and Services,324117,Provisions E324,08-Jun-2018,000007464598795,JR HOLLAND FOODSERVICE,5422,Catering costs - provisions,17.10,0.00,17.10
Children and Young Peoples Services,Head of Education and Skills,071903,EYDCP-Sustainability EDS,Supplies and Services,324117,Provisions E324,08-Jun-2018,000007464598803,ALDI 59 774,5411,Catering costs - provisions,11.60,0.00,11.60
Dedicated Schools Grant,DSG High Needs Block,079040,SENSS-HQ,Supplies and Services,324117,Provisions E324,08-Jun-2018,000007464598861,TESCO STORES 2371,5411,Catering costs - provisions,16.97,0.00,16.97
Regeneration and Local Services,Culture & Sport,054235,Bishop Auckland Town Hall Cafe,Supplies and Services,324117,Provisions E324,08-Jun-2018,000007464598883,HOPWELLS LTD,5811,Catering costs - provisions,52.10,0.00,52.10
Regeneration and Local Services,Culture & Sport,054235,Bishop Auckland Town Hall Cafe,Supplies and Services,324117,Provisions E324,08-Jun-2018,000007464598885,JR HOLLAND FOODSERVICE,5422,Catering costs - provisions,52.34,0.00,52.34
Regeneration and Local Services,Direct Services,021324,Catering - Meadowfield,Supplies and Services,324117,Provisions E324,08-Jun-2018,000007464598897,HOPWELLS LTD,5811,Catering costs - provisions,42.90,7.15,35.75
Regeneration and Local Services,Direct Services,021324,Catering - Meadowfield,Supplies and Services,324117,Provisions E324,08-Jun-2018,000007464598897 - 1,HOPWELLS LTD,5811,Catering costs - provisions,53.91,,53.91
Regeneration and Local Services,Direct Services,021324,Catering - Meadowfield,Supplies and Services,324117,Provisions E324,08-Jun-2018,000007464598903,JR HOLLAND FOODSERVICE,5422,Catering costs - provisions,34.68,0.00,34.68
Regeneration and Local Services,Direct Services,021324,Catering - Meadowfield,Supplies and Services,324117,Provisions E324,08-Jun-2018,000007464598905,JR HOLLAND FOODSERVICE,5422,Catering costs - provisions,13.89,0.00,13.89
Children and Young Peoples Services,Head of Childrens Social Care,085331,New Lea Childrens Home,Supplies and Services,312011,Newspapers books and periodicals E312,08-Jun-2018,000007464598965,Amazon UK Marketplace,5942,Books-school library,9.90,0.00,9.90
Adult and Health Services,Head of Adults,055807,Newton Aycliffe Pathways,Supplies and Services,304259,Equipment and Materials,08-Jun-2018,000007464598987,WILKO DURHAM 426,5722,Equipment-purchase and rental,12.00,0.00,12.00
Adult and Health Services,Head of Adults,055807,Newton Aycliffe Pathways,Supplies and Services,384999,Miscellaneous Expenses,08-Jun-2018,000007464598991,SMYTHS TOYS UK LTD,5945,Other expenses,12.02,0.00,12.02
Regeneration and Local Services,Direct Services,021235,Catering - Wharton Park,Supplies and Services,324117,Provisions E324,08-Jun-2018,000007464599005,HOPWELLS LTD,5811,Catering costs - provisions,192.24,32.04,160.20
Regeneration and Local Services,Direct Services,021235,Catering - Wharton Park,Supplies and Services,324117,Provisions E324,08-Jun-2018,000007464599005 - 1,HOPWELLS LTD,5811,Catering costs - provisions,37.54,,37.54
Regeneration and Local Services,Direct Services,021235,Catering - Wharton Park,Supplies and Services,324117,Provisions E324,08-Jun-2018,000007464599011,HOPWELLS LTD,5811,Catering costs - provisions,87.42,14.57,72.85
Regeneration and Local Services,Direct Services,021235,Catering - Wharton Park,Supplies and Services,324117,Provisions E324,08-Jun-2018,000007464599011 - 1,HOPWELLS LTD,5811,Catering costs - provisions,9.34,,9.34
Regeneration and Local Services,Direct Services,021235,Catering - Wharton Park,Supplies and Services,324117,Provisions E324,08-Jun-2018,000007464599013,JR HOLLAND FOODSERVICE,5422,Catering costs - provisions,37.15,0.00,37.15
Regeneration and Local Services,Direct Services,021235,Catering - Wharton Park,Supplies and Services,324117,Provisions E324,08-Jun-2018,000007464599017,HOPWELLS LTD,5811,Catering costs - provisions,-19.26,-3.21,-16.05
Resources,Finance & Transactional Services,065116,Creditors/Purchasing,Supplies and Services,304999,Equipment and Materials,08-Jun-2018,000007464599037,GIRODMEDICAL,5976,Misc equipment tools and materials,50.34,8.39,41.95
Resources,Finance & Transactional Services,065116,Creditors/Purchasing,Supplies and Services,304999,Equipment and Materials,08-Jun-2018,000007464599037 - 1,GIRODMEDICAL,5976,Misc equipment tools and materials,7.90,,7.90
Children and Young Peoples Services,Head of Childrens Social Care,085363,LAC & Permanence Team 3,Supplies and Services,304259,Equipment and Materials,08-Jun-2018,000007464599051,SUNDERLAND CC,9399,Equipment-purchase and rental,10.00,0.00,10.00
Children and Young Peoples Services,Head of Childrens Social Care,085363,LAC & Permanence Team 3,Supplies and Services,304259,Equipment and Materials,08-Jun-2018,000007464599055,GRO HM PASSPORT OFFICE,9399,Equipment-purchase and rental,9.25,0.00,9.25
Children and Young Peoples Services,Head of Childrens Social Care,085363,LAC & Permanence Team 3,Supplies and Services,304259,Equipment and Materials,08-Jun-2018,000007464599057,TORBAY COUNCIL - WEB,9399,Equipment-purchase and rental,11.00,0.00,11.00
Children and Young Peoples Services,Head of Childrens Social Care,085363,LAC & Permanence Team 3,Employees,040149,Recruitment Instruction and Training,08-Jun-2018,000007464599061,WWW.DEVON.GOV.UK,8220,Training-all costs,10.50,0.00,10.50
Children and Young Peoples Services,Head of Childrens Social Care,085363,LAC & Permanence Team 3,Employees,040149,Recruitment Instruction and Training,08-Jun-2018,000007464599063,WWW.DEVON.GOV.UK,8220,Training-all costs,-10.50,0.00,-10.50
Resources,Finance & Transactional Services,065175,Administration,Supplies and Services,338048,Services,08-Jun-2018,000007464599067,HMCOURTS-SERVICE.G,9222,Court costs 338048,226.00,0.00,226.00
Regeneration and Local Services,Economic Development and Housing,030737,Durham Works Flexible Fund,Transport,235057,Public Transport,08-Jun-2018,000007464599089,GO NORTH EAST LIMITED,4131,Staff travelling,5.20,0.00,5.20
Regeneration and Local Services,Spatial Policy Planning Assets & Environment,031200,North Pennines Core,Supplies and Services,340001,Postages E340,08-Jun-2018,000007464599093,THE POST OFFICE,9402,Postages,6.25,0.00,6.25
Regeneration and Local Services,Spatial Policy Planning Assets & Environment,031200,North Pennines Core,Supplies and Services,312011,Newspapers books and periodicals E312,08-Jun-2018,000007464599095,Amazon UK Marketplace,5942,Books-school library,38.99,0.00,38.99
Children and Young Peoples Services,"Head of Early Help, Inclusion and Vulnerable Children",085801,CDYOS - Support,Supplies and Services,324117,Provisions E324,08-Jun-2018,000007464599109,ASDA SUPERSTORE,5411,Catering costs - provisions,19.34,0.00,19.34
Regeneration and Local Services,Culture & Sport,011060,Hardwick Park Catering,Supplies and Services,324117,Provisions E324,08-Jun-2018,000007475510795,BATLEYS PERTH,5300,Catering costs - provisions,14.82,2.47,12.35
Regeneration and Local Services,Culture & Sport,011060,Hardwick Park Catering,Supplies and Services,324117,Provisions E324,08-Jun-2018,000007475510795 - 1,BATLEYS PERTH,5300,Catering costs - provisions,121.23,,121.23
Regeneration and Local Services,Direct Services,010525,Catering - Green Lane,Supplies and Services,324117,Provisions E324,08-Jun-2018,000007475510891,BATLEYS PERTH,5300,Catering costs - provisions,105.36,17.56,87.80
Regeneration and Local Services,Direct Services,010525,Catering - Green Lane,Supplies and Services,324117,Provisions E324,08-Jun-2018,000007475510891 - 1,BATLEYS PERTH,5300,Catering costs - provisions,91.56,,91.56
Regeneration and Local Services,Direct Services,010525,Catering - Green Lane,Supplies and Services,324117,Provisions E324,08-Jun-2018,000007475510901,BATLEYS PERTH,5300,Catering costs - provisions,9.96,1.66,8.30
Regeneration and Local Services,Direct Services,010525,Catering - Green Lane,Supplies and Services,324117,Provisions E324,08-Jun-2018,000007475510901 - 1,BATLEYS PERTH,5300,Catering costs - provisions,3.88,,3.88
Regeneration and Local Services,Direct Services,010525,Catering - Green Lane,Supplies and Services,324117,Provisions E324,08-Jun-2018,000007475510905,BATLEYS PERTH,5300,Catering costs - provisions,23.22,3.87,19.35
Adult and Health Services,Head of Adults,055643,Hawthorn House LD Respite Unit,Supplies and Services,324117,Provisions E324,08-Jun-2018,000007475511145,BATLEYS PERTH,5300,Catering costs - provisions,48.18,8.03,40.15
Adult and Health Services,Head of Adults,055643,Hawthorn House LD Respite Unit,Supplies and Services,324117,Provisions E324,08-Jun-2018,000007475511145 - 1,BATLEYS PERTH,5300,Catering costs - provisions,123.46,,123.46
Children and Young Peoples Services,Head of Childrens Social Care,085361,LAC & Permanence Team 1,Supplies and Services,384999,Miscellaneous Expenses,08-Jun-2018,000007559372537,GRO HM PASSPORT OFFICE,9399,Other expenses,-9.25,0.00,-9.25
Regeneration and Local Services,Technical Services,018300,Highways Operations - East,Supplies and Services,344033,Telephones,09-Jun-2018,000007464597897,Amazon UK Marketplace,5942,Telephones general-all costs,26.97,4.50,22.47
Children and Young Peoples Services,Head of Childrens Social Care,085511,Emergency Duty Team,Employees,040149,Recruitment Instruction and Training,09-Jun-2018,000007464598125,PREMIER INN,3811,Training-all costs,145.00,0.00,145.00
Children and Young Peoples Services,Head of Childrens Social Care,085334,West Rainton Satelite Home,Supplies and Services,304259,Equipment and Materials,09-Jun-2018,000007464598315,PP INFINITE AIR,5941,Equipment-purchase and rental,35.85,0.00,35.85
Children and Young Peoples Services,Head of Childrens Social Care,085334,West Rainton Satelite Home,Supplies and Services,304259,Equipment and Materials,09-Jun-2018,000007464598319,PP INFINITE AIR,5941,Equipment-purchase and rental,15.00,0.00,15.00
Children and Young Peoples Services,"Head of Early Help, Inclusion and Vulnerable Children",085957,Secure Management,Supplies and Services,324117,Provisions E324,09-Jun-2018,000007464598459,TESCO STORES 6329,5411,Catering costs - provisions,91.34,0.00,91.34
Regeneration and Local Services,Culture & Sport,054813,Gala Theatre - Technical,Supplies and Services,312011,Newspapers books and periodicals E312,09-Jun-2018,000007464598467,Amazon UK Marketplace,5942,Books-school library,139.88,0.00,139.88
Regeneration and Local Services,Culture & Sport,054813,Gala Theatre - Technical,Supplies and Services,312011,Newspapers books and periodicals E312,09-Jun-2018,000007464598471,Amazon EU,5969,Books-school library,74.60,0.00,74.60
Regeneration and Local Services,Culture & Sport,054813,Gala Theatre - Technical,Supplies and Services,312011,Newspapers books and periodicals E312,09-Jun-2018,000007464598473,Amazon EU,5969,Books-school library,74.60,0.00,74.60
Regeneration and Local Services,Culture & Sport,054813,Gala Theatre - Technical,Supplies and Services,312011,Newspapers books and periodicals E312,09-Jun-2018,000007464598477,Amazon EU,5969,Books-school library,39.36,0.00,39.36
Regeneration and Local Services,Culture & Sport,054813,Gala Theatre - Technical,Supplies and Services,312011,Newspapers books and periodicals E312,09-Jun-2018,000007464598479,Amazon EU,5969,Books-school library,39.36,0.00,39.36
Regeneration and Local Services,Culture & Sport,054813,Gala Theatre - Technical,Supplies and Services,312011,Newspapers books and periodicals E312,09-Jun-2018,000007464598481,Amazon EU,5969,Books-school library,39.36,0.00,39.36
Regeneration and Local Services,Culture & Sport,054813,Gala Theatre - Technical,Supplies and Services,312011,Newspapers books and periodicals E312,09-Jun-2018,000007464598485,Amazon EU,5969,Books-school library,39.36,0.00,39.36
Regeneration and Local Services,Culture & Sport,054813,Gala Theatre - Technical,Supplies and Services,312011,Newspapers books and periodicals E312,09-Jun-2018,000007464598487,Amazon EU,5969,Books-school library,39.36,0.00,39.36
Regeneration and Local Services,Culture & Sport,054813,Gala Theatre - Technical,Supplies and Services,304259,Equipment and Materials,09-Jun-2018,000007464598491,B & Q 1221,5211,Equipment-purchase and rental,69.07,0.00,69.07
Regeneration and Local Services,Culture & Sport,054813,Gala Theatre - Technical,Supplies and Services,340001,Postages E340,09-Jun-2018,000007464598493,THE POST OFFICE,9402,Postages,56.64,0.00,56.64
Children and Young Peoples Services,Head of Childrens Social Care,085333,Coxhoe Satelite Home,Supplies and Services,308011,Furniture,09-Jun-2018,000007464598923,IKEA LIMITED,5712,Furniture repair and replacement,143.50,23.92,119.58
Children and Young Peoples Services,"Head of Early Help, Inclusion and Vulnerable Children",085801,CDYOS - Support,Supplies and Services,324117,Provisions E324,09-Jun-2018,000007464599111,MARKS&SPENCER PLC SACA,5411,Catering costs - provisions,3.50,0.00,3.50
Children and Young Peoples Services,Head of Education and Skills,071801,Selby Cottage Childcare Centre,Supplies and Services,304259,Equipment and Materials,10-Jun-2018,000007464597881,WILKO RETAIL LIMIT,5722,Equipment-purchase and rental,4.00,0.00,4.00
Children and Young Peoples Services,"Head of Early Help, Inclusion and Vulnerable Children",079599,Psychological-HQ,Supplies and Services,312011,Newspapers books and periodicals E312,10-Jun-2018,000007464598109,Amazon UK Marketplace,5942,Books-school library,36.60,6.10,30.50
Children and Young Peoples Services,"Head of Early Help, Inclusion and Vulnerable Children",079599,Psychological-HQ,Supplies and Services,312011,Newspapers books and periodicals E312,10-Jun-2018,000007464598109 - 1,Amazon UK Marketplace,5942,Books-school library,22.97,,22.97
Children and Young Peoples Services,Head of Childrens Social Care,085333,Coxhoe Satelite Home,Supplies and Services,324117,Provisions E324,10-Jun-2018,000007464598265,CO-OP GROUP 310016,5411,Catering costs - provisions,5.12,0.00,5.12
Children and Young Peoples Services,Head of Education and Skills,071903,EYDCP-Sustainability EDS,Supplies and Services,312011,Newspapers books and periodicals E312,10-Jun-2018,000007464598423,Amazon UK Marketplace,5942,Books-school library,35.27,0.00,35.27
Resources,Resources Management,069000,Resources Management,Supplies and Services,324117,Provisions E324,10-Jun-2018,000007464598731,ICELAND,5411,Catering costs - provisions,14.08,0.00,14.08
Regeneration and Local Services,Culture & Sport,011060,Hardwick Park Catering,Supplies and Services,304083,Equipment and Materials,10-Jun-2018,000007464598895,Amazon UK Marketplace,5942,Catering equipment,27.97,0.00,27.97
Children and Young Peoples Services,Head of Childrens Social Care,085341,High Etherley Satelite Home,Supplies and Services,324117,Provisions E324,11-Jun-2018,000007471991615,TESCO STORES 6329,5411,Catering costs - provisions,49.71,0.00,49.71
Children and Young Peoples Services,Head of Education and Skills,071801,Selby Cottage Childcare Centre,Supplies and Services,304259,Equipment and Materials,11-Jun-2018,000007471991635,WILKO RETAIL LIMIT,5722,Equipment-purchase and rental,14.00,0.00,14.00
Resources,Digital and Customer Services,065350,Innovation,Employees,040149,Recruitment Instruction and Training,11-Jun-2018,000007471991637,Udemy,7372,Training-all costs,59.98,0.00,59.98
Children and Young Peoples Services,Head of Childrens Social Care,085100,Strategic Manager Families First Area South,Supplies and Services,384199,Miscellaneous Expenses,11-Jun-2018,000007471991641,DARLINGTON BC INTERNET,9399,Other hired and contracted services,12.00,0.00,12.00
Regeneration and Local Services,Direct Services,010383,C&G - South Street Cleansing,Supplies and Services,304259,Equipment and Materials,11-Jun-2018,000007471991677,RICHMOND TURF GROW,5261,Equipment-purchase and rental,24.96,4.16,20.80
Children and Young Peoples Services,Head of Childrens Social Care,085342,9 Cedar Drive Aycliffe,Supplies and Services,324117,Provisions E324,11-Jun-2018,000007471991697,TESCO STORES 2916,5411,Catering costs - provisions,22.10,0.00,22.10
Children and Young Peoples Services,Head of Childrens Social Care,085342,9 Cedar Drive Aycliffe,Supplies and Services,324117,Provisions E324,11-Jun-2018,000007471991701,TESCO STORES 2916,5411,Catering costs - provisions,17.35,0.00,17.35
Regeneration and Local Services,Direct Services,021242,Catering - County Hall,Supplies and Services,324117,Provisions E324,11-Jun-2018,000007471991765,WWW.ADELIEFOODS.CO.UK,5499,Catering costs - provisions,238.87,0.00,238.87
Regeneration and Local Services,Direct Services,021242,Catering - County Hall,Supplies and Services,324117,Provisions E324,11-Jun-2018,000007471991767,WWW.ADELIEFOODS.CO.UK,5499,Catering costs - provisions,198.03,0.00,198.03
Regeneration and Local Services,Direct Services,021242,Catering - County Hall,Supplies and Services,324117,Provisions E324,11-Jun-2018,000007471991769,WWW.ADELIEFOODS.CO.UK,5499,Catering costs - provisions,146.01,0.00,146.01
Regeneration and Local Services,Direct Services,021242,Catering - County Hall,Supplies and Services,324117,Provisions E324,11-Jun-2018,000007471991773,WWW.ADELIEFOODS.CO.UK,5499,Catering costs - provisions,104.23,0.00,104.23
Regeneration and Local Services,Direct Services,021242,Catering - County Hall,Supplies and Services,324117,Provisions E324,11-Jun-2018,000007471991775,FREEMAN CATERING BUTCH,5422,Catering costs - provisions,220.15,0.00,220.15
Regeneration and Local Services,Direct Services,021242,Catering - County Hall,Supplies and Services,324117,Provisions E324,11-Jun-2018,000007471991779,FREEMAN CATERING BUTCH,5422,Catering costs - provisions,13.53,0.00,13.53
Regeneration and Local Services,Direct Services,021242,Catering - County Hall,Supplies and Services,324117,Provisions E324,11-Jun-2018,000007471991783,JR HOLLAND FOODSERVICE,5422,Catering costs - provisions,96.04,0.00,96.04
Regeneration and Local Services,Direct Services,021242,Catering - County Hall,Supplies and Services,324117,Provisions E324,11-Jun-2018,000007471991787,JR HOLLAND FOODSERVICE,5422,Catering costs - provisions,-10.50,0.00,-10.50
Regeneration and Local Services,Direct Services,021242,Catering - County Hall,Supplies and Services,324117,Provisions E324,11-Jun-2018,000007471991791,JR HOLLAND FOODSERVICE,5422,Catering costs - provisions,-13.20,0.00,-13.20
Resources,Digital and Customer Services,065461,Business Support,Supplies and Services,372009,Subscriptions E372,11-Jun-2018,000007471991803,NOMINET UK,5734,Subscriptions 372009,85.50,14.25,71.25
Regeneration and Local Services,Economic Development and Housing,030737,Durham Works Flexible Fund,Transport,235057,Public Transport,11-Jun-2018,000007471991807,ARRIVA NORTH EAST,4131,Staff travelling,7.20,0.00,7.20
Regeneration and Local Services,Culture & Sport,054812,Gala Theatre - Catering etc,Supplies and Services,324117,Provisions E324,11-Jun-2018,000007471991809,JR HOLLAND FOODSERVICE,5422,Catering costs - provisions,48.61,0.00,48.61
Children and Young Peoples Services,Head of Childrens Social Care,085333,Coxhoe Satelite Home,Supplies and Services,312011,Newspapers books and periodicals E312,11-Jun-2018,000007471991849,Amazon UK Marketplace,5942,Books-school library,4.99,0.00,4.99
Children and Young Peoples Services,Head of Childrens Social Care,085333,Coxhoe Satelite Home,Supplies and Services,312011,Newspapers books and periodicals E312,11-Jun-2018,000007471991851,Amazon UK Marketplace,5942,Books-school library,9.99,0.00,9.99
Children and Young Peoples Services,Head of Childrens Social Care,085333,Coxhoe Satelite Home,Supplies and Services,312011,Newspapers books and periodicals E312,11-Jun-2018,000007471991855,Amazon UK Marketplace,5942,Books-school library,8.40,0.00,8.40
Children and Young Peoples Services,Head of Childrens Social Care,085333,Coxhoe Satelite Home,Supplies and Services,312011,Newspapers books and periodicals E312,11-Jun-2018,000007471991857,Amazon UK Marketplace,5942,Books-school library,18.95,0.00,18.95
Children and Young Peoples Services,Head of Childrens Social Care,085333,Coxhoe Satelite Home,Supplies and Services,312011,Newspapers books and periodicals E312,11-Jun-2018,000007471991859,Amazon UK Marketplace,5942,Books-school library,33.98,0.00,33.98
Children and Young Peoples Services,Head of Childrens Social Care,085333,Coxhoe Satelite Home,Supplies and Services,312011,Newspapers books and periodicals E312,11-Jun-2018,000007471991863,Amazon EU,5969,Books-school library,12.47,0.00,12.47
Children and Young Peoples Services,Head of Education and Skills,071732,Dean Bank Childcare,Supplies and Services,324117,Provisions E324,11-Jun-2018,000007471991897,ASDA GROCERIES ONLINE,5411,Catering costs - provisions,63.70,0.00,63.70
Children and Young Peoples Services,Head of Education and Skills,071732,Dean Bank Childcare,Supplies and Services,324117,Provisions E324,11-Jun-2018,000007471991899,TESCO STORES 2916,5411,Catering costs - provisions,57.45,0.00,57.45
Children and Young Peoples Services,Head of Education and Skills,071732,Dean Bank Childcare,Supplies and Services,324117,Provisions E324,11-Jun-2018,000007471991903,ASDA GROCERIES ONLINE,5411,Catering costs - provisions,-0.16,0.00,-0.16
Regeneration and Local Services,Culture & Sport,054813,Gala Theatre - Technical,Supplies and Services,328041,Clothing uniforms and laundry E328,11-Jun-2018,000007471991907,W BOYES & CO LTD CONSE,5310,Clothing uniforms and laundry,4.40,0.00,4.40
Regeneration and Local Services,Economic Development and Housing,030674,Business Services General,Supplies and Services,304403,Equipment and Materials,11-Jun-2018,000007471991931,CARD FACTORY,5947,Other consumables,17.77,0.00,17.77
Children and Young Peoples Services,"Head of Early Help, Inclusion and Vulnerable Children",085957,Secure Management,Supplies and Services,324117,Provisions E324,11-Jun-2018,000007471991943,TESCO STORES 6329,5411,Catering costs - provisions,181.46,0.00,181.46
Regeneration and Local Services,Culture & Sport,054813,Gala Theatre - Technical,Supplies and Services,332047,Printing Stationery and Gen Off Exps,11-Jun-2018,000007471991945,WWW.SAMCASES.CO.UK,5111,Stationery,449.90,0.00,449.90
Regeneration and Local Services,Culture & Sport,011060,Hardwick Park Catering,Supplies and Services,324117,Provisions E324,11-Jun-2018,000007471991955,FREEMAN CATERING BUTCH,5422,Catering costs - provisions,43.21,0.00,43.21
Regeneration and Local Services,Culture & Sport,011060,Hardwick Park Catering,Supplies and Services,324117,Provisions E324,11-Jun-2018,000007471991961,FREEMAN CATERING BUTCH,5422,Catering costs - provisions,31.79,0.00,31.79
Regeneration and Local Services,Culture & Sport,011060,Hardwick Park Catering,Supplies and Services,324117,Provisions E324,11-Jun-2018,000007471991963,JR HOLLAND FOODSERVICE,5422,Catering costs - provisions,-0.75,0.00,-0.75
Regeneration and Local Services,Culture & Sport,011060,Hardwick Park Catering,Supplies and Services,324117,Provisions E324,11-Jun-2018,000007471991965,JR HOLLAND FOODSERVICE,5422,Catering costs - provisions,-1.44,0.00,-1.44
Regeneration and Local Services,Culture & Sport,026591,Hardwick Park,Supplies and Services,304259,Equipment and Materials,11-Jun-2018,000007471991977,SCREWFIX DIRECT,5211,Equipment-purchase and rental,60.48,10.08,50.40
Regeneration and Local Services,Direct Services,021234,Catering - Locomotion,Supplies and Services,324117,Provisions E324,11-Jun-2018,000007471991981,WWW.ADELIEFOODS.CO.UK,5499,Catering costs - provisions,84.63,0.00,84.63
Regeneration and Local Services,Direct Services,021234,Catering - Locomotion,Supplies and Services,324117,Provisions E324,11-Jun-2018,000007471991983,WWW.ADELIEFOODS.CO.UK,5499,Catering costs - provisions,83.40,0.00,83.40
Regeneration and Local Services,Direct Services,021234,Catering - Locomotion,Supplies and Services,324117,Provisions E324,11-Jun-2018,000007471991985,WWW.ADELIEFOODS.CO.UK,5499,Catering costs - provisions,50.55,0.00,50.55
Regeneration and Local Services,Direct Services,021234,Catering - Locomotion,Supplies and Services,324117,Provisions E324,11-Jun-2018,000007471991987,WWW.ADELIEFOODS.CO.UK,5499,Catering costs - provisions,25.05,0.00,25.05
Regeneration and Local Services,Direct Services,021234,Catering - Locomotion,Supplies and Services,324117,Provisions E324,11-Jun-2018,000007471991989,FREEMAN CATERING BUTCH,5422,Catering costs - provisions,73.08,0.00,73.08
Regeneration and Local Services,Direct Services,021234,Catering - Locomotion,Supplies and Services,324117,Provisions E324,11-Jun-2018,000007471991993,FREEMAN CATERING BUTCH,5422,Catering costs - provisions,40.09,0.00,40.09
Regeneration and Local Services,Direct Services,021234,Catering - Locomotion,Supplies and Services,324117,Provisions E324,11-Jun-2018,000007471991995,JR HOLLAND FOODSERVICE,5422,Catering costs - provisions,44.57,0.00,44.57
Regeneration and Local Services,Direct Services,021234,Catering - Locomotion,Supplies and Services,324117,Provisions E324,11-Jun-2018,000007471991997,JR HOLLAND FOODSERVICE,5422,Catering costs - provisions,39.70,0.00,39.70
Regeneration and Local Services,Economic Development and Housing,031576,B& B - Temp Accom,Supplies and Services,364320,Grants to Voluntary Organisations,11-Jun-2018,000007471992005,TOAST LETTINGS,7011,Accommodation assistance,455.00,0.00,455.00
Regeneration and Local Services,Direct Services,010525,Catering - Green Lane,Supplies and Services,324117,Provisions E324,11-Jun-2018,000007471992017,WWW.ADELIEFOODS.CO.UK,5499,Catering costs - provisions,51.77,0.00,51.77
Regeneration and Local Services,Direct Services,010525,Catering - Green Lane,Supplies and Services,324117,Provisions E324,11-Jun-2018,000007471992019,WWW.ADELIEFOODS.CO.UK,5499,Catering costs - provisions,35.18,0.00,35.18
Regeneration and Local Services,Direct Services,010525,Catering - Green Lane,Supplies and Services,324117,Provisions E324,11-Jun-2018,000007471992023,FREEMAN CATERING BUTCH,5422,Catering costs - provisions,44.77,0.00,44.77
Regeneration and Local Services,Direct Services,019100,Fleet - Strategic Fleet,Supplies and Services,304259,Equipment and Materials,11-Jun-2018,000007471992029,DVSA MOT COMP 2,9399,Equipment-purchase and rental,410.00,0.00,410.00
Resources,Corporate Finance & Commercial Services,069800,Corporate Procurement,Supplies and Services,304259,Equipment and Materials,11-Jun-2018,000007471992051,FINANCIAL CONDUCT AUTH,9399,Equipment-purchase and rental,12.00,0.00,12.00
Children and Young Peoples Services,Head of Childrens Social Care,085342,9 Cedar Drive Aycliffe,Employees,040149,Recruitment Instruction and Training,11-Jun-2018,000007471992121,PARENTPAY E-COM R,8220,Training-all costs,110.50,0.00,110.50
Adult and Health Services,Head of Adults,055643,Hawthorn House LD Respite Unit,Supplies and Services,324117,Provisions E324,11-Jun-2018,000007471992145,FREEMAN CATERING BUTCH,5422,Catering costs - provisions,37.89,0.00,37.89
Adult and Health Services,Head of Adults,055643,Hawthorn House LD Respite Unit,Supplies and Services,324117,Provisions E324,11-Jun-2018,000007471992151,JR HOLLAND FOODSERVICE,5422,Catering costs - provisions,-117.16,0.00,-117.16
Children and Young Peoples Services,Head of Education and Skills,078100,Curric and Professional Development,Supplies and Services,312011,Newspapers books and periodicals E312,11-Jun-2018,000007471992173,Amazon UK Marketplace,5942,Books-school library,35.70,0.00,35.70
Children and Young Peoples Services,"Head of Early Help, Inclusion and Vulnerable Children",085965,Barnard,Supplies and Services,304245,Equipment and Materials,11-Jun-2018,000007471992183,WWW.WHOLESALEGLASSCOMP,7399,Materials,171.10,28.52,142.58
Children and Young Peoples Services,"Head of Early Help, Inclusion and Vulnerable Children",085957,Secure Management,Supplies and Services,304335,Equipment and Materials,11-Jun-2018,000007471992187,Amazon UK Marketplace,5942,ICT supplies etc,25.00,0.00,25.00
Regeneration and Local Services,Culture & Sport,011060,Hardwick Park Catering,Supplies and Services,304083,Equipment and Materials,11-Jun-2018,000007471992211,Amazon UK Marketplace,5942,Catering equipment,5.17,0.00,5.17
Regeneration and Local Services,Direct Services,021324,Catering - Meadowfield,Supplies and Services,324117,Provisions E324,11-Jun-2018,000007471992215,FREEMAN CATERING BUTCH,5422,Catering costs - provisions,70.80,0.00,70.80
Regeneration and Local Services,Direct Services,021324,Catering - Meadowfield,Supplies and Services,324117,Provisions E324,11-Jun-2018,000007471992219,FREEMAN CATERING BUTCH,5422,Catering costs - provisions,41.74,0.00,41.74
Regeneration and Local Services,Direct Services,021324,Catering - Meadowfield,Supplies and Services,324117,Provisions E324,11-Jun-2018,000007471992223,FREEMAN CATERING BUTCH,5422,Catering costs - provisions,-9.58,0.00,-9.58
Regeneration and Local Services,Economic Development and Housing,030554,International Relations,Transport,235057,Public Transport,11-Jun-2018,000007471992279,NODA TAXIS LTD,4121,Staff travelling,3.80,0.00,3.80
Regeneration and Local Services,Economic Development and Housing,030554,International Relations,Transport,235057,Public Transport,11-Jun-2018,000007471992283,NODA TAXIS LTD,4121,Staff travelling,3.50,0.00,3.50
Children and Young Peoples Services,Head of Childrens Social Care,085331,New Lea Childrens Home,Supplies and Services,304221,Equipment and Materials,11-Jun-2018,000007471992313,COVERWISE.CO.UK,6300,Direct materials,16.53,0.00,16.53
Adult and Health Services,Head of Adults,055302,Durham Pathways,Supplies and Services,324117,Provisions E324,11-Jun-2018,000007471992317,LIDL UK DURHAM,5411,Catering costs - provisions,5.35,0.00,5.35
Resources,Legal & Democratic Services,067910,Democratic Representation,Supplies and Services,312009,Newspapers books and periodicals E312,11-Jun-2018,000007471992325,TEESDALE MERCURY LTD,5942,Newspapers books and periodicals,130.40,0.00,130.40
Adult and Health Services,Head of Adults,055306,Spennymoor Pathways,Supplies and Services,312011,Newspapers books and periodicals E312,11-Jun-2018,000007471992331,CHARLES DICKENS (SPENN,5251,Books-school library,13.58,0.00,13.58
Children and Young Peoples Services,Head of Childrens Social Care,085363,LAC & Permanence Team 3,Supplies and Services,304259,Equipment and Materials,11-Jun-2018,000007471992353,STOCKTON BOROUGH COUNC,9399,Equipment-purchase and rental,31.00,0.00,31.00
Regeneration and Local Services,Economic Development and Housing,030737,Durham Works Flexible Fund,Transport,235057,Public Transport,11-Jun-2018,000007471992363,GO NORTH EAST LIMITED,4131,Staff travelling,72.00,0.00,72.00
Regeneration and Local Services,Culture & Sport,054812,Gala Theatre - Catering etc,Supplies and Services,324117,Provisions E324,11-Jun-2018,000007475510463,BATLEYS PERTH,5300,Catering costs - provisions,89.10,14.85,74.25
Regeneration and Local Services,Culture & Sport,054812,Gala Theatre - Catering etc,Supplies and Services,324117,Provisions E324,11-Jun-2018,000007475510463 - 1,BATLEYS PERTH,5300,Catering costs - provisions,111.08,,111.08
Regeneration and Local Services,Economic Development and Housing,031576,B& B - Temp Accom,Supplies and Services,364320,Grants to Voluntary Organisations,11-Jun-2018,000007475510993,PREMIER INN,3811,Accommodation assistance,378.00,63.00,315.00
Regeneration and Local Services,Economic Development and Housing,031576,B& B - Temp Accom,Supplies and Services,364320,Grants to Voluntary Organisations,11-Jun-2018,000007475511123,PREMIER INN,3811,Accommodation assistance,188.50,31.42,157.08
Regeneration and Local Services,Direct Services,010301,C&G - North Grounds Maintenance,Third Party Payments 4THIRD,430100,Rendered by Private Contractors,11-Jun-2018,000007475511315,JOHN WARREN (ANIMAL BY,7399,Payments to sub-contractors,8.10,0.00,8.10
Regeneration and Local Services,Direct Services,021235,Catering - Wharton Park,Supplies and Services,324117,Provisions E324,11-Jun-2018,000007475511475,BATLEYS PERTH,5300,Catering costs - provisions,197.04,32.84,164.20
Regeneration and Local Services,Direct Services,021235,Catering - Wharton Park,Supplies and Services,324117,Provisions E324,11-Jun-2018,000007475511475 - 1,BATLEYS PERTH,5300,Catering costs - provisions,58.44,,58.44
Regeneration and Local Services,Economic Development and Housing,030554,International Relations,Supplies and Services,384926,Miscellaneous Expenses,11-Jun-2018,000007475511561,PASTERIX C CONTA,7996,International visits,49.46,0.00,49.46
Children and Young Peoples Services,Head of Education and Skills,071801,Selby Cottage Childcare Centre,Supplies and Services,324117,Provisions E324,12-Jun-2018,000007475510171,TESCO STORES 2278,5411,Catering costs - provisions,15.32,0.00,15.32
Regeneration and Local Services,Transport and Contracted Services,032170,Integrated Passenger Transport,Supplies and Services,304335,Equipment and Materials,12-Jun-2018,000007475510191,Amazon UK Marketplace,5942,ICT supplies etc,60.75,10.13,50.62
Resources,Digital and Customer Services,065487,ICT Telephony Recharges,Supplies and Services,344033,Telephones,12-Jun-2018,000007475510195,Amazon UK Marketplace,5942,Telephones general-all costs,107.50,0.00,107.50
Regeneration and Local Services,Technical Services,018500,Highway Services - Countywide,Supplies and Services,344033,Telephones,12-Jun-2018,000007475510199,Amazon UK Marketplace,5942,Telephones general-all costs,99.00,16.50,82.50
Regeneration and Local Services,Technical Services,011037,Highway Capitalised Maint - Carriageway B Class Roads,Supplies and Services,344033,Telephones,12-Jun-2018,000007475510199 - 1,Amazon UK Marketplace,5942,Telephones general-all costs,9.88,,9.88
Regeneration and Local Services,Direct Services,011185,Nei. Prot - Unauthorised Encampments,Supplies and Services,338048,Services,12-Jun-2018,000007475510237,HMCOURTS-SERVICE.G,9222,Court costs 338048,226.00,0.00,226.00
Children and Young Peoples Services,Head of Childrens Social Care,085342,9 Cedar Drive Aycliffe,Supplies and Services,312011,Newspapers books and periodicals E312,12-Jun-2018,000007475510283,Amazon UK Marketplace,5942,Books-school library,9.98,0.00,9.98
Children and Young Peoples Services,Head of Childrens Social Care,085332,Middlestone Moor CU,Supplies and Services,324117,Provisions E324,12-Jun-2018,000007475510309,TESCO STORES 2916,5411,Catering costs - provisions,10.70,0.00,10.70
Children and Young Peoples Services,Head of Childrens Social Care,085332,Middlestone Moor CU,Supplies and Services,324117,Provisions E324,12-Jun-2018,000007475510315,STARBUCKS THINFORD,5499,Catering costs - provisions,5.40,0.00,5.40
Children and Young Peoples Services,Head of Childrens Social Care,085332,Middlestone Moor CU,Supplies and Services,324117,Provisions E324,12-Jun-2018,000007475510317,ALDI 74 774,5411,Catering costs - provisions,24.02,0.00,24.02
Regeneration and Local Services,Economic Development and Housing,030671,Business Space,Supplies and Services,340001,Postages E340,12-Jun-2018,000007475510355,THE POST OFFICE,9402,Postages,10.98,0.00,10.98
Regeneration and Local Services,Economic Development and Housing,030737,Durham Works Flexible Fund,Transport,230031,Contract Hire,12-Jun-2018,000007475510389,ARRIVA NORTH EAST,4131,Pupils-transport to play fields etc,43.20,0.00,43.20
Regeneration and Local Services,Direct Services,021242,Catering - County Hall,Supplies and Services,324117,Provisions E324,12-Jun-2018,000007475510399,JR HOLLAND FOODSERVICE,5422,Catering costs - provisions,73.33,0.00,73.33
Regeneration and Local Services,Direct Services,021242,Catering - County Hall,Supplies and Services,324117,Provisions E324,12-Jun-2018,000007475510405,JR HOLLAND FOODSERVICE,5422,Catering costs - provisions,42.05,0.00,42.05
Regeneration and Local Services,Direct Services,021242,Catering - County Hall,Supplies and Services,324117,Provisions E324,12-Jun-2018,000007475510411,JR HOLLAND FOODSERVICE,5422,Catering costs - provisions,31.78,0.00,31.78
Regeneration and Local Services,Direct Services,021242,Catering - County Hall,Supplies and Services,324117,Provisions E324,12-Jun-2018,000007475510413,JR HOLLAND FOODSERVICE,5422,Catering costs - provisions,13.54,0.00,13.54
Regeneration and Local Services,Direct Services,021242,Catering - County Hall,Supplies and Services,324117,Provisions E324,12-Jun-2018,000007475510415,JR HOLLAND FOODSERVICE,5422,Catering costs - provisions,13.20,0.00,13.20
Regeneration and Local Services,Direct Services,021242,Catering - County Hall,Supplies and Services,324117,Provisions E324,12-Jun-2018,000007475510417,JR HOLLAND FOODSERVICE,5422,Catering costs - provisions,4.08,0.00,4.08
Resources,Digital and Customer Services,065461,Business Support,Supplies and Services,372009,Subscriptions E372,12-Jun-2018,000007475510435,WEB NETWORKSOLUTIONS,5968,Subscriptions 372009,102.48,0.00,102.48
Resources,Digital and Customer Services,065461,Business Support,Supplies and Services,372009,Subscriptions E372,12-Jun-2018,000007475510443,WEB NETWORKSOLUTIONS,5968,Subscriptions 372009,71.92,0.00,71.92
Children and Young Peoples Services,Head of Childrens Social Care,085362,LAC & Permanence Team 2,Supplies and Services,384999,Miscellaneous Expenses,12-Jun-2018,000007475510567,SUNDERLAND CC,9399,Other expenses,10.00,0.00,10.00
Children and Young Peoples Services,Head of Education and Skills,071732,Dean Bank Childcare,Supplies and Services,312011,Newspapers books and periodicals E312,12-Jun-2018,000007475510631,Amazon UK Marketplace,5942,Books-school library,14.50,0.00,14.50
Children and Young Peoples Services,Head of Education and Skills,071732,Dean Bank Childcare,Supplies and Services,312011,Newspapers books and periodicals E312,12-Jun-2018,000007475510635,Amazon UK Marketplace,5942,Books-school library,43.95,0.00,43.95
Children and Young Peoples Services,Head of Education and Skills,071732,Dean Bank Childcare,Supplies and Services,312011,Newspapers books and periodicals E312,12-Jun-2018,000007475510639,Amazon UK Marketplace,5942,Books-school library,27.80,0.00,27.80
Children and Young Peoples Services,"Head of Early Help, Inclusion and Vulnerable Children",085957,Secure Management,Supplies and Services,312011,Newspapers books and periodicals E312,12-Jun-2018,000007475510739,Amazon UK Marketplace,5942,Books-school library,47.96,0.00,47.96
Children and Young Peoples Services,"Head of Early Help, Inclusion and Vulnerable Children",085957,Secure Management,Supplies and Services,312011,Newspapers books and periodicals E312,12-Jun-2018,000007475510745,Amazon UK Marketplace,5942,Books-school library,14.36,0.00,14.36
Children and Young Peoples Services,"Head of Early Help, Inclusion and Vulnerable Children",085957,Secure Management,Supplies and Services,304259,Equipment and Materials,12-Jun-2018,000007475510747,M and M Direct Ltd,5941,Equipment-purchase and rental,26.98,0.00,26.98
Children and Young Peoples Services,"Head of Early Help, Inclusion and Vulnerable Children",085957,Secure Management,Supplies and Services,312011,Newspapers books and periodicals E312,12-Jun-2018,000007475510751,Amazon UK Marketplace,5942,Books-school library,9.99,0.00,9.99
Children and Young Peoples Services,"Head of Early Help, Inclusion and Vulnerable Children",085957,Secure Management,Supplies and Services,324117,Provisions E324,12-Jun-2018,000007475510753,TESCO STORES 6329,5411,Catering costs - provisions,50.88,0.00,50.88
Children and Young Peoples Services,"Head of Early Help, Inclusion and Vulnerable Children",085957,Secure Management,Supplies and Services,342033,Computers and Communications,12-Jun-2018,000007475510757,VERY,5964,Computer hardware,295.97,0.00,295.97
Children and Young Peoples Services,"Head of Early Help, Inclusion and Vulnerable Children",085957,Secure Management,Supplies and Services,328041,Clothing uniforms and laundry E328,12-Jun-2018,000007475510761,WWW.ARGOS.CO.UK,5310,Clothing uniforms and laundry,43.94,0.00,43.94
Children and Young Peoples Services,"Head of Early Help, Inclusion and Vulnerable Children",085957,Secure Management,Supplies and Services,304259,Equipment and Materials,12-Jun-2018,000007475510765,FOOTASYLUM PLC,5941,Equipment-purchase and rental,59.99,0.00,59.99
Regeneration and Local Services,Culture & Sport,011060,Hardwick Park Catering,Supplies and Services,324117,Provisions E324,12-Jun-2018,000007475510775,JR HOLLAND FOODSERVICE,5422,Catering costs - provisions,68.28,0.00,68.28
Regeneration and Local Services,Direct Services,010525,Catering - Green Lane,Supplies and Services,324117,Provisions E324,12-Jun-2018,000007475510887,JR HOLLAND FOODSERVICE,5422,Catering costs - provisions,59.95,0.00,59.95
Children and Young Peoples Services,Head of Childrens Social Care,085333,Coxhoe Satelite Home,Supplies and Services,324117,Provisions E324,12-Jun-2018,000007475511047,SAINSBURYS (2303),5411,Catering costs - provisions,46.83,0.00,46.83
Regeneration and Local Services,Economic Development and Housing,030692,Durham Dales Centre - Management and Admin,Supplies and Services,324117,Provisions E324,12-Jun-2018,000007475511091,JR HOLLAND FOODSERVICE,5422,Catering costs - provisions,104.74,0.00,104.74
Regeneration and Local Services,Economic Development and Housing,030692,Durham Dales Centre - Management and Admin,Supplies and Services,324117,Provisions E324,12-Jun-2018,000007475511097,JR HOLLAND FOODSERVICE,5422,Catering costs - provisions,38.02,0.00,38.02
Adult and Health Services,Head of Adults,055643,Hawthorn House LD Respite Unit,Supplies and Services,324117,Provisions E324,12-Jun-2018,000007475511133,JR HOLLAND FOODSERVICE,5422,Catering costs - provisions,24.06,0.00,24.06
Adult and Health Services,Head of Adults,055643,Hawthorn House LD Respite Unit,Supplies and Services,324117,Provisions E324,12-Jun-2018,000007475511141,JR HOLLAND FOODSERVICE,5422,Catering costs - provisions,10.27,0.00,10.27
Children and Young Peoples Services,Head of Education and Skills,078100,Curric and Professional Development,Supplies and Services,312011,Newspapers books and periodicals E312,12-Jun-2018,000007475511157,AMAZON SVCS EU-UK AMAZ,5942,Books-school library,6.59,0.00,6.59
Regeneration and Local Services,Direct Services,010301,C&G - North Grounds Maintenance,Supplies and Services,312011,Newspapers books and periodicals E312,12-Jun-2018,000007475511179,GRALANDS WOODWORK SUPP,5251,Books-school library,27.83,0.00,27.83
Children and Young Peoples Services,"Head of Early Help, Inclusion and Vulnerable Children",074000,TTF-Attachment and Results,Transfer Payments,525033,Other,12-Jun-2018,000007475511191,WILKO.COM,5399,Grants to individuals,149.00,24.83,124.17
Resources,Digital and Customer Services,065335,School Services - Implementations,Supplies and Services,304639,Equipment and Materials,12-Jun-2018,000007475511209,THE REPLACE BASE LTD,5734,Technicians-supplies,94.05,15.68,78.37
Resources,Digital and Customer Services,065335,School Services - Implementations,Supplies and Services,304259,Equipment and Materials,12-Jun-2018,000007475511213,WWW.TOOLSTATION.COM,5251,Equipment-purchase and rental,20.02,3.34,16.68
Resources,Digital and Customer Services,065335,School Services - Implementations,Supplies and Services,304639,Equipment and Materials,12-Jun-2018,000007475511215,Amazon UK Marketplace,5942,Technicians-supplies,20.96,3.49,17.47
Children and Young Peoples Services,"Head of Early Help, Inclusion and Vulnerable Children",085957,Secure Management,Supplies and Services,304335,Equipment and Materials,12-Jun-2018,000007475511233,Amazon UK Marketplace,5942,ICT supplies etc,25.53,0.00,25.53
Children and Young Peoples Services,"Head of Early Help, Inclusion and Vulnerable Children",085957,Secure Management,Supplies and Services,384999,Miscellaneous Expenses,12-Jun-2018,000007475511237,Amazon EU,5969,Other expenses,44.08,7.35,36.73
Children and Young Peoples Services,"Head of Early Help, Inclusion and Vulnerable Children",085954,Walworth,Supplies and Services,344033,Telephones,12-Jun-2018,000007475511243,ARGOS RETAIL GROUP,5310,Telephones general-all costs,59.97,0.00,59.97
Children and Young Peoples Services,"Head of Early Help, Inclusion and Vulnerable Children",085962,Aycliffe Secure - Durham,Supplies and Services,328041,Clothing uniforms and laundry E328,12-Jun-2018,000007475511245,VERY,5964,Clothing uniforms and laundry,-38.00,0.00,-38.00
Children and Young Peoples Services,"Head of Early Help, Inclusion and Vulnerable Children",085962,Aycliffe Secure - Durham,Supplies and Services,328041,Clothing uniforms and laundry E328,12-Jun-2018,000007475511247,VERY,5964,Clothing uniforms and laundry,-45.00,0.00,-45.00
Children and Young Peoples Services,Head of Childrens Social Care,085351,Framwellgate Moor CU,Supplies and Services,324117,Provisions E324,12-Jun-2018,000007475511267,TESCO STORES 2371,5411,Catering costs - provisions,126.46,0.00,126.46
Children and Young Peoples Services,Head of Education and Skills,071903,EYDCP-Sustainability EDS,Supplies and Services,304403,Equipment and Materials,12-Jun-2018,000007475511273,OUT OF SCHOOL ALLIANCE,5999,Other consumables,47.00,0.00,47.00
Children and Young Peoples Services,Head of Education and Skills,071903,EYDCP-Sustainability EDS,Employees,040149,Recruitment Instruction and Training,12-Jun-2018,000007475511275,NDNA,8398,Training-all costs,25.00,0.00,25.00
Children and Young Peoples Services,Head of Education and Skills,071903,EYDCP-Sustainability EDS,Supplies and Services,304221,Equipment and Materials,12-Jun-2018,000007475511277,MORTONMICHEL.COM,6300,Direct materials,60.00,0.00,60.00
Regeneration and Local Services,Culture & Sport,054235,Bishop Auckland Town Hall Cafe,Supplies and Services,324117,Provisions E324,12-Jun-2018,000007475511285,JR HOLLAND FOODSERVICE,5422,Catering costs - provisions,19.74,0.00,19.74
Regeneration and Local Services,Direct Services,021324,Catering - Meadowfield,Supplies and Services,324117,Provisions E324,12-Jun-2018,000007475511299,JR HOLLAND FOODSERVICE,5422,Catering costs - provisions,30.21,0.00,30.21
Regeneration and Local Services,Direct Services,021324,Catering - Meadowfield,Supplies and Services,324117,Provisions E324,12-Jun-2018,000007475511303,JR HOLLAND FOODSERVICE,5422,Catering costs - provisions,9.90,0.00,9.90
Children and Young Peoples Services,Head of Childrens Social Care,085380,Operations Manager Adoption & Fostering,Supplies and Services,324117,Provisions E324,12-Jun-2018,000007475511395,ASDA STORES,5411,Catering costs - provisions,26.98,0.00,26.98
Children and Young Peoples Services,Head of Childrens Social Care,085380,Operations Manager Adoption & Fostering,Supplies and Services,324117,Provisions E324,12-Jun-2018,000007475511403,ASDA STORES,5411,Catering costs - provisions,8.20,0.00,8.20
Adult and Health Services,Head of Adults,055302,Durham Pathways,Supplies and Services,332047,Printing Stationery and Gen Off Exps,12-Jun-2018,000007475511455,WILKO DURHAM 426,5722,Stationery,24.00,0.00,24.00
Adult and Health Services,Head of Adults,055309,Peterlee Pathways,Supplies and Services,324117,Provisions E324,12-Jun-2018,000007475511497,LIDL UK PETERLEE,5411,Catering costs - provisions,2.96,0.00,2.96
Regeneration and Local Services,Spatial Policy Planning Assets & Environment,031200,North Pennines Core,Supplies and Services,304403,Equipment and Materials,12-Jun-2018,000007475511543,TIMPSON LTD,7251,Other consumables,14.50,0.00,14.50
Regeneration and Local Services,Direct Services,021242,Catering - County Hall,Supplies and Services,324117,Provisions E324,12-Jun-2018,000007481003443,BATLEYS PERTH,5300,Catering costs - provisions,326.16,54.36,271.80
Regeneration and Local Services,Direct Services,021242,Catering - County Hall,Supplies and Services,324117,Provisions E324,12-Jun-2018,000007481003443 - 1,BATLEYS PERTH,5300,Catering costs - provisions,189.07,,189.07
Regeneration and Local Services,Culture & Sport,011060,Hardwick Park Catering,Supplies and Services,324117,Provisions E324,12-Jun-2018,000007481003529,BATLEYS PERTH,5300,Catering costs - provisions,146.94,24.49,122.45
Regeneration and Local Services,Culture & Sport,011060,Hardwick Park Catering,Supplies and Services,324117,Provisions E324,12-Jun-2018,000007481003529 - 1,BATLEYS PERTH,5300,Catering costs - provisions,183.70,,183.70
Regeneration and Local Services,Culture & Sport,054235,Bishop Auckland Town Hall Cafe,Supplies and Services,324117,Provisions E324,12-Jun-2018,000007481003667,BATLEYS PERTH,5300,Catering costs - provisions,44.71,0.00,44.71
Regeneration and Local Services,Direct Services,021324,Catering - Meadowfield,Supplies and Services,324117,Provisions E324,12-Jun-2018,000007481003673,BATLEYS PERTH,5300,Catering costs - provisions,51.06,8.51,42.55
Regeneration and Local Services,Direct Services,021324,Catering - Meadowfield,Supplies and Services,324117,Provisions E324,12-Jun-2018,000007481003673 - 1,BATLEYS PERTH,5300,Catering costs - provisions,152.29,,152.29
Children and Young Peoples Services,"Head of Early Help, Inclusion and Vulnerable Children",085957,Secure Management,Supplies and Services,304259,Equipment and Materials,12-Jun-2018,000007486410053,SPORTSDIRECT.COM,5941,Equipment-purchase and rental,93.98,15.66,78.32
Children and Young Peoples Services,Head of Education and Skills,071801,Selby Cottage Childcare Centre,Supplies and Services,312011,Newspapers books and periodicals E312,13-Jun-2018,000007475510177,Amazon UK Marketplace,5942,Books-school library,25.98,0.00,25.98
Dedicated Schools Grant,DSG High Needs Block,079052,Part Sighted-Belmont Comp,Supplies and Services,372009,Subscriptions E372,13-Jun-2018,000007475510291,ITUNES.COM/BILL,5735,Subscriptions 372009,19.99,0.00,19.99
Resources,Digital and Customer Services,065461,Business Support,Supplies and Services,372009,Subscriptions E372,13-Jun-2018,000007475510447,WEB NETWORKSOLUTIONS,5968,Subscriptions 372009,2.82,0.00,2.82
Resources,Digital and Customer Services,065461,Business Support,Supplies and Services,372009,Subscriptions E372,13-Jun-2018,000007475510451,WEB NETWORKSOLUTIONS,5968,Subscriptions 372009,1.98,0.00,1.98
Regeneration and Local Services,Economic Development and Housing,030554,International Relations,Supplies and Services,384926,Miscellaneous Expenses,13-Jun-2018,000007475511563,PASTERIX C CONTA,7996,International visits,1.36,0.00,1.36
Children and Young Peoples Services,Head of Education and Skills,054640,Durham Learning Resources,Supplies and Services,304245,Equipment and Materials,13-Jun-2018,000007481003399,WWW.SOUTHERNSWORDS.CO.,5611,Materials,408.50,68.08,340.42
Children and Young Peoples Services,Head of Childrens Social Care,085361,LAC & Permanence Team 1,Supplies and Services,344033,Telephones,13-Jun-2018,000007481003401,AMAZON SVCS EU-UK AMAZ,5942,Telephones general-all costs,10.35,0.00,10.35
Regeneration and Local Services,Economic Development and Housing,030732,Rural Employability Project - South Durham,Supplies and Services,304259,Equipment and Materials,13-Jun-2018,000007481003403,GRO HM PASSPORT OFFICE,9399,Equipment-purchase and rental,23.40,0.00,23.40
Children and Young Peoples Services,Head of Childrens Social Care,085342,9 Cedar Drive Aycliffe,Supplies and Services,324117,Provisions E324,13-Jun-2018,000007481003413,TESCO STORES 2916,5411,Catering costs - provisions,170.16,0.00,170.16
Children and Young Peoples Services,Head of Childrens Social Care,085332,Middlestone Moor CU,Supplies and Services,324117,Provisions E324,13-Jun-2018,000007481003417,HOME BARGAINS SPENNYMO,5251,Catering costs - provisions,6.66,1.11,5.55
Children and Young Peoples Services,Head of Childrens Social Care,085332,Middlestone Moor CU,Premises,145015,Cleaning and Domestic Supplies,13-Jun-2018,000007481003417 - 1,HOME BARGAINS SPENNYMO,5251,Cleaning and domestic equipment,3.53,,3.53
Children and Young Peoples Services,"Head of Early Help, Inclusion and Vulnerable Children",071670,Willington Childrens Centre,Supplies and Services,324117,Provisions E324,13-Jun-2018,000007481003435,BESTWAY WHOLESALE,5451,Catering costs - provisions,99.80,0.00,99.80
Regeneration and Local Services,Direct Services,021242,Catering - County Hall,Supplies and Services,324117,Provisions E324,13-Jun-2018,000007481003437,HOPWELLS LTD,5811,Catering costs - provisions,170.17,0.00,170.17
Regeneration and Local Services,Direct Services,021242,Catering - County Hall,Supplies and Services,324117,Provisions E324,13-Jun-2018,000007481003439,JR HOLLAND FOODSERVICE,5422,Catering costs - provisions,88.06,0.00,88.06
Regeneration and Local Services,Direct Services,021242,Catering - County Hall,Supplies and Services,324117,Provisions E324,13-Jun-2018,000007481003441,JR HOLLAND FOODSERVICE,5422,Catering costs - provisions,2.35,0.00,2.35
Regeneration and Local Services,Economic Development and Housing,030737,Durham Works Flexible Fund,Supplies and Services,328041,Clothing uniforms and laundry E328,13-Jun-2018,000007481003445,NEXT DIRECTORY,5651,Clothing uniforms and laundry,53.99,0.00,53.99
Regeneration and Local Services,Economic Development and Housing,030737,Durham Works Flexible Fund,Supplies and Services,328041,Clothing uniforms and laundry E328,13-Jun-2018,000007481003447,H&M,5691,Clothing uniforms and laundry,-43.96,0.00,-43.96
Regeneration and Local Services,Economic Development and Housing,030737,Durham Works Flexible Fund,Transport,235057,Public Transport,13-Jun-2018,000007481003449,ARRIVA NORTH EAST,4131,Staff travelling,-7.20,0.00,-7.20
Regeneration and Local Services,Culture & Sport,054812,Gala Theatre - Catering etc,Supplies and Services,324117,Provisions E324,13-Jun-2018,000007481003451,JR HOLLAND FOODSERVICE,5422,Catering costs - provisions,31.39,0.00,31.39
Children and Young Peoples Services,Head of Childrens Social Care,085333,Coxhoe Satelite Home,Supplies and Services,344033,Telephones,13-Jun-2018,000007481003475,E E BROADBAND,4812,Telephones general-all costs,35.75,0.00,35.75
Children and Young Peoples Services,Head of Childrens Social Care,085334,West Rainton Satelite Home,Supplies and Services,324117,Provisions E324,13-Jun-2018,000007481003485,GEORGE BOLAM (FOODS) L,5499,Catering costs - provisions,129.67,0.00,129.67
Children and Young Peoples Services,Head of Childrens Social Care,085334,West Rainton Satelite Home,Supplies and Services,312011,Newspapers books and periodicals E312,13-Jun-2018,000007481003487,HOME BARGAINS,5251,Books-school library,30.08,0.00,30.08
Children and Young Peoples Services,Head of Childrens Social Care,085334,West Rainton Satelite Home,Supplies and Services,324117,Provisions E324,13-Jun-2018,000007481003489,TESCO STORES 2371,5411,Catering costs - provisions,24.05,0.00,24.05
Children and Young Peoples Services,Head of Childrens Social Care,085334,West Rainton Satelite Home,Supplies and Services,324117,Provisions E324,13-Jun-2018,000007481003491,TESCO STORES 2371,5411,Catering costs - provisions,11.00,0.00,11.00
Children and Young Peoples Services,Head of Childrens Social Care,085352,Tow Law CU,Supplies and Services,324117,Provisions E324,13-Jun-2018,000007481003493,TESCO STORES 2371,5411,Catering costs - provisions,191.77,0.00,191.77
Children and Young Peoples Services,Head of Education and Skills,071732,Dean Bank Childcare,Supplies and Services,324117,Provisions E324,13-Jun-2018,000007481003497,SAINSBURYS SACAT (2303,5411,Catering costs - provisions,55.25,0.00,55.25
Regeneration and Local Services,Economic Development and Housing,030737,Durham Works Flexible Fund,Employees,040029,Recruitment Instruction and Training,13-Jun-2018,000007481003501,ASDA SUPERSTORE 4987,5411,Interview expenses,-14.00,0.00,-14.00
Children and Young Peoples Services,Head of Education and Skills,071903,EYDCP-Sustainability EDS,Supplies and Services,304259,Equipment and Materials,13-Jun-2018,000007481003505,OFSTED INTERNET,9399,Equipment-purchase and rental,220.00,0.00,220.00
Children and Young Peoples Services,"Head of Early Help, Inclusion and Vulnerable Children",085957,Secure Management,Supplies and Services,312011,Newspapers books and periodicals E312,13-Jun-2018,000007481003511,Amazon UK Marketplace,5942,Books-school library,31.96,0.00,31.96
Children and Young Peoples Services,"Head of Early Help, Inclusion and Vulnerable Children",085957,Secure Management,Supplies and Services,312011,Newspapers books and periodicals E312,13-Jun-2018,000007481003513,Amazon UK Marketplace,5942,Books-school library,2.43,0.00,2.43
Children and Young Peoples Services,"Head of Early Help, Inclusion and Vulnerable Children",085957,Secure Management,Supplies and Services,312011,Newspapers books and periodicals E312,13-Jun-2018,000007481003515,Amazon EU,5969,Books-school library,9.02,0.00,9.02
Children and Young Peoples Services,"Head of Early Help, Inclusion and Vulnerable Children",085957,Secure Management,Supplies and Services,324117,Provisions E324,13-Jun-2018,000007481003517,WILKO.COM,5399,Catering costs - provisions,20.00,0.00,20.00
Children and Young Peoples Services,"Head of Early Help, Inclusion and Vulnerable Children",085957,Secure Management,Supplies and Services,312011,Newspapers books and periodicals E312,13-Jun-2018,000007481003519,Amazon UK Marketplace,5942,Books-school library,4.82,0.00,4.82
Children and Young Peoples Services,"Head of Early Help, Inclusion and Vulnerable Children",085957,Secure Management,Supplies and Services,324117,Provisions E324,13-Jun-2018,000007481003521,TESCO STORES 6329,5411,Catering costs - provisions,73.72,0.00,73.72
Regeneration and Local Services,Direct Services,010301,C&G - North Grounds Maintenance,Supplies and Services,328041,Clothing uniforms and laundry E328,13-Jun-2018,000007481003523,THOMAS OWEN & SONS /N/,5611,Clothing uniforms and laundry,70.44,0.00,70.44
Regeneration and Local Services,Culture & Sport,011060,Hardwick Park Catering,Supplies and Services,324117,Provisions E324,13-Jun-2018,000007481003525,JR HOLLAND FOODSERVICE,5422,Catering costs - provisions,76.04,0.00,76.04
Regeneration and Local Services,Culture & Sport,011060,Hardwick Park Catering,Supplies and Services,324117,Provisions E324,13-Jun-2018,000007481003527,JR HOLLAND FOODSERVICE,5422,Catering costs - provisions,24.60,0.00,24.60
Regeneration and Local Services,Economic Development and Housing,030755,Durham Employment & Skills - Other Training,Employees,040149,Recruitment Instruction and Training,13-Jun-2018,000007481003539,WWW.CSKILLS.ORG,8249,Training-all costs,30.00,5.00,25.00
Regeneration and Local Services,Direct Services,021234,Catering - Locomotion,Supplies and Services,324117,Provisions E324,13-Jun-2018,000007481003547,JR HOLLAND FOODSERVICE,5422,Catering costs - provisions,90.81,0.00,90.81
Regeneration and Local Services,Direct Services,021234,Catering - Locomotion,Supplies and Services,324117,Provisions E324,13-Jun-2018,000007481003549,JR HOLLAND FOODSERVICE,5422,Catering costs - provisions,5.28,0.00,5.28
Regeneration and Local Services,Direct Services,010525,Catering - Green Lane,Supplies and Services,324117,Provisions E324,13-Jun-2018,000007481003555,HOPWELLS LTD,5811,Catering costs - provisions,93.71,0.00,93.71
Regeneration and Local Services,Direct Services,010900,Fleet - Meadowfield Fleet,Transport,215995,Running Costs of Vehicles,13-Jun-2018,000007481003561,AUTODATA LTD,5533,Vehicle running expenses,"1,102.80",183.80,919.00
Regeneration and Local Services,Economic Development and Housing,030692,Durham Dales Centre - Management and Admin,Supplies and Services,324117,Provisions E324,13-Jun-2018,000007481003607,JR HOLLAND FOODSERVICE,5422,Catering costs - provisions,116.82,0.00,116.82
Regeneration and Local Services,Economic Development and Housing,030692,Durham Dales Centre - Management and Admin,Supplies and Services,324117,Provisions E324,13-Jun-2018,000007481003609,JR HOLLAND FOODSERVICE,5422,Catering costs - provisions,64.43,0.00,64.43
Regeneration and Local Services,Economic Development and Housing,030692,Durham Dales Centre - Management and Admin,Supplies and Services,324117,Provisions E324,13-Jun-2018,000007481003611,JR HOLLAND FOODSERVICE,5422,Catering costs - provisions,25.50,0.00,25.50
Adult and Health Services,Head of Adults,055643,Hawthorn House LD Respite Unit,Supplies and Services,324117,Provisions E324,13-Jun-2018,000007481003629,HOPWELLS LTD,5811,Catering costs - provisions,82.49,0.00,82.49
Adult and Health Services,Head of Adults,055643,Hawthorn House LD Respite Unit,Supplies and Services,324117,Provisions E324,13-Jun-2018,000007481003631,JR HOLLAND FOODSERVICE,5422,Catering costs - provisions,38.20,0.00,38.20
Adult and Health Services,Head of Adults,055643,Hawthorn House LD Respite Unit,Supplies and Services,324117,Provisions E324,13-Jun-2018,000007481003633,JR HOLLAND FOODSERVICE,5422,Catering costs - provisions,38.07,0.00,38.07
Adult and Health Services,Head of Adults,055643,Hawthorn House LD Respite Unit,Supplies and Services,324117,Provisions E324,13-Jun-2018,000007481003635,JR HOLLAND FOODSERVICE,5422,Catering costs - provisions,21.60,0.00,21.60
Regeneration and Local Services,Spatial Policy Planning Assets & Environment,031200,North Pennines Core,Supplies and Services,304259,Equipment and Materials,13-Jun-2018,000007481003637,WWW.PRIMROSE.CO.UK,5261,Equipment-purchase and rental,34.98,0.00,34.98
Regeneration and Local Services,Direct Services,010301,C&G - North Grounds Maintenance,Supplies and Services,324117,Provisions E324,13-Jun-2018,000007481003641,J VAN VLIET GATESHEAD,5399,Catering costs - provisions,361.50,0.00,361.50
Resources,Digital and Customer Services,065335,School Services - Implementations,Supplies and Services,304639,Equipment and Materials,13-Jun-2018,000007481003645,AMAZON SVCS EU-UK AMAZ,5942,Technicians-supplies,21.06,0.00,21.06
Dedicated Schools Grant,DSG High Needs Block,079044,Ed Health Needs,Supplies and Services,312011,Newspapers books and periodicals E312,13-Jun-2018,000007481003653,Amazon UK Marketplace,5942,Books-school library,17.49,0.00,17.49
Regeneration and Local Services,Culture & Sport,054235,Bishop Auckland Town Hall Cafe,Supplies and Services,324117,Provisions E324,13-Jun-2018,000007481003665,HOPWELLS LTD,5811,Catering costs - provisions,179.00,0.00,179.00
Regeneration and Local Services,Direct Services,021324,Catering - Meadowfield,Supplies and Services,324117,Provisions E324,13-Jun-2018,000007481003671,HOPWELLS LTD,5811,Catering costs - provisions,57.38,0.00,57.38
Adult and Health Services,Head of Adults,055306,Spennymoor Pathways,Supplies and Services,312011,Newspapers books and periodicals E312,13-Jun-2018,000007481003713,CHARLES DICKENS (SPENN,5251,Books-school library,9.47,0.00,9.47
Regeneration and Local Services,Direct Services,021235,Catering - Wharton Park,Supplies and Services,324117,Provisions E324,13-Jun-2018,000007481003715,HOPWELLS LTD,5811,Catering costs - provisions,231.96,38.66,193.30
Regeneration and Local Services,Direct Services,021235,Catering - Wharton Park,Supplies and Services,324117,Provisions E324,13-Jun-2018,000007481003715 - 1,HOPWELLS LTD,5811,Catering costs - provisions,57.54,,57.54
Regeneration and Local Services,Direct Services,021235,Catering - Wharton Park,Supplies and Services,324117,Provisions E324,13-Jun-2018,000007481003717,JR HOLLAND FOODSERVICE,5422,Catering costs - provisions,25.69,0.00,25.69
Children and Young Peoples Services,"Head of Early Help, Inclusion and Vulnerable Children",085801,CDYOS - Support,Supplies and Services,324117,Provisions E324,13-Jun-2018,000007481003741,MARKS&SPENCER PLC,5411,Catering costs - provisions,49.50,0.00,49.50
Regeneration and Local Services,Technical Services,018300,Highways Operations - East,Supplies and Services,344033,Telephones,13-Jun-2018,000007486409849,AMAZON SVCS EU-UK AMAZ,5942,Telephones general-all costs,17.98,3.00,14.98
Children and Young Peoples Services,Head of Childrens Social Care,085332,Middlestone Moor CU,Supplies and Services,324117,Provisions E324,13-Jun-2018,000007486409867,ALDI 59 774,5411,Catering costs - provisions,15.55,0.00,15.55
Children and Young Peoples Services,Head of Childrens Social Care,085380,Operations Manager Adoption & Fostering,Employees,040149,Recruitment Instruction and Training,13-Jun-2018,000007486409881,WWW.CORAM.ORG.UK,8398,Training-all costs,135.45,0.00,135.45
Children and Young Peoples Services,Head of Childrens Social Care,085334,West Rainton Satelite Home,Supplies and Services,304259,Equipment and Materials,13-Jun-2018,000007486409939,B & Q 1343,5211,Equipment-purchase and rental,5.00,0.00,5.00
Children and Young Peoples Services,Head of Childrens Social Care,085334,West Rainton Satelite Home,Supplies and Services,324117,Provisions E324,13-Jun-2018,000007486409943,ALDI 12 774,5411,Catering costs - provisions,32.51,0.00,32.51
Regeneration and Local Services,Culture & Sport,054813,Gala Theatre - Technical,Supplies and Services,340001,Postages E340,13-Jun-2018,000007486409961,TNT_DIRECT,4215,Postages,34.74,5.79,28.95
Regeneration and Local Services,Economic Development and Housing,030554,International Relations,Transport,235057,Public Transport,13-Jun-2018,000007486410139,WALKERGATE CAR PAR,7523,Staff travelling,9.00,0.00,9.00
Children and Young Peoples Services,Head of Childrens Social Care,085334,West Rainton Satelite Home,Supplies and Services,384999,Miscellaneous Expenses,13-Jun-2018,000007486410185,SMYTHS TOYS UK LTD,5945,Other expenses,159.99,0.00,159.99
Regeneration and Local Services,Economic Development and Housing,031576,B& B - Temp Accom,Supplies and Services,364320,Grants to Voluntary Organisations,13-Jun-2018,000007486410281,PREMIER INN,3811,Accommodation assistance,179.50,29.92,149.58
Regeneration and Local Services,Economic Development and Housing,031576,B& B - Temp Accom,Supplies and Services,364320,Grants to Voluntary Organisations,13-Jun-2018,000007486410287,PREMIER INN,3811,Accommodation assistance,66.00,11.00,55.00
Adult and Health Services,Head of Adults,055643,Hawthorn House LD Respite Unit,Supplies and Services,324117,Provisions E324,13-Jun-2018,000007486410295,BATLEYS PERTH,5300,Catering costs - provisions,-16.50,0.00,-16.50
Dedicated Schools Grant,DSG High Needs Block,079040,SENSS-HQ,Supplies and Services,328041,Clothing uniforms and laundry E328,13-Jun-2018,000007486410369,B&M RETAIL LTD,5310,Clothing uniforms and laundry,12.99,0.00,12.99
Children and Young Peoples Services,Head of Childrens Social Care,085372,Young People Services - North,Supplies and Services,328041,Clothing uniforms and laundry E328,13-Jun-2018,000007486410383,WWW.ARGOS.CO.UK,5310,Clothing uniforms and laundry,149.99,0.00,149.99
Regeneration and Local Services,Economic Development and Housing,031576,B& B - Temp Accom,Supplies and Services,364320,Grants to Voluntary Organisations,13-Jun-2018,000007486410439,PREMIER INN,3811,Accommodation assistance,328.50,54.75,273.75
Regeneration and Local Services,Culture & Sport,010593,Shildon Leisure Centre - General,Employees,040149,Recruitment Instruction and Training,13-Jun-2018,000007486410521,WWW.FILMBANK.CO.UK,7829,Training-all costs,99.60,16.60,83.00
Regeneration and Local Services,Economic Development and Housing,030553,Europe Direct Scheme,Supplies and Services,384409,Miscellaneous Expenses,13-Jun-2018,000007486410661,WALKERGATE CAR PAR,7523,Educational visits,9.00,0.00,9.00
Regeneration and Local Services,Direct Services,021234,Catering - Locomotion,Supplies and Services,324117,Provisions E324,13-Jun-2018,000007531753319,BATLEYS PERTH,5300,Catering costs - provisions,-13.07,-2.18,-10.89
Children and Young Peoples Services,Head of Education and Skills,071801,Selby Cottage Childcare Centre,Supplies and Services,324117,Provisions E324,14-Jun-2018,000007486409837,TESCO STORES 2278,5411,Catering costs - provisions,10.10,0.00,10.10
Children and Young Peoples Services,Head of Education and Skills,054640,Durham Learning Resources,Supplies and Services,304245,Equipment and Materials,14-Jun-2018,000007486409841,GET DRESSED FOR BATTLE,5699,Materials,111.05,18.51,92.54
Dedicated Schools Grant,DSG High Needs Block,079063,Partial Hearing-Belmont Comp,Supplies and Services,312011,Newspapers books and periodicals E312,14-Jun-2018,000007486409861,Amazon UK Marketplace,5942,Books-school library,23.96,0.00,23.96
Regeneration and Local Services,Direct Services,021242,Catering - County Hall,Supplies and Services,324117,Provisions E324,14-Jun-2018,000007486409877,JR HOLLAND FOODSERVICE,5422,Catering costs - provisions,102.70,0.00,102.70
Regeneration and Local Services,Direct Services,021242,Catering - County Hall,Supplies and Services,324117,Provisions E324,14-Jun-2018,000007486409879,JR HOLLAND FOODSERVICE,5422,Catering costs - provisions,30.14,0.00,30.14
Regeneration and Local Services,Culture & Sport,054233,Bishop Auckland Town Hall Library,Supplies and Services,324117,Provisions E324,14-Jun-2018,000007486409883,HERON FOODS LTD,5499,Catering costs - provisions,2.22,0.00,2.22
Regeneration and Local Services,Culture & Sport,054233,Bishop Auckland Town Hall Library,Supplies and Services,312009,Newspapers books and periodicals E312,14-Jun-2018,000007486409885,WH SMITH,5994,Newspapers books and periodicals,9.99,0.00,9.99
Children and Young Peoples Services,"Head of Early Help, Inclusion and Vulnerable Children",079599,Psychological-HQ,Supplies and Services,312011,Newspapers books and periodicals E312,14-Jun-2018,000007486409901,Amazon UK Marketplace,5942,Books-school library,62.00,0.00,62.00
Children and Young Peoples Services,"Head of Early Help, Inclusion and Vulnerable Children",079599,Psychological-HQ,Supplies and Services,312011,Newspapers books and periodicals E312,14-Jun-2018,000007486409903,Amazon UK Marketplace,5942,Books-school library,29.90,0.00,29.90
Children and Young Peoples Services,Head of Childrens Social Care,085362,LAC & Permanence Team 2,Supplies and Services,384999,Miscellaneous Expenses,14-Jun-2018,000007486409909,SUNDERLAND CC,9399,Other expenses,10.00,0.00,10.00
Children and Young Peoples Services,Head of Childrens Social Care,085362,LAC & Permanence Team 2,Supplies and Services,384999,Miscellaneous Expenses,14-Jun-2018,000007486409911,FIFE COUNCIL WEBSTAFF,9399,Other expenses,15.00,0.00,15.00
Children and Young Peoples Services,Head of Childrens Social Care,085362,LAC & Permanence Team 2,Supplies and Services,384999,Miscellaneous Expenses,14-Jun-2018,000007486409913,GRO HM PASSPORT OFFICE,9399,Other expenses,27.75,0.00,27.75
Children and Young Peoples Services,Head of Education and Skills,071732,Dean Bank Childcare,Supplies and Services,312011,Newspapers books and periodicals E312,14-Jun-2018,000007486409947,Amazon UK Marketplace,5942,Books-school library,11.99,0.00,11.99
Resources,Finance & Transactional Services,065170,Welfare Rights,Supplies and Services,312009,Newspapers books and periodicals E312,14-Jun-2018,000007486409995,PAYPAL LAG,8398,Newspapers books and periodicals,96.45,0.00,96.45
Children and Young Peoples Services,"Head of Early Help, Inclusion and Vulnerable Children",085957,Secure Management,Supplies and Services,312011,Newspapers books and periodicals E312,14-Jun-2018,000007486410049,Amazon UK Marketplace,5942,Books-school library,1.99,0.00,1.99
Children and Young Peoples Services,"Head of Early Help, Inclusion and Vulnerable Children",085957,Secure Management,Supplies and Services,312011,Newspapers books and periodicals E312,14-Jun-2018,000007486410059,Amazon UK Marketplace,5942,Books-school library,7.50,0.00,7.50
Children and Young Peoples Services,"Head of Early Help, Inclusion and Vulnerable Children",085957,Secure Management,Supplies and Services,324117,Provisions E324,14-Jun-2018,000007486410063,TESCO STORES 6329,5411,Catering costs - provisions,95.91,0.00,95.91
Regeneration and Local Services,Culture & Sport,054813,Gala Theatre - Technical,Supplies and Services,340001,Postages E340,14-Jun-2018,000007486410071,THE POST OFFICE,9402,Postages,34.40,0.00,34.40
Regeneration and Local Services,Culture & Sport,011060,Hardwick Park Catering,Supplies and Services,324117,Provisions E324,14-Jun-2018,000007486410077,JR HOLLAND FOODSERVICE,5422,Catering costs - provisions,16.61,0.00,16.61
Regeneration and Local Services,Direct Services,010525,Catering - Green Lane,Supplies and Services,324117,Provisions E324,14-Jun-2018,000007486410109,JR HOLLAND FOODSERVICE,5422,Catering costs - provisions,60.13,0.00,60.13
Regeneration and Local Services,Direct Services,010525,Catering - Green Lane,Supplies and Services,324117,Provisions E324,14-Jun-2018,000007486410113,JR HOLLAND FOODSERVICE,5422,Catering costs - provisions,3.47,0.00,3.47
Adult and Health Services,Head of Adults,055301,Stanley Pathways,Supplies and Services,324117,Provisions E324,14-Jun-2018,000007486410225,SAINSBURYS SACAT 0776,5411,Catering costs - provisions,4.00,0.00,4.00
Regeneration and Local Services,Economic Development and Housing,030692,Durham Dales Centre - Management and Admin,Supplies and Services,324117,Provisions E324,14-Jun-2018,000007486410255,JR HOLLAND FOODSERVICE,5422,Catering costs - provisions,70.48,0.00,70.48
Regeneration and Local Services,Economic Development and Housing,030737,Durham Works Flexible Fund,Transport,235057,Public Transport,14-Jun-2018,000007486410277,GO NORTH EAST LIMITED,4131,Staff travelling,94.00,0.00,94.00
Adult and Health Services,Head of Adults,055643,Hawthorn House LD Respite Unit,Supplies and Services,324117,Provisions E324,14-Jun-2018,000007486410289,JR HOLLAND FOODSERVICE,5422,Catering costs - provisions,10.84,0.00,10.84
Adult and Health Services,Head of Adults,055643,Hawthorn House LD Respite Unit,Supplies and Services,324117,Provisions E324,14-Jun-2018,000007486410293,JR HOLLAND FOODSERVICE,5422,Catering costs - provisions,9.52,0.00,9.52
Resources,Digital and Customer Services,065335,School Services - Implementations,Supplies and Services,304639,Equipment and Materials,14-Jun-2018,000007486410325,Amazon UK Marketplace,5942,Technicians-supplies,12.56,2.09,10.47
Resources,Digital and Customer Services,065335,School Services - Implementations,Supplies and Services,304639,Equipment and Materials,14-Jun-2018,000007486410329,Amazon UK Marketplace,5942,Technicians-supplies,8.38,1.40,6.98
Resources,Digital and Customer Services,065335,School Services - Implementations,Supplies and Services,304259,Equipment and Materials,14-Jun-2018,000007486410333,WWW.TOOLSTATION.COM,5251,Equipment-purchase and rental,114.78,19.13,95.65
Children and Young Peoples Services,Head of Childrens Social Care,085351,Framwellgate Moor CU,Supplies and Services,308011,Furniture,14-Jun-2018,000007486410373,EDS BEDS LTD,5712,Furniture repair and replacement,367.00,0.00,367.00
Children and Young Peoples Services,Head of Childrens Social Care,085351,Framwellgate Moor CU,Supplies and Services,308011,Furniture,14-Jun-2018,000007486410379,EDS BEDS LTD,5712,Furniture repair and replacement,169.00,0.00,169.00
Children and Young Peoples Services,Childrens Services Operational Support,052986,CYPS - Locality and Operational Support,Supplies and Services,328041,Clothing uniforms and laundry E328,14-Jun-2018,000007486410391,MOTHERCARE DIRECT-E-CO,5311,Clothing uniforms and laundry,300.00,0.00,300.00
Regeneration and Local Services,Culture & Sport,054235,Bishop Auckland Town Hall Cafe,Supplies and Services,324117,Provisions E324,14-Jun-2018,000007486410413,JR HOLLAND FOODSERVICE,5422,Catering costs - provisions,47.11,0.00,47.11
Regeneration and Local Services,Direct Services,021324,Catering - Meadowfield,Supplies and Services,324117,Provisions E324,14-Jun-2018,000007486410425,JR HOLLAND FOODSERVICE,5422,Catering costs - provisions,23.86,0.00,23.86
Regeneration and Local Services,Direct Services,021324,Catering - Meadowfield,Supplies and Services,324117,Provisions E324,14-Jun-2018,000007486410429,JR HOLLAND FOODSERVICE,5422,Catering costs - provisions,13.89,0.00,13.89
Regeneration and Local Services,Economic Development and Housing,030554,International Relations,Transport,235057,Public Transport,14-Jun-2018,000007486410501,EASYJET,3245,Staff travelling,"1,974.52",0.00,1974.52
Regeneration and Local Services,Economic Development and Housing,030554,International Relations,Transport,235057,Public Transport,14-Jun-2018,000007486410511,EASYJET,3245,Staff travelling,42.98,0.00,42.98
Adult and Health Services,Head of Adults,055807,Newton Aycliffe Pathways,Supplies and Services,384999,Miscellaneous Expenses,14-Jun-2018,000007486410555,JULIES PETS,5995,Other expenses,9.99,0.00,9.99
Children and Young Peoples Services,Head of Childrens Social Care,085363,LAC & Permanence Team 3,Supplies and Services,304259,Equipment and Materials,14-Jun-2018,000007486410591,HM PASSPORT OFFICE,9399,Equipment-purchase and rental,98.00,0.00,98.00
Children and Young Peoples Services,Head of Childrens Social Care,085363,LAC & Permanence Team 3,Supplies and Services,304259,Equipment and Materials,14-Jun-2018,000007486410595,HM PASSPORT OFFICE,9399,Equipment-purchase and rental,49.00,0.00,49.00
Regeneration and Local Services,Economic Development and Housing,030737,Durham Works Flexible Fund,Transport,235057,Public Transport,14-Jun-2018,000007486410649,GO NORTH EAST LIMITED,4131,Staff travelling,5.20,0.00,5.20
Regeneration and Local Services,Spatial Policy Planning Assets & Environment,031200,North Pennines Core,Supplies and Services,340001,Postages E340,14-Jun-2018,000007486410655,THE POST OFFICE,9402,Postages,1.87,0.00,1.87
Regeneration and Local Services,Direct Services,010383,C&G - South Street Cleansing,Transport,215995,Running Costs of Vehicles,14-Jun-2018,000007492598031,SNOWBALLS (RAILWAY,5533,Vehicle running expenses,133.32,22.22,111.10
Regeneration and Local Services,Economic Development and Housing,030699,Business Growth and Innovation General,Supplies and Services,342033,Computers and Communications,14-Jun-2018,000007492598103,WATCHFULPAYPAL,7379,Computer hardware,15.02,0.00,15.02
Regeneration and Local Services,Direct Services,010367,C&G - South Grounds Maintenance,Supplies and Services,304259,Equipment and Materials,14-Jun-2018,000007492598163,SCREWFIX,5211,Equipment-purchase and rental,13.98,2.33,11.65
Regeneration and Local Services,Direct Services,021242,Catering - County Hall,Supplies and Services,324117,Provisions E324,14-Jun-2018,000007492598179,BATLEYS PERTH,5300,Catering costs - provisions,"1,261.80",210.30,1051.50
Regeneration and Local Services,Direct Services,021242,Catering - County Hall,Supplies and Services,324117,Provisions E324,14-Jun-2018,000007492598179 - 1,BATLEYS PERTH,5300,Catering costs - provisions,20.68,,20.68
Regeneration and Local Services,Direct Services,021242,Catering - County Hall,Supplies and Services,324117,Provisions E324,14-Jun-2018,000007492598181,BATLEYS PERTH,5300,Catering costs - provisions,418.68,69.78,348.90
Regeneration and Local Services,Direct Services,021242,Catering - County Hall,Supplies and Services,324117,Provisions E324,14-Jun-2018,000007492598181 - 1,BATLEYS PERTH,5300,Catering costs - provisions,160.83,,160.83
Regeneration and Local Services,Direct Services,021242,Catering - County Hall,Supplies and Services,324117,Provisions E324,14-Jun-2018,000007492598189,BATLEYS PERTH,5300,Catering costs - provisions,4.08,0.68,3.40
Regeneration and Local Services,Direct Services,021242,Catering - County Hall,Supplies and Services,324117,Provisions E324,14-Jun-2018,000007492598189 - 1,BATLEYS PERTH,5300,Catering costs - provisions,65.37,,65.37
Regeneration and Local Services,Direct Services,011185,Nei. Prot - Unauthorised Encampments,Supplies and Services,338048,Services,14-Jun-2018,000007492598529,HMCOURTS-SERVICE.G,9222,Court costs 338048,226.00,0.00,226.00
Regeneration and Local Services,Culture & Sport,011060,Hardwick Park Catering,Supplies and Services,324117,Provisions E324,14-Jun-2018,000007492598625,BATLEYS PERTH,5300,Catering costs - provisions,350.64,58.44,292.20
Regeneration and Local Services,Culture & Sport,011060,Hardwick Park Catering,Supplies and Services,324117,Provisions E324,14-Jun-2018,000007492598625 - 1,BATLEYS PERTH,5300,Catering costs - provisions,244.38,,244.38
Children and Young Peoples Services,Head of Childrens Social Care,085551,Short Break Services-Park Hse Sher,Supplies and Services,324117,Provisions E324,14-Jun-2018,000007492598707,ALDI 59 774,5411,Catering costs - provisions,33.68,0.00,33.68
Regeneration and Local Services,Direct Services,021234,Catering - Locomotion,Supplies and Services,324117,Provisions E324,14-Jun-2018,000007492598715,BATLEYS PERTH,5300,Catering costs - provisions,395.88,65.98,329.90
Regeneration and Local Services,Direct Services,021234,Catering - Locomotion,Supplies and Services,324117,Provisions E324,14-Jun-2018,000007492598715 - 1,BATLEYS PERTH,5300,Catering costs - provisions,93.68,,93.68
Regeneration and Local Services,Economic Development and Housing,030554,International Relations,Transport,235057,Public Transport,14-Jun-2018,000007492598871,BRITISH A,3005,Staff travelling,"1,200.00",0.00,1200.00
Adult and Health Services,Head of Adults,055301,Stanley Pathways,Supplies and Services,304259,Equipment and Materials,14-Jun-2018,000007492599023,WILKO DURHAM 426,5722,Equipment-purchase and rental,4.80,0.00,4.80
Regeneration and Local Services,Economic Development and Housing,030737,Durham Works Flexible Fund,Supplies and Services,304259,Equipment and Materials,14-Jun-2018,000007492599091,SCREWFIX DIRECT,5211,Equipment-purchase and rental,41.98,7.00,34.98
Regeneration and Local Services,Culture & Sport,026591,Hardwick Park,Supplies and Services,384999,Miscellaneous Expenses,14-Jun-2018,000007492599301,WWW.MUTTSBUTTS.COM,5995,Other expenses,73.10,12.18,60.92
Children and Young Peoples Services,Head of Education and Skills,071801,Selby Cottage Childcare Centre,Supplies and Services,304259,Equipment and Materials,15-Jun-2018,000007492597903,NORTH YORKSHIRE COUNTY,9399,Equipment-purchase and rental,172.50,0.00,172.50
Children and Young Peoples Services,Head of Education and Skills,071801,Selby Cottage Childcare Centre,Supplies and Services,324117,Provisions E324,15-Jun-2018,000007492597907,ASDA GROCERIES ONLINE,5411,Catering costs - provisions,5.00,0.00,5.00
Children and Young Peoples Services,Head of Education and Skills,071801,Selby Cottage Childcare Centre,Supplies and Services,324117,Provisions E324,15-Jun-2018,000007492597911,TESCO STORES 2278,5411,Catering costs - provisions,3.99,0.00,3.99
Children and Young Peoples Services,Head of Education and Skills,054640,Durham Learning Resources,Supplies and Services,304245,Equipment and Materials,15-Jun-2018,000007492597923,Amazon UK Marketplace,5942,Materials,118.20,19.70,98.50
Children and Young Peoples Services,Head of Education and Skills,054640,Durham Learning Resources,Supplies and Services,304245,Equipment and Materials,15-Jun-2018,000007492597929,HTTP://WWW.THEVIKINGST,7296,Materials,330.58,0.00,330.58
Transformation and Partnerships,Partnerships & Community Engagement Div.,060472,Syrian Vulnerable Persons Scheme,Supplies and Services,384999,Miscellaneous Expenses,15-Jun-2018,000007492597955,PREMIER INN,3811,Other expenses,354.50,59.08,295.42
Children and Young Peoples Services,Head of Childrens Social Care,085332,Middlestone Moor CU,Supplies and Services,304083,Equipment and Materials,15-Jun-2018,000007492598083,HOME BARGAINS SPENNYMO,5251,Catering equipment,4.08,0.68,3.40
Children and Young Peoples Services,Head of Childrens Social Care,085332,Middlestone Moor CU,Supplies and Services,324117,Provisions E324,15-Jun-2018,000007492598083 - 1,HOME BARGAINS SPENNYMO,5251,Catering costs - provisions,2.96,,2.96
Children and Young Peoples Services,Head of Childrens Social Care,085332,Middlestone Moor CU,Supplies and Services,324117,Provisions E324,15-Jun-2018,000007492598093,ASDA SUPERSTORE 4987,5411,Catering costs - provisions,33.37,0.00,33.37
Children and Young Peoples Services,Head of Childrens Social Care,085332,Middlestone Moor CU,Supplies and Services,324117,Provisions E324,15-Jun-2018,000007492598097,TESCO STORES 2371,5411,Catering costs - provisions,148.46,0.00,148.46
Regeneration and Local Services,Economic Development and Housing,030699,Business Growth and Innovation General,Supplies and Services,304999,Equipment and Materials,15-Jun-2018,000007492598105,MOZ,5817,Misc equipment tools and materials,74.92,0.00,74.92
Adult and Health Services,Head of Adults,052760,OP Management,Charges,720130,Fees and Charges,15-Jun-2018,000007492598131,WWW.MONEYCLAIM.GOV,9399,Fees-legal,185.00,0.00,185.00
Regeneration and Local Services,Direct Services,021242,Catering - County Hall,Supplies and Services,324117,Provisions E324,15-Jun-2018,000007492598169,JR HOLLAND FOODSERVICE,5422,Catering costs - provisions,101.14,0.00,101.14
Regeneration and Local Services,Direct Services,021242,Catering - County Hall,Supplies and Services,324117,Provisions E324,15-Jun-2018,000007492598177,JR HOLLAND FOODSERVICE,5422,Catering costs - provisions,13.20,0.00,13.20
Regeneration and Local Services,Culture & Sport,054233,Bishop Auckland Town Hall Library,Supplies and Services,324117,Provisions E324,15-Jun-2018,000007492598193,HERON FOODS LTD,5499,Catering costs - provisions,2.00,0.00,2.00
Regeneration and Local Services,Culture & Sport,054812,Gala Theatre - Catering etc,Supplies and Services,324117,Provisions E324,15-Jun-2018,000007492598235,JR HOLLAND FOODSERVICE,5422,Catering costs - provisions,43.47,0.00,43.47
Children and Young Peoples Services,"Head of Early Help, Inclusion and Vulnerable Children",079599,Psychological-HQ,Supplies and Services,312011,Newspapers books and periodicals E312,15-Jun-2018,000007492598289,Amazon EU,5969,Books-school library,34.38,0.00,34.38
Children and Young Peoples Services,Head of Education and Skills,071732,Dean Bank Childcare,Supplies and Services,324117,Provisions E324,15-Jun-2018,000007492598469,SAINSBURYS SACAT (2303,5411,Catering costs - provisions,23.60,0.00,23.60
Children and Young Peoples Services,"Head of Early Help, Inclusion and Vulnerable Children",085957,Secure Management,Supplies and Services,312011,Newspapers books and periodicals E312,15-Jun-2018,000007492598579,Amazon UK Marketplace,5942,Books-school library,12.16,0.00,12.16
Children and Young Peoples Services,"Head of Early Help, Inclusion and Vulnerable Children",085957,Secure Management,Supplies and Services,324117,Provisions E324,15-Jun-2018,000007492598585,TESCO STORES 6329,5411,Catering costs - provisions,82.42,0.00,82.42
